Workbook

Sheet Instructions
B2: MassDOT Safety Alternatives Analysis Guide Spreadsheet Tool
B3: Method 2 - Predicted Crash Frequency
B5: Overview | L5: Color Coding Rules
B7: This Excel file has been developed to assist analyis in conducting Safety Alternative Analysis. The SPFs were developed as a part of the project entitled "Calibration of Safety Performance Functions and Crash Modification Factors for Massachusetts’ Urban Intersections". | L7: The worksheets include three color options to help users identify locations where input data is required.
L10: Color Used | N10: Type of Information Required from User
B11: Macros must be enable to use this spreadsheet
L12: Sample | N12: Required input information as identified in the HSM. To be keyed in manually.
L13: Text
B14: The contents of this Excel file include the following:
L15: Sample | N15: Input data required from the user but restricted to options provided in the pull-down menu.
B16: Worksheet Name | E16: Contents | L16: Text
B18: Instructions | E18: The worksheet you are seeing now provides an overview of the Excel file, summary of the worksheets and the color coding rules. | L18: Sample | N18: Optional input information that can be used to supplement the analysis if this information is available.
L19: Text
B21: CMFs | E21: Provides the State-Preferred CMF List. In cases where a CMF for a treatment is not provided in this list, the analyst should work with MassDOT to identify an appropriate value for analysis.
B25: Input | E25: Contains input required to perform the analysis. For detailed explanation on input fields, please refer to the MassDOT Safety Analysis Guide. At end of sheet, the Run Report macro must be run to obtain results in the Output worksheet.
B29: Output | E29: Summarizes the results of the analysis.
B31: Year #, Design Year | E31: Internal SPF worksheets. | L31: Acknowledgement
L33: University of Massachusetts Lowell (SPF development).
E34: Please do NOT change any of the hidden worksheets. | L34: VHB, Inc.
A39: Last Updated: November 2023

Sheet CMFs
A1: Facility | B1: Countermeasure | C1: Crash Type | D1: All Severity CMF | E1: FI CMF | F1: Area Type | G1: Prior Condition | H1: Site Description | I1: Notes | J1: Resource 1 | K1: Resource 2 | L1: Resource 3
A2: Pedestrian and Bicycle | B2: Add Separated Bike Lane | C2: Vehicle-Bicycle | D2: 0.26 | E2: 0.26 | F2: Urban | G2: No Bicycle Infrastructure | H2: Urban Street | I2: Assumed KABC CMF applies to all because all Bike crashes are assumed to be KABC | J2: http://www.cmfclearinghouse.org/detail.cfm?facid=4097
B3: Add Separation between Road and Bike Lane | C3: Vehicle-Bicycle | D3: 0.63 | E3: 0.63 | F3: Urban | G3: Bike Lane with No Buffer | H3: Urban Street | J3: Cross-Sectional Comparison of Cycle Track and Bike Lane CMF
B4: Add Shared Use Path | C4: Vehicle-Bicycle | D4: 0.75 | E4: 0.75 | F4: Urban | G4: No Shared Use Path Present | H4: Principal Arterial Other, Minor arterial, major and minor collectors | J4: http://www.cmfclearinghouse.org/detail.cfm?facid=9250
B5: Add Sidewalk - Urban | C5: Vehicle-Pedestrian | D5: 0.12 | E5: 0.12 | F5: Urban/Suburban | G5: No Sidewalk Present | J5: https://www.pedbikeinfo.org/cms/downloads/WalkingAlongRoadways_Study_Guidelines.pdf
B6: Add Wide Paved Shoulder for Pedestrian Walkway | C6: Vehicle-Pedestrian | D6: 0.29 | E6: 0.29 | F6: Rural | G6: Narrow, Unwalkable Shoulder | H6: Rural Highway with Pedestrian Traffic | J6: https://safety.fhwa.dot.gov/speedmgt/ref_mats/fhwasa1304/resources/CRF%20Desktop%20Reference.pdf
B7: Advanced Pedestrian Crossing Signage | C7: Vehicle-Pedestrian | D7: 0.75 | E7: 0.75 | F7: Urban and Suburban | G7: No Advanced Warning Signage or Markings | H7: Mid-Block and Intersection Crossings | I7: Minimum of 340 to Maximum of 52892 Annual Average Daily Traffic (AADT) | J7: http://www.cmfclearinghouse.org/detail.cfm?facid=9017
B8: Bike box | C8: Vehicle-Bicycle | D8: 0.65 | E8: 0.65 | F8: Urban | G8: No Bike Box | H8: Signalized Intersection | J8: Herrstedt, L., M.A. Nielsen, L. Agústson, K.M.L. Krogsgaard, E. Jørgensen, and N.O. Jørgensen. Safety of Cyclists in Urban Areas: Danish Experiences. Copenhagen, Denmark: Danish Road Directorate, 1994 via Signalized Intersections Informational Guide
B9: Bike lane | C9: All | D9: =AVERAGE(0.7859,1.3065,0.901,0.558,0.435,0.51,0.643,0.734,0.694,0.649) -> 0.72164 | E9: 0.93 | F9: Urban | G9: No Bike Lane | H9: Urban Street | I9: FI CMF only applicable for Method 3. Weighted average from http://www.cmfclearinghouse.org/study_detail.cfm?stid=618. KABC CMF is a weighted average of all KABC CMFs in the study | J9: http://www.cmfclearinghouse.org/study_detail.cfm?stid=618
B10: Convert to High-Visibility Crosswalk | C10: Vehicle-Pedestrian | D10: 0.52 | E10: 0.52 | F10: Urban | G10: Standard Crosswalk Markings | H10: Three or Four Leg Intersection | I10: Signalized and unsignalized intersections. | J10: https://www.sciencedirect.com/science/article/abs/pii/S0001457512001613 | K10: http://www.cmfclearinghouse.org/detail.cfm?facid=4123
B11: Exclusive Pedestrian Phase | C11: Vehicle-Pedestrian | D11: 0.49 | E11: 0.49 | F11: Urban | G11: Signalized Intersection without Exclusive Phase | H11: Signalized Intersection | I11: 3-leg,4-leg,More than 4 legs intersection | J11: http://www.cmfclearinghouse.org/detail.cfm?facid=4117
B12: Implement Leading Pedestrian Interval | C12: All | D12: 0.9 | E12: 0.83 | F12: Urban and Suburban | G12: No Leading Pedestrian Interval | H12: Urban Signalized Intersection | I12: FI CMF only applicable for Method 3 | J12: http://www.cmfclearinghouse.org/detail.cfm?facid=9902 | K12: http://www.cmfclearinghouse.org/detail.cfm?facid=9901
B13: Increase Pedestrian Crossing Time | C13: Vehicle-Pedestrian | D13: 0.49 | E13: 0.49 | F13: Urban | G13: Standard Crossing Time | H13: Signalized Intersection with Pedestrian Crossing Phase | I13: 3-leg,4-leg,More than 4 legs | J13: http://www.cmfclearinghouse.org/detail.cfm?facid=4115
B14: Install Crosswalk Lighting | C14: Vehicle-Pedestrian | D14: 0.41 | E14: 0.41 | F14: All | G14: No Lighting Present | H14: Intersection | J14: http://www.cmfclearinghouse.org/detail.cfm?facid=440 | K14: http://www.cmfclearinghouse.org/detail.cfm?facid=441
B15: Install Grade-Separated Pedestrian Crossing | C15: Vehicle-Pedestrian | D15: 0.14 | E15: 0.14 | F15: Urban | G15: At-Grade Pedestrian Crossing | H15: Pedestrian Crossing | J15: https://lctr.eng.fiu.edu/Documents/CRFFinalReport.pdf
B16: Install Median Island for Pedestrian Crossing at Controlled Crossing | C16: Vehicle-Pedestrian | D16: 0.711 | E16: 0.734 | F16: Urban and Suburban | G16: Two-Way Left-Turn Lane | H16: Signalized Pedestrian Crossing | I16: FI CMF only applicable for Method 3. Minimum of 10500 to Maximum of 57000 Annual Average Daily Traffic (AADT) | J16: http://www.cmfclearinghouse.org/detail.cfm?facid=5075 | K16: http://www.cmfclearinghouse.org/detail.cfm?facid=5076
B17: Install Median Island for Pedestrian Crossing at Uncontrolled Crossing | C17: Vehicle-Pedestrian | D17: 0.685 | E17: 0.685 | F17: Urban and Suburban | G17: No Raised Median Present | H17: Uncontrolled Pedestrian Crossing | J17: http://www.cmfclearinghouse.org/detail.cfm?facid=8799
B18: Install Pedestrian Countdown Timer | C18: All | D18: 0.912 | E18: 0.952 | G18: No Pedestrian Countdown Timer | H18: 4- legged signalized Intersection with Pedestrian Crossing | I18: FI CMF only applicable for Method 3. | J18: http://www.cmfclearinghouse.org/detail.cfm?facid=8791 | K18: http://www.cmfclearinghouse.org/detail.cfm?facid=8790
B19: Install Pedestrian Hybrid Beacon (or HAWK Crossing) | C19: Vehicle-Pedestrian | D19: 0.543 | E19: 0.55 | F19: Urban and Suburban | G19: No PHB/HAWK | H19: Uncontrolled Pedestrian Crossing | J19: http://www.cmfclearinghouse.org/detail.cfm?facid=10608 | K19: http://www.cmfclearinghouse.org/detail.cfm?facid=10607
B20: Install Raised Pedestrian Crossing | C20: All | D20: 0.7 | E20: 0.64 | G20: Flat Pedestrian Crossing | H20: Pedestrian Crossing | I20: FI CMF only applicable for Method 3. | J20: Bahar, G., Parkhill, M., Hauer, E., Council, F., Persaud, B., Zegeer, C., Elvik, R., Smiley, A., and Scott, B. “Prepare Parts I and II of a Highway Safety Manual: Knowledge Base for Part II”. Unpublished material from NCHRP Project 17-27, (May 2007). | K20: https://safety.fhwa.dot.gov/ped_bike/tools_solve/fhwasa18041/fhwasa18041.pdf
B21: Install Rectangular Rapid Flashing Beacon (RRFB) | C21: Vehicle-Pedestrian | D21: 0.526 | E21: 0.526 | F21: Urban and Suburban | G21: No RRFB Present | H21: Uncontrolled Pedestrian Crossing | J21: http://www.cmfclearinghouse.org/detail.cfm?facid=9024
A22: Interchanges | B22: Add Interchange Lighting | C22: All | D22: 0.5 | E22: 0.74 | F22: All | G22: No Lighting Present | H22: Interchange | I22: Proportionally adjusted from the target crash type (nighttime) to all crashes | J22: http://www.cmfclearinghouse.org/detail.cfm?facid=1283 | K22: http://www.cmfclearinghouse.org/detail.cfm?facid=1284
B23: Add Lane to Interchange Ramp | C23: All | D23: 2.15 | E23: 1.62 | F23: Urban and Suburban | G23: One Lane on Ramp | H23: Interchange Entrance or Exit Ramp | I23: Proportionally adjusted from FI and PDO to All | J23: Highway Safety Manual Equation 19-20 and Table 19-5
B24: Convert Diamond Interchange to a Diverging Diamond Interchange | C24: All | D24: 0.67 | E24: 0.59 | F24: Suburban | G24: Traditional Diamond Interchange | H24: Diamond Interchange | I24: Speed limit 40-45 mph | J24: http://www.cmfclearinghouse.org/detail.cfm?facid=8278 | K24: http://www.cmfclearinghouse.org/detail.cfm?facid=8258
B25: Extend Acceleration Lane from X Miles to Y Miles | C25: All | D25: exp(-2.59*[Y-X]) | E25: exp(-4.55*[Y-X]) | G25: Acceleration Lane Length of X Miles | H25: Freeway Interchange Area | I25: Principal Arterial Interstate | J25: http://www.cmfclearinghouse.org/detail.cfm?facid=5216 | K25: http://www.cmfclearinghouse.org/detail.cfm?facid=5215
B26: Extend Deceleration Lane to 700 Feet | C26: All | D26: 0.41 | E26: 0.41 | G26: Expressway Deceleration Lane Less than 700 feet | H26: Expressway Approaching Exit | J26: http://www.cmfclearinghouse.org/study_detail.cfm?stid=303
B27: Increase Spacing Between Entrance Ramp and Exit Ramp from X Feet to Y Feet | C27: All | D27: exp(450/Y-450/X) | E27: exp(171/Y-171/X) | G27: X Feet Between Entrance and Exit Ramps | H27: Freeway Interchange Area | J27: http://www.cmfclearinghouse.org/detail.cfm?facid=7445 | K27: http://www.cmfclearinghouse.org/detail.cfm?facid=7444
B28: Provide Auxiliary Lane in Weaving Area | C28: All | D28: 0.79 | E28: 0.77 | G28: No Auxiliary Lane Between Ramps | H28: Freeway Interchange Area | J28: http://www.cmfclearinghouse.org/detail.cfm?facid=7441 | K28: http://www.cmfclearinghouse.org/detail.cfm?facid=7440
B29: Widen Ramp Lane Width from X Feet to Y Feet | C29: All | D29: (3149*exp[-0.0458*(Y-X)]+10168)/13317 | E29: exp[-0.0458*(Y-X)] | F29: All | G29: Lane Width of X Feet | H29: Freeway Ramp | I29: Proportionally adjusted from FI and PDO to All | J29: Highway Safety Manual Equation 19-34, Table 19-25 | K29: http://onlinepubs.trb.org/onlinepubs/nchrp/docs/nchrp17-45_fr.pdf
B30: Widen Ramp Left Shoulder Width from X Feet to Y Feet | C30: All | D30: (3149*exp[-0.0539*(Y-X)]+10168*exp[-0.0259*(Y-X)])/13317 | E30: exp[-0.0539*(Y-X)] | F30: All | G30: Right Shoulder Width of X Feet | H30: Freeway Ramp | I30: Proportionally adjusted from FI and PDO to All | J30: Highway Safety Manual Equation 19-35, Table 19-26 | K30: http://onlinepubs.trb.org/onlinepubs/nchrp/docs/nchrp17-45_fr.pdf
B31: Widen Ramp Right Shoulder Width from X Feet to Y Feet | C31: All | D31: (3149*exp[-0.0539*(Y-X)]+10168*exp[-0.0259*(Y-X)])/13317 | E31: exp[-0.0539*(Y-X)] | F31: All | G31: Right Shoulder Width of X Feet | H31: Freeway Ramp | I31: Proportionally adjusted from FI and PDO to All | J31: Highway Safety Manual Equation 19-35, Table 19-26 | K31: http://onlinepubs.trb.org/onlinepubs/nchrp/docs/nchrp17-45_fr.pdf
A32: Intersections | B32: Add 3-Inch Yellow Retroreflective Sheeting to Signal Backplates | C32: All | D32: 0.85 | E32: 0.85 | F32: Urban | G32: No Retroreflective Sheeting on Signals | H32: Signalized Intersection | J32: http://www.cmfclearinghouse.org/detail.cfm?facid=1410
B33: Add Flashing Lights at Railroad Grade Crossing | C33: All | D33: 0.21 | E33: 0.21 | G33: Static Signs | H33: At-Grade Railroad Crossing | J33: http://www.cmfclearinghouse.org/detail.cfm?facid=485
B34: Add Intersection Lighting | C34: All | D34: 0.98 | E34: 0.97521825 | F34: All | G34: No Lighting | H34: Intersection | I34: Proportionally adjusted from the target crash type (nighttime) to all crashes. 3-leg,4-leg intersection | J34: http://www.cmfclearinghouse.org/detail.cfm?facid=4462
B35: Add Low-Volume Driveway at Approach Corner of Signalized Intersection | C35: All | D35: 0.82 | E35: 0.79 | G35: No Driveway within 50 Feet of Approach Corner | H35: Four-Leg Signalized Intersection | J35: http://www.cmfclearinghouse.org/detail.cfm?facid=9738 | K35: http://www.cmfclearinghouse.org/detail.cfm?facid=9734
B36: Add Low-Volume Driveway at Receiving Corner of Signalized Intersection | C36: All | D36: 1.33 | E36: 1.29 | G36: No Driveway within 50 Feet of Receiving Corner | H36: Four-Leg Signalized Intersection | J36: http://www.cmfclearinghouse.org/detail.cfm?facid=9740 | K36: http://www.cmfclearinghouse.org/detail.cfm?facid=9736
B37: Change Intersection Skew Angle from X to Y at a Rural Four-Leg Stop-Control Intersection of Two Lane Highways | C37: All | D37: e^(0.0054*[Y-X]) | E37: e^(0.0054*[Y-X]) | F37: Rural | G37: Intersection Skew Angle of X Degrees | H37: Four-Leg Minor Stop-Controlled Intersection of Rural Two-Lane Highways | J37: Highway Safety Manual Equation 10-23
B38: Change Intersection Skew Angle from X to Y at a Rural Four-Leg Stop-Control Intersection with a Multilane Highway | C38: All | D38: ((0.053*Y)/(1.43+0.053*Y)+1)/((0.053*X)/(1.43+0.053*X)+1) | E38: ((0.048*Y)/(0.72+0.048*Y)+1)/((0.048*X)/(0.72+0.048*X)+1) | F38: Rural | G38: Intersection Skew Angle of X Degrees | H38: Four-Leg Minor Stop-Controlled Intersection with a Multilane Highway | J38: Highway Safety Manual Equation 11-21 | K38: Highway Safety Manual Equation 11-20
B39: Change Intersection Skew Angle from X to Y at a Rural Three-Leg Stop-Control Intersection of Two Lane Highways | C39: All | D39: e^(0.004*[Y-X]) | E39: e^(0.004*[Y-X]) | F39: Rural | G39: Intersection Skew Angle of X Degrees | H39: Three-Leg Minor Stop-Controlled Intersection of Rural Two-Lane Highways | J39: Highway Safety Manual Equation 10-22
B40: Change Intersection Skew Angle from X to Y at a Rural Three-Leg Stop-Control Intersection with a Multilane Highway | C40: All | D40: ((0.016*Y)/(0.98+0.016*Y)+1)/((0.016*X)/(0.98+0.016*X)+1) | E40: ((0.017*Y)/(0.52+0.017*Y)+1)/((0.017*X)/(0.52+0.017*X)+1) | F40: Rural | G40: Intersection Skew Angle of X Degrees | H40: Three-Leg Minor Stop-Controlled Intersection with a Multilane Highway | J40: Highway Safety Manual Equation 11-19 | K40: Highway Safety Manual Equation 11-18
B41: Change Left Turn Phasing from Permissive to Protected/Permissive on One Approach | C41: All | D41: 1.031 | E41: 0.962 | F41: Urban | G41: Permissive Left-Turn Phasing | H41: Four Leg Signalized Intersection Approach | I41: I use permissive/protected, but it can also be protective/permissive (no difference between lead or lag). This applies to all left-turn phasing CMFs | J41: http://www.cmfclearinghouse.org/detail.cfm?facid=4269 | K41: http://www.cmfclearinghouse.org/detail.cfm?facid=4268
B42: Change Left Turn Phasing from Permissive to Flashing Yellow Arrow on One Approach | C42: All | D42: 0.753 | E42: 0.753 | F42: Urban | G42: Permissive Left-Turn Phasing | H42: Four Leg Signalized Intersection Approach | J42: http://www.cmfclearinghouse.org/detail.cfm?facid=4174
B43: Change Left Turn Phasing from Permissive to Protected on One Approach | C43: All | D43: 0.94 | E43: 0.94 | F43: Urban and Suburban | G43: Permissive Left-Turn Phasing | H43: Signalized Intersection Approach | J43: Highway Safety Manual Table 12-25
B44: Change Left Turn Phasing from Permissive/Protected to Flashing Yellow Arrow on All Approaches | C44: All | D44: 0.922 | E44: 0.86 | F44: Urban | G44: Protective/Permissive Left-Turn Phasing | H44: Signalized Intersection | J44: http://www.cmfclearinghouse.org/detail.cfm?facid=9668 | K44: http://www.cmfclearinghouse.org/detail.cfm?facid=4176
B45: Change Left Turn Phasing from Permissive/Protected to Protected on Major Approach | C45: All | D45: 0.63964 | E45: 0.52282 | F45: Urban | G45: Protective/Permissive Left-Turn Phasing | H45: Signalized Intersection | I45: Proportionally adjusted from the target crash type (angle and left-turn) to all crashes | J45: http://www.cmfclearinghouse.org/detail.cfm?facid=339
B46: Change Left Turn Phasing from Permissive/Protected to Protected on Minor Approach | C46: All | D46: 0.65 | E46: 0.53728 | F46: Urban | G46: Protective/Permissive Left-Turn Phasing | H46: Signalized Intersection | I46: Proportionally adjusted from the target crash type (angle and left-turn) to all crashes | J46: http://www.cmfclearinghouse.org/detail.cfm?facid=337
B47: Change Left Turn Phasing from Protected to Flashing Yellow Arrow on All Approaches | C47: All | D47: 1.338 | E47: 1.338 | F47: Urban | G47: Protected Left-Turn Phasing | H47: Four-Leg Signalized Intersection | J47: http://www.cmfclearinghouse.org/detail.cfm?facid=4172
B48: Change the Number of Approaches with Left Turn Lanes from X to Y at a Rural Four-Leg Signalized Intersection of Two Lane Highways | C48: All | D48: 0.82^[Y-X] | E48: 0.82^[Y-X] | F48: Rural | G48: Left Turn Lanes on X Approaches | H48: Four-Leg Signalized Intersection of Two-Lane Rural Roads | J48: Highway Safety Manual Table 10-13
B49: Change the Number of Approaches with Left Turn Lanes from X to Y at an Urban or Suburban Four-Leg Signalized Intersection | C49: All | D49: 0.90^[Y-X] | E49: 0.90^[Y-X] | F49: Urban and Suburban | G49: Left Turn Lanes on X Approaches | H49: Four-Leg Signalized Intersection with an Arterial | J49: Highway Safety Manual Table 12-24
B50: Change the Number of Approaches with Left Turn Lanes from X to Y at an Urban or Suburban Three-Leg Signalized Intersection | C50: All | D50: 0.93^[Y-X] | E50: 0.93^[Y-X] | F50: Urban and Suburban | G50: Left Turn Lanes on X Approaches | H50: Three-Leg Signalized Intersection with an Arterial | J50: Highway Safety Manual Table 12-24
B51: Change the Number of Approaches with Right Turn Lanes from X to Y at a Rural Four-Leg Signalized Intersection of Two Lane Highways | C51: All | D51: 0.96^[Y-X] | E51: 0.96^[Y-X] | F51: Rural | G51: Right Turn Lanes on X Approaches | H51: Four-Leg Signalized Intersection of Two-Lane Rural Roads | J51: Highway Safety Manual Table 10-14
B52: Change the Number of Approaches with Right Turn Lanes from X to Y at an Urban or Suburban Four-Leg Signalized Intersection | C52: All | D52: 0.96^[Y-X] | E52: 0.96^[Y-X] | F52: Urban and Suburban | G52: Right Turn Lanes on X Approaches | H52: Four-Leg Signalized Intersection with an Arterial | J52: Highway Safety Manual Table 12-24
B53: Change the Number of Approaches with Right Turn Lanes from X to Y at an Urban or Suburban Three-Leg Signalized Intersection | C53: All | D53: 0.96^[Y-X] | E53: 0.96^[Y-X] | F53: Urban and Suburban | G53: Right Turn Lanes on X Approaches | H53: Three-Leg Signalized Intersection with an Arterial | J53: Highway Safety Manual Table 12-24
B54: Change the Number of Approaches with Right Turn on Red Prohibitied from X to Y | C54: All | D54: 0.98^[Y-X] | E54: 0.98^[Y-X] | G54: Right Turn on Red Permitted | H54: Signalized Intersection | J54: http://www.cmfclearinghouse.org/detail.cfm?facid=5194
B55: Change the Number of Major Approaches with Left Turn Lanes from X to Y at a Rural Four-Leg Stop-Controlled Intersection of Two Lane Highways | C55: All | D55: 0.72^[Y-X] | E55: 0.72^[Y-X] | F55: Rural | G55: Left Turn Lanes on X Major Approaches | H55: Four-Leg Minor Stop-Controlled Intersection of Two-Lane Rural Roads | J55: Highway Safety Manual Table 10-13
B56: Change the Number of Major Approaches with Left Turn Lanes from X to Y at a Rural Four-Leg Stop-Controlled Intersection with a Multilane Highway | C56: All | D56: 0.72^[Y-X] | E56: 0.65^[Y-X] | F56: Rural | G56: Left Turn Lanes on X Major Approaches | H56: Four-Leg Minor Stop-Controlled Intersection with Multilane Highway | J56: Highway Safety Manual Table 11-22
B57: Change the Number of Major Approaches with Left Turn Lanes from X to Y at an Urban or Suburban Four-Leg Stop-Controlled Intersection with an Arterial | C57: All | D57: 0.73^[Y-X] | E57: 0.73^[Y-X] | F57: Urban and Suburban | G57: Left Turn Lanes on X Major Approaches | H57: Four-Leg Minor Stop-Controlled Intersection with an Arterial | J57: Highway Safety Manual Table 11-22
B58: Change the Number of Major Approaches with Right Turn Lanes from X to Y at a Rural Four-Leg Stop-Controlled Intersection of Two Lane Highways | C58: All | D58: 0.86^[Y-X] | E58: 0.86^[Y-X] | F58: Rural | G58: Right Turn Lanes on X Major Approaches | H58: Four-Leg Minor Stop-Controlled Intersection of Two-Lane Rural Roads | J58: Highway Safety Manual Table 10-14
B59: Change the Number of Major Approaches with Right Turn Lanes from X to Y at a Rural Four-Leg Stop-Controlled Intersection with a Multilane Highway | C59: All | D59: 0.86^[Y-X] | E59: 0.77^[Y-X] | F59: Rural | G59: Right Turn Lanes on X Major Approaches | H59: Four-Leg Minor Stop-Controlled Intersection with Multilane Highway | J59: Highway Safety Manual Table 11-23
B60: Change the Number of Major Approaches with Right Turn Lanes from X to Y at an Urban or Suburban Four-Leg Stop-Controlled Intersection with an Arterial | C60: All | D60: 0.86^[Y-X] | E60: 0.86^[Y-X] | F60: Urban and Suburban | G60: Right Turn Lanes on X Major Approaches | H60: Four-Leg Minor Stop-Controlled Intersection with an Arterial | J60: Highway Safety Manual Table 11-22
B61: Convert a Signalized T-Intersection to a Continuous Green-T Intersection | C61: All | D61: 0.958 | E61: 0.846 | G61: Signalized 3-Leg Intersection | H61: 3-Leg Intersection | J61: http://www.cmfclearinghouse.org/detail.cfm?facid=8656 | K61: http://www.cmfclearinghouse.org/detail.cfm?facid=8655
B62: Convert All-Way Stop-Controlled Intersection to a Modern Roundabout | C62: All | D62: 1.114 | E62: 0.554 | F62: All | G62: All-Way Stop-Controlled Intersection | H62: 3-Leg or 4-Leg Intersection | I62: Minimum of 4100 (total entering) to Maximum of 48100 (total entering) Annual Average Daily Traffic (AADT) | J62: http://www.cmfclearinghouse.org/detail.cfm?facid=4933 | K62: http://www.cmfclearinghouse.org/detail.cfm?facid=4932
B63: Convert At-Grade Intersection to a Diverging Diamond Interchange | C63: All | D63: 0.42 | E63: 0.42 | G63: At-Grade Four-Leg Signalized Intersection | H63: At-Grade Four Leg Intersection | J63: http://www.cmfclearinghouse.org/detail.cfm?facid=9658
B64: Convert At-Grade Intersection to Interchange | C64: All | D64: 0.58 | E64: 0.43 | G64: At-Grade Four-Leg Intersection | H64: At-Grade Four-Leg Intersection | J64: http://www.cmfclearinghouse.org/detail.cfm?facid=459 | K64: http://www.cmfclearinghouse.org/detail.cfm?facid=460
B65: Convert Four-Leg Intersection to Two Three-Leg Intersections | C65: All | D65: 1.03 | E65: 0.75 | F65: Urban | G65: Four-Leg Intersection | H65: Intersection | I65: Proportionally adjusted from FI and PDO to All. No fatal or all CMF provided in study, presume 1 or apply ABC CMF? | J65: http://www.cmfclearinghouse.org/detail.cfm?facid=201 | K65: http://www.cmfclearinghouse.org/detail.cfm?facid=203
B66: Convert from Minor Stop-Control to All-Way Stop-Control | C66: All | D66: 0.46 | E66: 0.3 | F66: Urban | G66: Minor Stop-Controlled Intersection | H66: Stop-controlled Intersection | I66: All severity CMF is proportionally adjusted from the Angle and Rear End CMF | J66: http://www.cmfclearinghouse.org/detail.cfm?facid=310 | K66: http://www.cmfclearinghouse.org/detail.cfm?facid=311 | L66: http://www.cmfclearinghouse.org/detail.cfm?facid=314
B67: Convert from Pedestal-Mounted Traffic Signal to Mast Arm-Mounted Traffic Signal | C67: All | D67: 0.71 | E67: 0.71 | G67: Signalized Intersection with Post-Mounted Traffic Signals | H67: Signalized Intersection | J67: http://www.cmfclearinghouse.org/detail.cfm?facid=1422
B68: Convert from Pedestal-Mounted Traffic Signal to Span Wire-Mounted Traffic Signal | C68: All | D68: 0.71 | E68: 0.71 | G68: Signalized Intersection with Post-Mounted Traffic Signals | H68: Signalized Intersection | J68: http://www.cmfclearinghouse.org/detail.cfm?facid=1422
B69: Convert from Span Wire-Mounted Traffic Signal to Mast Arm-Mounted Traffic Signal | C69: All | D69: 0.97 | E69: 0.98 | F69: All | G69: Signalized Intersection with Span Wire-Mounted Traffic Signals | H69: Signalized Intersection | J69: http://www.cmfclearinghouse.org/detail.cfm?facid=9405 | K69: http://www.cmfclearinghouse.org/detail.cfm?facid=9404
B70: Convert from two 3-leg intersections Offset by L Miles to a 4-leg intersection with Major Road AADT | C70: All | D70: ((0.05-0.005*ln(AADT))/L+0.322)/(2*(0.05-0.005*ln(AADT))/L+0.322) | E70: ((0.05-0.005*ln(AADT))/L+0.322)/(2*(0.05-0.005*ln(AADT))/L+0.322) | F70: Rural | G70: Two Three-Leg Intersections Offset by X Miles | H70: Rural Intersections | J70: Highway Safety Manual Equation 10-17
B71: Convert from Two-Way Stop-Control to Signalized Intersection | C71: Multi-Vehicle | D71: 0.57 | E71: 0.46 | F71: Urban/Suburban | G71: Minor Stop-Controlled Intersection | H71: Three-Leg or Four-Leg Intersection | J71: MassDOT CMF Memo
B72: Convert Minor Stop-Control Intersection to Modern Roundabout | C72: Multi-Vehicle | D72: 0.48 | E72: 0.16 | F72: Urban/Suburban | G72: Minor Stop-Controlled Intersection | H72: Four-Leg Intersection | J72: MassDOT CMF Memo
B73: Convert Signalized Intersection to Modern Roundabout | C73: All | D73: 0.792 | E73: 0.342 | F73: Urban and Suburban | G73: Signalized Intersection | H73: Three-leg, Four-leg Signalized Intersection | J73: http://www.cmfclearinghouse.org/detail.cfm?facid=4253 | K73: http://www.cmfclearinghouse.org/detail.cfm?facid=4252
B74: Convert Two-Way Stop-Control Intersection to Right-In-Right-Out Operations | C74: All | D74: 0.55 | E74: 0.55 | F74: Urban | G74: Three-Leg Stop-Controlled Intersection with Left-Turns Allowed | H74: Three-Leg Intersection | J74: http://www.cmfclearinghouse.org/detail.cfm?facid=9821
B75: Extend Left Turn Lane | C75: All | D75: 0.72 | E75: 0.76 | F75: Urban | G75: Turn Lane with Insufficient Length | H75: Signalized Intersection | I75: Proportionally adjusted from the target crash types (rear end and sideswipe) to all crashes | J75: https://journals.sagepub.com/doi/pdf/10.1177/0361198120920270
B76: Extend Right Turn Lane | C76: All | D76: 0.72 | E76: 0.76 | F76: Urban | G76: Turn Lane with Insufficient Length | H76: Signalized Intersection | I76: Proportionally adjusted from the target crash types (rear end and sideswipe) to all crashes | J76: https://journals.sagepub.com/doi/pdf/10.1177/0361198120920270
B77: Flatten Vertical Curve on Intersection Approach to Increase Stopping Sight Distance | C77: All | D77: 0.7 | E77: 0.62 | F77: Rural | G77: Intersection Downstream from a Crest Vertical Curve with Limited Sight Distance | H77: Rural Segment with Downstream Intersection | I77: Speed Limit 25-65 mph; applies to crest vertical curves. Taken as the inverse of the CMFs. | J77: http://www.cmfclearinghouse.org/detail.cfm?facid=6871 | K77: http://www.cmfclearinghouse.org/detail.cfm?facid=6870
B78: General Signalized Intersection Improvements at an HSIP Cluster | C78: Multi-Vehicle | D78: 0.81 | E78: 0.67 | F78: Urban/Suburban | G78: No Hidden Intersection, Driveway or Curve | H78: Signalized Intersection | I78: Improvements include any combination of repaving, new pavement markings, upgrading signal timing and equipment | J78: MassDOT CMF Memo
B79: High Friction Surface Treatment on Intersection Approach | C79: All | D79: 0.799 | E79: 0.799 | F79: All | G79: Intersection with Low Friction Numbers | H79: Signalized or Stop-Controlled Intersection | J79: http://www.cmfclearinghouse.org/detail.cfm?facid=2259
B80: Increase All Red Clearance Interval | C80: All | D80: 0.798 | E80: 0.863 | F80: Urban | G80: All-Red Clearance Interval Shorter than 1 Second | H80: Signalized Intersection | I80: Three-leg, four-leg signalized | J80: http://www.cmfclearinghouse.org/detail.cfm?facid=4212 | K80: http://www.cmfclearinghouse.org/detail.cfm?facid=4211
B81: Increase Intersection Triangle Sight Distance from X Feet of Available Sight Distance to Y Feet | C81: All | D81: 0.64*exp(203.368*[1/Y-1/X])+0.36 | E81: 0.71*exp(195.791*[1/Y-1/X])+0.29 | I81: Proportionally adjusted from the target crash type (angle and left-turn) to all crashes | J81: Eccles, Kimberly, Scott Himes, Kara Peach, Frank Gross, Richard J. Porter, Timothy J. Gates, and Christopher M. Monsere. Guidance for Evaluating the Safety Impacts of Intersection Sight Distance, National Cooperative Highway Research Program, Report 875, Washington, D.C., 2018. Available at https://www.nap.edu/download/25081
B82: Increase Yellow Change Interval by One Second | C82: All | D82: 1.14 | E82: 1.07 | F82: Urban | G82: Existing Yellow Change Interval | H82: Signalized Intersection | I82: Three-leg, four-leg signalized | J82: http://www.cmfclearinghouse.org/detail.cfm?facid=4208 | K82: http://www.cmfclearinghouse.org/detail.cfm?facid=4207
B83: Innovative Intersection - Median U-Turn | C83: All | D83: 0.633 | E83: 0.7732 | F83: Urban and Suburban | G83: Signalized Intersection | H83: Four-Leg Signalized Intersection | J83: http://www.cmfclearinghouse.org/detail.cfm?facid=10851 | K83: http://www.cmfclearinghouse.org/detail.cfm?facid=10852
B84: Innovative Intersection - RCUT | C84: All | D84: 0.8 | E84: 0.8 | F84: All | G84: Both signalized and stop-controlled intersections | H84: Four-Leg Intersection | I84: Speed Limit >= 55 mph | J84: http://www.cmfclearinghouse.org/detail.cfm?facid=10382
B85: Innovative Intersection - Displaced Left Turn | C85: All | D85: 0.88 | E85: 0.88 | G85: Signalized Intersection | H85: Four-Leg Intersection | J85: https://www.researchgate.net/publication/327915966_Development_of_Crash_Modification_Factors_for_Continuous_Flow_Intersections
B86: Innovative Intersection - Signalized RCUT | C86: All | D86: 0.7632 | E86: 0.05669 | F86: Urban and Suburban | G86: Signalized Intersection | H86: Four-Leg Signalized Intersection | J86: http://www.cmfclearinghouse.org/detail.cfm?facid=10880 | K86: http://www.cmfclearinghouse.org/detail.cfm?facid=10879
B87: Install Adaptive Traffic Signal Control | C87: All | D87: 0.948 | E87: 0.958 | G87: Traditional Traffic Signal | H87: Signalized Intersection | J87: http://www.cmfclearinghouse.org/detail.cfm?facid=10561 | K87: http://www.cmfclearinghouse.org/detail.cfm?facid=10559
B88: Install Advance Warning Dilemma Zone Protection System at Signalized Intersection | C88: All | D88: 0.918 | E88: 0.89 | G88: No Dilemma Zone Warning System | H88: High-Speed Signalized Intersection | J88: http://www.cmfclearinghouse.org/detail.cfm?facid=4857 | K88: http://www.cmfclearinghouse.org/detail.cfm?facid=4855
B89: Install Flashing Lights and Sound Signals at Railroad Grade Crossing | C89: All | D89: 0.5 | E89: 0.5 | G89: Static Signs | H89: At-Grade Railroad Crossing | J89: http://www.cmfclearinghouse.org/detail.cfm?facid=482
B90: Install Gates and Signs at Railroad Grade Crossing | C90: All | D90: 0.07 | E90: 0.07 | G90: Static Signs | H90: At-Grade Railroad Crossing | J90: http://www.cmfclearinghouse.org/detail.cfm?facid=493
B91: Install Red Signal Ahead Sign | C91: All | D91: 0.86 | E91: 0.8313 | F91: Urban | G91: Signalized Intersection without "Red Signal Ahead" Warning Sign | H91: Signalized Intersection | I91: Proportionally adjusted from FI and PDO to All. Proportionally adjusted from the target crash type (angle) to all crashes | J91: http://www.cmfclearinghouse.org/detail.cfm?facid=1684
B92: Install Transverse Rumble Strips on Stop Controlled Approaches | C92: All | D92: 0.87 | E92: 0.71 | F92: Rural | G92: No Transverse Rumble Strips | H92: Four-leg Stop-Controlled Intersection | J92: http://www.cmfclearinghouse.org/detail.cfm?facid=9045 | K92: http://www.cmfclearinghouse.org/detail.cfm?facid=9046
B93: Optimimize Total Change Period to Greater than ITE Recommended | C93: All | D93: 0.922 | E93: 0.937 | F93: Urban | G93: Total Change Interval Less Than ITE Recommended | H93: Signalized Intersection | J93: http://www.cmfclearinghouse.org/detail.cfm?facid=4219 | K93: http://www.cmfclearinghouse.org/detail.cfm?facid=4220
B94: Prohibit Left Turns and U-Turns with "No Left Turn" and "No U-Turn" Signs | C94: All | D94: 0.28 | E94: 0.28 | F94: Urban and Suburban | G94: Left Turns and U-Turns Allowed | H94: 3-Leg and 4-Leg Minor Stop-Controlled Intersections | J94: http://www.cmfclearinghouse.org/detail.cfm?facid=393
B95: Prohibit Left Turns with "No Left Turn" Signs | C95: All | D95: 0.32 | E95: 0.32 | F95: Urban and Suburban | G95: Left Turns Allowed | H95: 3-Leg and 4-Leg Minor Stop-Controlled Intersections | J95: http://www.cmfclearinghouse.org/detail.cfm?facid=391
B96: Provide a Left Turn Lane on a Major Approach at a Rural Three-Leg Stop-Controlled Intersection of Two Lane Highways | C96: All | D96: 0.56 | E96: 0.56 | F96: Rural | G96: No Left Turn Lane on Major Approach | H96: Three-Leg Minor Stop-Controlled Intersection of Two-Lane Rural Roads | J96: Highway Safety Manual Table 10-13
B97: Provide a Left Turn Lane on a Major Approach at a Rural Three-Leg Stop-Controlled Intersection with a Multilane Highway | C97: All | D97: 0.56 | E97: 0.45 | F97: Rural | G97: No Left Turn Lane on Major Approach | H97: Three-Leg Minor Stop-Controlled Intersection with Multilane Highway | J97: Highway Safety Manual Table 11-22
B98: Provide a Left Turn Lane on a Major Approach at an Urban or Suburban Three-Leg Stop-Controlled Intersection with an Arterial | C98: All | D98: 0.67 | E98: 0.67 | F98: Urban and Suburban | G98: No Left Turn Lane on Major Approach | H98: Three-Leg Minor Stop-Controlled Intersection with an Arterial | J98: Highway Safety Manual Table 11-22
B99: Provide a Right Turn Lane on a Major Approach at a Rural Three-Leg Stop-Controlled Intersection of Two Lane Highways | C99: All | D99: 0.86 | E99: 0.86 | F99: Rural | G99: No Right Turn Lane on Major Approach | H99: Three-Leg Minor Stop-Controlled Intersection of Two-Lane Rural Roads | J99: Highway Safety Manual Table 10-14
B100: Provide a Right Turn Lane on a Major Approach at a Rural Three-Leg Stop-Controlled Intersection with a Multilane Highway | C100: All | D100: 0.86 | E100: 0.77 | F100: Rural | G100: No right Turn Lane on Major Approach | H100: Three-Leg Minor Stop-Controlled Intersection with Multilane Highway | J100: Highway Safety Manual Table 11-23
B101: Provide a Right Turn Lane on a Major Approach at an Urban or Suburban Three-Leg Stop-Controlled Intersection with an Arterial | C101: All | D101: 0.86 | E101: 0.86 | F101: Urban and Suburban | G101: No Right Turn Lane on Major Approach | H101: Three-Leg Minor Stop-Controlled Intersection with an Arterial | J101: Highway Safety Manual Table 11-22
B102: Provide Advance Street Name Signs | C102: All | D102: 0.984 | E102: 0.99 | F102: All | G102: No Advanced Street Signs | H102: Signalized Intersection | J102: http://www.cmfclearinghouse.org/detail.cfm?facid=2450 | K102: http://www.cmfclearinghouse.org/detail.cfm?facid=2449
B103: Remove Minor Street Leg from Four Leg Signalized Intersection | C103: All | D103: 0.74 | E103: 0.74 | F103: Urban and Suburban | G103: Four-Leg Signalized Intersection | H103: Signalized Intersection | I103: Cross-sectional comparison of 4SG and 3SG SPFs | J103: MassDOT Intersection SPFs
B104: Remove Minor Street Leg from Four Leg Stop-Controlled Intersection | C104: All | D104: 0.98 | E104: 0.98 | F104: Urban and Suburban | G104: Four-Leg Stop-Controlled Intersection | H104: Stop-Controlled Intersection | I104: Cross-sectional comparison of 4ST and 3ST SPFs | J104: MassDOT Intersection SPFs
B105: Replace 8-Inch Signal Heads with 12-Inch Signal Heads | C105: All | D105: 0.97 | E105: 0.97 | G105: Signalized Intersection with 8-Inch Signal Heads | H105: Signalized Intersection | J105: http://www.cmfclearinghouse.org/detail.cfm?facid=2334
B106: Replace Incandescent Signal Bulbs with LEDs - 3-Leg Intersection | C106: All | D106: 1.04 | E106: 1.17 | F106: Urban | G106: Incandescent Bulbs | H106: 3-Leg Signalized Intersection | J106: http://www.cmfclearinghouse.org/detail.cfm?facid=4891 | K106: http://www.cmfclearinghouse.org/detail.cfm?facid=4890
B107: Replace Incandescent Signal Bulbs with LEDs - 4-Leg Intersection | C107: All | D107: 0.982 | E107: 1.047 | F107: Urban | G107: Incandescent Bulbs | H107: 4-Leg Signalized Intersection | J107: http://www.cmfclearinghouse.org/detail.cfm?facid=4899 | K107: http://www.cmfclearinghouse.org/detail.cfm?facid=4898
B108: Shift Left Turn Lane to Create Positive Offset | C108: All | D108: 0.662 | E108: 0.644 | G108: Left Turn Lanes with Negative Offset | H108: Four-Leg Intersection | J108: http://www.cmfclearinghouse.org/detail.cfm?facid=6096 | K108: http://www.cmfclearinghouse.org/detail.cfm?facid=6095
B109: Signalizing driveway (Commercial, industrial, residential?) | C109: Multi-Vehicle | D109: 0.57 | E109: 0.46 | F109: Urban/Suburban | G109: Minor Stop-Controlled Intersection | H109: Three-Leg or Four-Leg Intersection | J109: MassDOT CMF Memo
B110: Systemic Stop-Control Intersection Improvements | C110: All | D110: 0.917 | E110: 0.899 | F110: All | G110: Stop-Controlled Intersection without Supplemental Signage or Pavement Markings | H110: Stop-Controlled Intersection | J110: http://www.cmfclearinghouse.org/detail.cfm?facid=8867 | K110: http://www.cmfclearinghouse.org/detail.cfm?facid=8866
A111: Freeway Segments | B111: Add Roadside Guardrail | C111: All | D111: 1.00043628 | E111: 0.9750513528 | G111: No Roadside Barrier Present | H111: Freeway Segment | I111: Proportionally adjusted from the target crash type (run off road) to all crashes; Speed Limit 50-70 mph | J111: http://www.cmfclearinghouse.org/detail.cfm?facid=8395 | K111: http://www.cmfclearinghouse.org/detail.cfm?facid=8394
B112: Add Segment Lighting | C112: All | D112: 0.94 | E112: 0.9034293194 | F112: All | G112: No Lighting Present | H112: Freeway/Expressway Segment | I112: Proportionally adjusted from FI and PDO to All. Proportionally adjusted from the target crash type (nighttime) to all crashes | J112: http://www.cmfclearinghouse.org/detail.cfm?facid=581 | K112: http://www.cmfclearinghouse.org/detail.cfm?facid=582
B113: Add Thru Lane on Segment (via Restriping) | C113: All | D113: 0.93 | E113: 0.76 | F113: Urban | G113: Fewer Lanes | H113: Freeway Segment | I113: Speed Limit >50 mph; Proportionally adjusted from FI and PDO to All | J113: http://www.cmfclearinghouse.org/detail.cfm?facid=8334
B114: Adding a New Off-Ramp | C114: All | D114: Contact MassDOT | E114: Contact MassDOT | F114: All | G114: No Off Ramp Present | H114: Freeway Segment | I114: CMF spreadsheet to be provided "Entrance Ramp Calculator to Calculate CMF". Proportionally adjusted from FI and PDO to All. These CMFs provide a rough estimate of expected changes to safety performance with interchange modifications. We recommend using IHSDM or ISATe to perform a more detailed review. | J114: HSM Chapters 18 and 19
B115: Adding a New On-Ramp | C115: All | D115: Contact MassDOT | E115: Contact MassDOT | F115: All | G115: No On Ramp Present | H115: Freeway Segment | I115: CMF spreadsheet to be provided "Exit Ramp Calculator to Calculate CMF". These CMFs provide a rough estimate of expected changes to safety performance with interchange modifications. We recommend using IHSDM or ISATe to perform a more detailed review. Proportionally adjusted from FI and PDO to All | J115: HSM Chapters 18 and 19
B116: Addition of raised pavement reflectors | C116: All | D116: 0.99 | E116: 0.9785398487 | F116: Rural | G116: No raised pavement markers | H116: Freeway/Expressway Segment | I116: Proportionally adjusted from FI and PDO to All. Proportionally adjusted from the target crash type (nighttime) to all crashes | J116: http://www.cmfclearinghouse.org/detail.cfm?facid=110
B117: Change from other type of weave to Type B Weave | C117: Multi-Vehicle | D117: Contact MassDOT | E117: Contact MassDOT | F117: All | G117: Non-Type B Weave Present | H117: Freeway Segment | I117: CMF spreadsheet to be provided "Convert to Type B Weave". These CMFs provide a rough estimate of expected changes to safety performance with interchange modifications. We recommend using IHSDM or ISATe to perform a more detailed review. Proportionally adjusted from FI and PDO to All | J117: HSM Equation 18-30 through 18-34, Table 18-20
B118: Eliminate Weaving Condition | C118: Multi-Vehicle | D118: Contact MassDOT | E118: Contact MassDOT | F118: All | G118: Weave Present | H118: Freeway Segment | I118: CMF spreadsheet to be provided "Adding or Eliminating Weave". These CMFs provide a rough estimate of expected changes to safety performance with interchange modifications. We recommend using IHSDM or ISATe to perform a more detailed review. Proportionally adjusted from FI and PDO to All | J118: HSM Equation 18-30 through 18-34, Table 18-20
B119: Install Median Cable Barrier | C119: All | D119: 0.99 | E119: 0.9911684958 | F119: All | G119: Traversable Median with No Barrier | H119: Divided Freeway or Expressway | I119: Proportionally adjusted from FI and PDO to All. Proportionally adjusted from the target crash type (cross-median) to all crashes | J119: MassDOT CMF Memo
B120: Install Median Concrete Barrier | C120: All | D120: 0.99 | E120: 0.9877340219 | F120: Rural | G120: Traversable Median with No Barrier | H120: Divided Freeway or Expressway | I120: Proportionally adjusted from FI and PDO to All. Proportionally adjusted from the target crash type (cross-median) to all crashes | J120: http://www.cmfclearinghouse.org/detail.cfm?facid=2256
B121: Install Median Guardrail | C121: All | D121: 0.99 | E121: 0.9904325371 | G121: Traversable Median with No Barrier | H121: Divided Freeway or Expressway | I121: Proportionally adjusted from FI and PDO to All. Proportionally adjusted from the target crash type (cross-median) to all crashes | J121: http://www.cmfclearinghouse.org/detail.cfm?facid=51
B122: Install Rumble Strips on Inside Shoulder | C122: Single-Vehicle | D122: 0.95 | E122: 0.811 | F122: All | G122: Paved Shoulder with No Rumble Strips | H122: Freeway or Expressway Tangent | I122: Proportionally adjusted from FI and PDO to All | J122: Highway Safety Manual Equations 18-36 & 18-37
B123: Install Rumble Strips on Outside Shoulder | C123: Single-Vehicle | D123: 0.95 | E123: 0.811 | F123: All | G123: Paved Shoulder with No Rumble Strips | H123: Freeway or Expressway Tangent | I123: Proportionally adjusted from FI and PDO to All | J123: Highway Safety Manual Equations 18-36 & 18-37
B124: Install Variable Speed Limits | C124: All | D124: 0.71 | E124: 0.71 | F124: Urban | G124: Static Speed Limit | H124: Divided Interstate | I124: Speed Limit > 40 mph; Proportionally adjusted from FI and PDO to All | J124: http://www.cmfclearinghouse.org/detail.cfm?facid=8730
B125: Install/Upgrade Horizontal Curve Signage with Flourescent Sheeting, Warning Signs, and Flashing Beacons | C125: All | D125: 0.606 | E125: 0.606 | G125: No Curve Delineation Treatment | H125: Horizontal Curve on Expressway | I125: Italian Study | J125: http://www.cmfclearinghouse.org/detail.cfm?facid=1851
B126: Introduce Weaving Condition | C126: Multi-Vehicle | D126: Contact MassDOT | E126: Contact MassDOT | F126: All | G126: No Weave Present | H126: Freeway Segment | I126: CMF spreadsheet to be provided "Adding or Eliminating Weave". These CMFs provide a rough estimate of expected changes to safety performance with interchange modifications. We recommend using IHSDM or ISATe to perform a more detailed review. Proportionally adjusted from FI and PDO to All | J126: HSM Equation 18-30 through 18-34, Table 18-20
B127: Widen Average Clear Zone from X Feet to Y Feet | C127: Single-Vehicle | D127: (74548*exp(-0.00451*[X-Y])+195150)/269698 | E127: exp(-0.00451*[X-Y]) | F127: All | G127: Average Clear Zone Width of X Feet | H127: Freeway Segment | I127: Proportionally adjusted from FI and PDO to All | J127: Highway Safety Manual Equation 18-38
B128: Widen Median from X Feet to Y Feet - Multi-Vehicle Crashes | C128: Multi-Vehicle | D128: (74548*exp(-0.00302*[Y-X])+195150*exp(-0.00291*[Y-X]))/269698 | E128: exp(-0.00302*[Y-X]) | F128: All | G128: Median Width of X Feet | H128: Divided Freeway Segment with No Median Barrier | I128: Proportionally adjusted from FI and PDO to All | J128: Highway Safety Manual Table 18-17
B129: Widen Median from X Feet to Y Feet - Single-Vehicle Crashes | C129: Single-Vehicle | D129: (74548*exp(0.00102*[Y-X])+195150*exp(-0.00289*[Y-X]))/269698 | E129: exp(0.00102*[Y-X]) | F129: All | G129: Median Width of X Feet | H129: Divided Freeway Segment with No Median Barrier | I129: Proportionally adjusted from FI and PDO to All | J129: Highway Safety Manual Table 18-17
B130: Widen Paved Inside Shoulder from X Feet to Y Feet | C130: All | D130: (74548*exp(0.0172*[X-Y])+195150*exp(0.0153*[X-Y]))/269698 | E130: exp(0.0172*[X-Y]) | F130: All | G130: Paved Inside Shoulder of X Feet | H130: Freeway Segment | I130: Proportionally adjusted from FI and PDO to All | J130: Highway Safety Manual Equation 18-26, Table 18-16
B131: Widen Paved Outside Shoulder on Curve from X Feet to Y Feet | C131: Single-Vehicle | D131: (74548*exp(0.0897*[X-Y])+195150*exp(0.0840*[X-Y]))/269698 | E131: exp(0.0897*[X-Y]) | F131: All | G131: Paved Outside Shoulder of X Feet | H131: Freeway Horizontal Curve | I131: Proportionally adjusted from FI and PDO to All | J131: Highway Safety Manual Eqaution 18-35, Table 18-21
B132: Widen Paved Outside Shoulder on Tangent from X Feet to Y Feet | C132: Single-Vehicle | D132: (74548*exp(0.0647*[X-Y])+195150)/269698 | E132: exp(0.0647*[X-Y]) | F132: All | G132: Paved Outside Shoulder of X Feet | H132: Freeway Tangent | I132: Proportionally adjusted from FI and PDO to All | J132: Highway Safety Manual Eqaution 18-35, Table 18-21
A134: Non-Freeway Segments | B134: Add Auxiliary Passing Lane | C134: All | D134: 0.63 | E134: 0.58 | F134: Rural | G134: No Passing Lanes Present but Operations Indicate Need | H134: Two-Lane Undivided Highway | I134: Proportionally adjusted from FI and PDO to All | J134: http://www.cmfclearinghouse.org/detail.cfm?facid=4083 | K134: http://www.cmfclearinghouse.org/detail.cfm?facid=4082
B135: Add Breakaway Supports for Utility Poles in Clear Zone | C135: All | D135: 1 | E135: 0.9934672278 | F135: Rural | G135: Utility Poles without Breakaway Supports | H135: Roadway with Utility Poles along Roadside | I135: Proportionally adjusted from FI and PDO to All. Proportionally adjusted from the target crash type (fixed-object crashes) to all crashes. Based on an assumption of an 1 step improvement in roadside hazard rating | J135: http://www.cmfclearinghouse.org/detail.cfm?facid=5187
B136: Add Centerline Rumble Strips | C136: All | D136: 0.97 | E136: 0.957654361 | F136: Rural | G136: No Centerline Rumble Strips | H136: Two Lane Undivided Highway | I136: Proportionally adjusted from FI and PDO to All. Proportionally adjusted from the target crash type (head-on and sideswipe-opposite) to all crashes | J136: http://www.cmfclearinghouse.org/detail.cfm?facid=3360 | K136: http://www.cmfclearinghouse.org/detail.cfm?facid=3355
B137: Add Fluorescent Sheeting to Chevron Signs | C137: All | D137: 0.82 | E137: 0.75 | F137: Rural | G137: No Sign or Sign Without Flourescent Sheeting | H137: Two Lane Undivided Highway | J137: http://www.cmfclearinghouse.org/detail.cfm?facid=2433 | K137: http://www.cmfclearinghouse.org/detail.cfm?facid=2431
B138: Add SafetyEdge | C138: All | D138: 0.97 | E138: 0.9572912415 | F138: Rural | G138: Steep Pavement Edge Dropoff | H138: Two Lane Undivided Highway | I138: Proportionally adjusted from the target crash type (run off road) to all crashes. Proportionally adjusted from FI and PDO to All | J138: http://www.cmfclearinghouse.org/detail.cfm?facid=9661
B139: Add Segment Lighting | C139: All | D139: 0.93 | E139: 0.87649829 | F139: All | G139: No Lighting Present | H139: Urban Street | I139: Proportionally adjusted from the target crash type (nighttime) to all crashes. Proportionally adjusted from FI and PDO to All | J139: http://www.cmfclearinghouse.org/detail.cfm?facid=7774
B140: Add Shoulder Rumble Strips | C140: All | D140: 0.98 | E140: 0.9654262431 | F140: Rural | G140: No Shoulder Rumble Strips Present | H140: Two Lane Undivided Highway | I140: Proportionally adjusted from the target crash type (run off road) to all crashes. Proportionally adjusted from FI and PDO to All | J140: http://www.cmfclearinghouse.org/detail.cfm?facid=3447 | K140: http://www.cmfclearinghouse.org/detail.cfm?facid=3442
B141: Add Thru Lane on Segment - Convert from Rural Two Lane Roadway to Four Lane Divided | C141: All | D141: 0.712 | E141: 0.549 | F141: Rural | G141: Two Lane Undivided Highway with Congestion-Related Safety Issues | H141: Two Lane Undivided Highway Segment | J141: http://www.cmfclearinghouse.org/detail.cfm?facid=7569 | K141: http://www.cmfclearinghouse.org/detail.cfm?facid=7571
B142: Add Thru Lane on Segment - Convert from Urban Two Lane Roadway to Four Lane Divided | C142: All | D142: 0.341 | E142: 0.367 | F142: Urban | G142: Two Lane Undivided Highway with Congestion-Related Safety Issues | H142: Two Lane Undivided Highway Segment | J142: http://www.cmfclearinghouse.org/detail.cfm?facid=7568 | K142: http://www.cmfclearinghouse.org/detail.cfm?facid=7566
B143: Add TWLTL - 2U to 3T | C143: All | D143: 0.797 | E143: 0.739 | F143: All | G143: No Two Way Left Turn Lane | H143: Two Lane Undivided Highway | J143: http://www.cmfclearinghouse.org/detail.cfm?facid=2341 | K143: http://www.cmfclearinghouse.org/detail.cfm?facid=2346
B144: Add TWLTL - 4U to 5T | C144: All | D144: 0.564 | E144: 0.564 | F144: Urban and Suburban | G144: 4-Lane Undivided Street | H144: Urban or Suburban Arterial | I144: This CMF applies in areas with a population between 5,000 and 25,000 people. | J144: http://www.cmfclearinghouse.org/detail.cfm?facid=9418
B145: Add Wet-Reflective Pavement Markings | C145: All | D145: 0.825 | E145: 0.595 | G145: Standard Pavement Markings | H145: Multilane Highway | J145: http://www.cmfclearinghouse.org/detail.cfm?facid=8110 | K145: http://www.cmfclearinghouse.org/detail.cfm?facid=8109
B146: Change Roadside Hazard Rating from X to Y by Flattening Roadside Slope | C146: All | D146: exp(0.0668*(Y-X)) | E146: exp(0.0668*(Y-X)) | F146: Rural | G146: Roadside Slope Associated with Roadside Hazard Rating of X | H146: Two Lane Rural Road | J146: http://www.cmfclearinghouse.org/detail.cfm?facid=5187 | K146: https://www.fhwa.dot.gov/publications/research/safety/99207/appd.cfm
B147: Change Roadside Hazard Rating from X to Y by Widening Clear Zone | C147: All | D147: exp(0.0668*(Y-X)) | E147: exp(0.0668*(Y-X)) | F147: Rural | G147: Roadside Clear Zone Associated with Roadside Hazard Rating of X | H147: Two Lane Rural Road | J147: http://www.cmfclearinghouse.org/detail.cfm?facid=5187 | K147: https://www.fhwa.dot.gov/publications/research/safety/99207/appd.cfm
B148: Convert Angle Parking to Parallel Parking | C148: All | D148: 0.91 | E148: 0.9563129301 | F148: Urban | G148: Angle Parking | H148: Local Roadways | I148: Proportionally adjusted from the target crash type (parking-related) to all crashes. Proportionally adjusted from FI and PDO to All | J148: http://www.cmfclearinghouse.org/detail.cfm?facid=164
B149: Convert Edgeline Markings from 4" to 6" | C149: All | D149: 0.825 | E149: 0.635 | F149: Rural | G149: 4-inch edgelines | H149: Two Lane Undivided Highway | I149: Crash type also excludes intersection/interchange crashes and winter month crashes | J149: https://www.cmfclearinghouse.org/detail.cfm?facid=4736 | K149: http://www.cmfclearinghouse.org/detail.cfm?facid=4737
B150: Decrease Lane Width on Urban Street | C150: All | D150: Check CMF Clearinghouse for Relevant Lane Width Change: http://www.cmfclearinghouse.org/study_detail.cfm?stid=439 | E150: Check CMF Clearinghouse for Relevant Lane Width Change: http://www.cmfclearinghouse.org/study_detail.cfm?stid=439 | F150: Urban | G150: Lane width of 10, 11, or 12 feet | H150: Urban Street | I150: Average for 1' and 2' lane width reductions, average AADT from study | J150: http://www.cmfclearinghouse.org/study_detail.cfm?stid=439
B151: Flatten Crest Vertical Curve | C151: All | D151: 0.82 | E151: 0.76 | F151: Rural | G151: Crest Vertical Curve without Sufficient Sight Distance | H151: Crest Vertical Curve on Two Lane Undivided Highway | I151: Speed Limit 25-65 mph | J151: http://www.cmfclearinghouse.org/detail.cfm?facid=6869 | K151: http://www.cmfclearinghouse.org/detail.cfm?facid=6868
B152: Flatten Horizontal Curve | C152: All | D152: 0.315 | E152: 0.259 | F152: Rural | G152: Horizontal Curve with Sharp Horizontal Curve | H152: Two Lane Rural Road | I152: Minimum of 400 to Maximum of 12000 Annual Average Daily Traffic (AADT) | J152: http://www.cmfclearinghouse.org/detail.cfm?facid=9651 | K152: http://www.cmfclearinghouse.org/detail.cfm?facid=9525
B153: High Friction Surface Treatment on Horizontal Curve | C153: All | D153: 0.529 | E153: 0.49 | G153: Perceived Friction-Related Crash problem | H153: Horizontal Curve | J153: http://www.cmfclearinghouse.org/detail.cfm?facid=10319 | K153: http://www.cmfclearinghouse.org/detail.cfm?facid=10318
B154: Horizontal Curve Warning Signs and Flashers | C154: All | D154: 0.42 | E154: 0.42 | F154: Rural | G154: Horizontal Curve with Speed-Related Crash Issues | H154: Rural Highway | J154: https://www.fhwa.dot.gov/hfl/partnerships/tapco/final_report.pdf
B155: Implement Traffic Calming Measure(s) | C155: All | D155: 0.68 | E155: 0.67 | F155: Urban | G155: No Traffic Calming Measure Present | H155: Minor Collector | I155: Generic traffic calming CMF | J155: http://www.cmfclearinghouse.org/detail.cfm?facid=128 | K155: http://www.cmfclearinghouse.org/detail.cfm?facid=129
B156: Improve Roadside by Reducing Roadside Hazard Rating from X to Y | C156: All | D156: exp(0.0668*(Y-X)) | E156: exp(0.0668*(Y-X)) | F156: Rural | G156: Roadside Hazard Rating of X | H156: Two Lane Undivided Highway | J156: http://www.cmfclearinghouse.org/detail.cfm?facid=5187 | K156: https://www.fhwa.dot.gov/publications/research/safety/99207/appd.cfm
B157: Improve STOP Sign Retroreflectivity at Stop-Controlled Intersection | C157: All | D157: 0.946 | E157: 0.906 | F157: All | G157: STOP Sign with Low Retroreflectivity | H157: Stop-Controlled Intersection | J157: http://www.cmfclearinghouse.org/detail.cfm?facid=6052 | K157: http://www.cmfclearinghouse.org/detail.cfm?facid=6053
B158: Increase Pavement Marking Retroreflectivity | C158: All | D158: 0.95 | E158: 0.950599316 | F158: Rural | G158: Longtiudinal Pavement Markings with Low Retroreflectivity | H158: Two-lane rural highway | I158: Proportionally adjusted from the target crash type (nighttime) to all crashes. Proportionally adjusted from FI and PDO to All | J158: http://www.cmfclearinghouse.org/detail.cfm?facid=6842
B159: Install Dynamic Speed Feedback Sign | C159: All | D159: 0.95 | E159: 0.95 | F159: Rural | G159: Horziontal Curve with Speeding Problem | H159: Horizontal Curve on Two Lane Highway with a Posted Speed Limit Greater than 45 MPH | I159: Speed Limit 50-65 mph | J159: http://www.cmfclearinghouse.org/detail.cfm?facid=6885
B160: Install Light-Reflecting Devices to Scare Away Animals | C160: All | D160: 1 | E160: 0.9999783958 | G160: No Light-Reflecting Devices | H160: Roadway Segment with a History of Animal Crashes | I160: Proportionally adjusted from the target crash type (vehicle-animal) to all crashes | J160: http://www.cmfclearinghouse.org/detail.cfm?facid=9149
B161: Install Roadside Barrier | C161: All | D161: 0.97 | E161: 0.9105149822 | G161: Unprotected Roadside Embankment | H161: Fill Segment | I161: Proportionally adjusted from the target crash type (run off road) to all crashes. Proportionally adjusted from FI and PDO to All. Proportionally adjusted from K and ABC to FI. | J161: http://www.cmfclearinghouse.org/detail.cfm?facid=37 | K161: http://www.cmfclearinghouse.org/detail.cfm?facid=38 | L161: http://www.cmfclearinghouse.org/detail.cfm?facid=39
B162: Install Speed Cameras | C162: All | D162: 0.46 | E162: 0.52 | F162: Urban | G162: No Speed Cameras Present | H162: Principal Arterial - Other | J162: http://www.cmfclearinghouse.org/detail.cfm?facid=2915 | K162: http://www.cmfclearinghouse.org/detail.cfm?facid=2921
B163: Prohibit On-Street Parking | C163: All | D163: 0.75 | E163: 0.8 | F163: Urban | G163: Parking Permitted on Street | H163: Minor Arterial | I163: Proportionally adjusted from FI and PDO to All | J163: http://www.cmfclearinghouse.org/detail.cfm?facid=153 | K163: http://www.cmfclearinghouse.org/detail.cfm?facid=154
B164: Reduce Access Point Density from X Driveways per Mile to Y Driveways per Mile | C164: All | D164: exp(0.0232*[Y-X]) | E164: exp(0.0152*[Y-X]) | F164: Rural | G164: Driveway Density of X Driveways per Mile | H164: Two Lane Undivided Highway | J164: http://www.cmfclearinghouse.org/detail.cfm?facid=1973 | K164: http://www.cmfclearinghouse.org/detail.cfm?facid=2248
B165: Reduce Superelevation Deficiency on Horizontal Curve from X to Y, Superelevation Deficiency Between 0.01 and 0.02 Feet per Foot | C165: All | D165: (1+6*(Y-0.01))/(1+6*(X-0.01)) | E165: (1+6*(Y-0.01))/(1+6*(X-0.01)) | F165: Rural | G165: Superelevation Deficiency of X Feet per Foot, X is Between 0.01 and 0.02 | H165: Horizontal Curve on Two Lane Undivided Highway | J165: http://www.cmfclearinghouse.org/detail.cfm?facid=5183
B166: Reduce Superelevation Deficiency on Horizontal Curve from X to Y, Superelevation Deficiency Greater than 0.02 Feet per Foot | C166: All | D166: (1+3*(Y-0.02))/(1+3*(X-0.02)) | E166: (1+3*(Y-0.02))/(1+3*(X-0.02)) | F166: Rural | G166: Superelevation Deficiency of X Feet per Foot, X is Greater than 0.02 | H166: Horizontal Curve on Two Lane Undivided Highway | J166: http://www.cmfclearinghouse.org/detail.cfm?facid=5184
B167: Resurface Rural Roadway | C167: All | D167: 1.03 | E167: 0.74 | F167: Rural | G167: Poor Pavement Condition | H167: Two Lane Undivided Highway | I167: Minimum of 410 to Maximum of 26943 Annual Average Daily Traffic (AADT) | J167: http://www.cmfclearinghouse.org/detail.cfm?facid=5629 | K167: http://www.cmfclearinghouse.org/detail.cfm?facid=5626
B168: Resurface Urban Street | C168: All | D168: 0.929 | E168: 0.787 | F168: Urban | G168: Old Pavement | H168: Urban Street, Signalized Intersection | J168: http://www.cmfclearinghouse.org/detail.cfm?facid=10280 | K168: http://www.cmfclearinghouse.org/detail.cfm?facid=9289
B169: Road Diet - 4U to 3T | C169: All | D169: 0.71 | E169: 0.71 | F169: Urban | G169: Four Lane Undivided Roadway | H169: Four Lane Undivided Minor Arterial | J169: http://www.cmfclearinghouse.org/detail.cfm?facid=199
B170: Widen Average Lane Width for Rural Roadway by 1 Foot | C170: All | D170: 0.93 | E170: 0.93 | F170: Rural | G170: Rural Roadway with Narrow Lanes | H170: Rural Highway | I170: Averaged 1' Lane Width Widening and Used HSM Adjustment Factor | J170: Highway Safety Manual Table 10-8 and Equation 10-11
B171: Widen Average Lane Width for Urban Street by 1 Foot | C171: All | D171: 0.84 | E171: 0.9 | F171: Urban | G171: Urban Street with Narrow Lanes | H171: Urban Street | I171: Average of 1' increases from 10 to 11 and 11 to 12 | J171: http://www.cmfclearinghouse.org/study_detail.cfm?stid=439
B172: Widen Paved Shoulder on Rural Roadway | C172: All | D172: 0.93 | E172: 0.93 | F172: Rural | G172: Narrow Shoulder | H172: Rural Highway | J172: Highway Safety Manual Table 10-9

Sheet Input
A1: Required Manual Input | C1: Optional Manual Input | E1: Select from Drop-Down List
A3: General Information and Input Data for Urban and Suburban Arterial Intersections
A4: General Information | E4: Location Information
A5: Analyst | E5: City
A6: Agency or Company | E6: Intersection
A7: Date Performed (MM/DD/YYYY): | E7: Jurisdiction
E8: Analysis Year
A10: Intersection Data
A11: Intersection Type: | C11: 3ST MassDOT
A12: Intersection Lighting (Present/Not Present): | C12: Not Present
A15: Stop Controlled
A16: Number of major-road approaches with left-turn lanes (0,1,2) | G16: 0
A17: Number of major-road approaches with right-turn lanes (0,1,2) | G17: 0
A19: Signal Controlled
A20: Number of approaches with left-turn lanes (0,1,2,3,4) [for 3SG, use maximum value of 3] | G20: 0
A21: Number of approaches with right-turn lanes (0,1,2,3,4) [for 3SG, use maximum value of 3] | G21: 0
A22: Number of approaches with left-turn signal phasing [for 3SG, use maximum value of 3] | G22: 0
A23: Type of left-turn signal phasing for Leg #1 | G23: Permissive
A24: Type of left-turn signal phasing for Leg #2 | G24: Permissive
A25: Type of left-turn signal phasing for Leg #3 | G25: Permissive
A26: Type of left-turn signal phasing for Leg #4 | G26: Permissive
A27: Number of approaches with right-turn-on-red prohibited [for 3SG, use maximum value of 3] | G27: 0
A28: Intersection red light cameras (present/not present) | G28: Not Present
A29: Sum of all pedestrian crossing volumes (PedVol) -- Signalized intersections only | G29: 1
A30: Maximum number of lanes crossed by a pedestrian (nlanesx) | G30: 0
A31: Number of bus stops within 300 m (1,000 ft) of the intersection | G31: 0
A32: Schools within 300 m (1,000 ft) of the intersection (present/not present) | G32: Not Present
A33: Number of alcohol sales establishments within 300 m (1,000 ft) of the intersection | G33: 0
A35: Step 1 – Expected Change in Safety Performance
A37: Design Year AADT(Major):
A38: AADT Check | D38: =IF(D39<>"",eval('Construction - do not delete'!$AB$84),"") -> 
A39: Design Year AADT(Minor):
A40: AADT Check | D40: =IF(D39<>"",eval('Construction - do not delete'!$AB$84),"") -> 
D41: =IF(OR(D37="",D39=""),"Please Enter Both Design Year AADT's","") -> Please Enter Both Design Year AADT's
A42: Step 2 – Expected Change in Safety Performance
A43: Facility Type: | B43: =INDEX(Table57[],MATCH(C43,Table57[Facility Type],0),2) -> U3ST | C43: =IF(C11="3sg MassDOT",'Construction - do not delete'!H83, IF(C11="4SG MassDOT",'Construction - do not delete'!H85,IF(C11="3ST MassDOT", 'Construction - do not delete'!H84,IF(C11="4ST MassDOT",'Construction - do not delete'!H86,"")))) -> Urban Three-Leg Stop-Controlled Intersection
A44: Discount Rate (i) | B44: 0.07 | C44: Number of Proposed Alternatives: | D44: 0 | E44: =IF(OR(D44="",D44=0),"To Unlock Tables Below Please Select The Number of Proposed Alternatives","") -> To Unlock Tables Below Please Select The Number of Proposed Alternatives
B48: Alternative 1 | C48: Alternative 2 | D48: Alternative 3 | E48: Alternative 4
A49: Name of Countermeasure 1
A50: Name of Countermeasure 2 (If Desired)
A51: Estimated Service Life (Years)
A52: Estimated Improvement Cost
A55: CMF Input - Use CMFs Tab to Calculate - If no CMF Adjustment being made leave the default value of 1.000; PDO CMF Not required - PDO crash reductions calculated by subtracting FI crashes from ALL crashes
A56: Alternative 1 | B56: CMF Combination Method (If Applicable): | C56: Countermeasure 1: | E56: Countermeasure 2 (Select CMF Combination Method to Unlock):
A57: Name | C57: =IF(B49="","",B49) ->  | E57: =IF(B50="","",B50) -> 
A58: Crash Type, Severity | C58: CMF | E58: CMF
A59: MV, ALL | B59: Not Applicable | C59: 1 | E59: 1 | G59: =IF(AND(B59="Multiplicative",C59<=1,E59<=1),"ERROR - At Least 1 Value Must Be >1.0",IF(AND(B59<>"Not Applicable",B59<>"Multiplicative"),IF(OR(C59>1,E59>1),"If a CMF is > 1, must select Multiplicative",""),IF(AND(B59="Not Applicable",E59<>1),"Please clear value from countermeasure 2 CMF",""))) -> 
A60: MV, FI | B60: Not Applicable | C60: 1 | E60: 1
A61: SV, ALL | B61: Not Applicable | C61: 1 | E61: 1
A62: SV, FI | B62: Not Applicable | C62: 1 | E62: 1
A63: Ped, ALL | B63: Not Applicable | C63: 1 | E63: 1
A64: Ped, FI | B64: Not Applicable | C64: 1 | E64: 1
A65: Bike, ALL | B65: Not Applicable | C65: 1 | E65: 1
A66: Bike, FI | B66: Not Applicable | C66: 1 | E66: 1
A68: Alternative 2 | B68: CMF Combination Method (If Applicable): | C68: Countermeasure 1: | E68: Countermeasure 2 (Select CMF Combination Method to Unlock):
A69: Name | C69: =IF(C49="","",C49) ->  | E69: =IF(C50="","",C50) -> 
A70: Crash Type, Severity | C70: CMF | E70: CMF
A71: MV, ALL | B71: Not Applicable | C71: 1 | E71: 1 | G71: =IF(AND(B71="Multiplicative",C71<=1,E71<=1),"ERROR - At Least 1 Value Must Be >1.0",IF(AND(B71<>"Not Applicable",B71<>"Multiplicative"),IF(OR(C71>1,E71>1),"If a CMF is > 1, must select Multiplicative",""),IF(AND(B71="Not Applicable",E71<>1),"Please clear value from countermeasure 2 CMF",""))) -> 
A72: MV, FI | B72: Not Applicable | C72: 1 | E72: 1 | G72: =IF(AND(B72="Multiplicative",C72<=1,E72<=1),"ERROR - At Least 1 Value Must Be >1.0",IF(AND(B72<>"Not Applicable",B72<>"Multiplicative"),IF(OR(C72>1,E72>1),"If a CMF is > 1, must select Multiplicative",""),IF(AND(B72="Not Applicable",E72<>1),"Please clear value from countermeasure 2 CMF",""))) -> 
A73: SV, ALL | B73: Not Applicable | C73: 1 | E73: 1
A74: SV, FI | B74: Not Applicable | C74: 1 | E74: 1
A75: Ped, ALL | B75: Not Applicable | C75: 1 | E75: 1
A76: Ped, FI | B76: Not Applicable | C76: 1 | E76: 1
A77: Bike, ALL | B77: Not Applicable | C77: 1 | E77: 1
A78: Bike, FI | B78: Not Applicable | C78: 1 | E78: 1
A80: Alternative 3 | B80: CMF Combination Method (If Applicable): | C80: Countermeasure 1: | E80: Countermeasure 2 (Select CMF Combination Method to Unlock):
A81: Name | C81: =IF(D49="","",D49) ->  | E81: =IF(D50="","",D50) -> 
A82: Crash Type, Severity | C82: CMF | E82: CMF
A83: MV, ALL | B83: Not Applicable | C83: 1 | E83: 1 | G83: =IF(AND(B83="Multiplicative",C83<=1,E83<=1),"ERROR - At Least 1 Value Must Be >1.0",IF(AND(B83<>"Not Applicable",B83<>"Multiplicative"),IF(OR(C83>1,E83>1),"If a CMF is > 1, must select Multiplicative",""),IF(AND(B83="Not Applicable",E83<>1),"Please clear value from countermeasure 2 CMF",""))) -> 
A84: MV, FI | B84: Not Applicable | C84: 1 | E84: 1 | G84: =IF(AND(B84="Multiplicative",C84<=1,E84<=1),"ERROR - At Least 1 Value Must Be >1.0",IF(AND(B84<>"Not Applicable",B84<>"Multiplicative"),IF(OR(C84>1,E84>1),"If a CMF is > 1, must select Multiplicative",""),IF(AND(B84="Not Applicable",E84<>1),"Please clear value from countermeasure 2 CMF",""))) -> 
A85: SV, ALL | B85: Not Applicable | C85: 1 | E85: 1
A86: SV, FI | B86: Not Applicable | C86: 1 | E86: 1
A87: Ped, ALL | B87: Not Applicable | C87: 1 | E87: 1
A88: Ped, FI | B88: Not Applicable | C88: 1 | E88: 1
A89: Bike, ALL | B89: Not Applicable | C89: 1 | E89: 1
A90: Bike, FI | B90: Not Applicable | C90: 1 | E90: 1
G91: =IF(AND(B91="Multiplicative",C91<=1,E91<=1),"ERROR - At Least 1 Value Must Be >1.0",IF(AND(B91<>"Not Applicable",B91<>"Multiplicative"),IF(OR(C91>1,E91>1),"If a CMF is > 1, must select Multiplicative",""),IF(AND(B91="Not Applicable",E91<>""),"Please clear value from countermeasure 2 CMF",""))) -> 
A92: Alternative 4 | B92: CMF Combination Method (If Applicable): | C92: Countermeasure 1: | E92: Countermeasure 2 (Select CMF Combination Method to Unlock):
A93: Name | C93: =IF(E49="","",E49) ->  | E93: =IF(E50="","",E50) -> 
A94: Crash Type, Severity | C94: CMF | E94: CMF
A95: MV, ALL | B95: Not Applicable | C95: 1 | E95: 1 | G95: =IF(AND(B95="Multiplicative",C95<=1,E95<=1),"ERROR - At Least 1 Value Must Be >1.0",IF(AND(B95<>"Not Applicable",B95<>"Multiplicative"),IF(OR(C95>1,E95>1),"If a CMF is > 1, must select Multiplicative",""),IF(AND(B95="Not Applicable",E95<>1),"Please clear value from countermeasure 2 CMF",""))) -> 
A96: MV, FI | B96: Not Applicable | C96: 1 | E96: 1 | G96: =IF(AND(B96="Multiplicative",C96<=1,E96<=1),"ERROR - At Least 1 Value Must Be >1.0",IF(AND(B96<>"Not Applicable",B96<>"Multiplicative"),IF(OR(C96>1,E96>1),"If a CMF is > 1, must select Multiplicative",""),IF(AND(B96="Not Applicable",E96<>1),"Please clear value from countermeasure 2 CMF",""))) -> 
A97: SV, ALL | B97: Not Applicable | C97: 1 | E97: 1
A98: SV, FI | B98: Not Applicable | C98: 1 | E98: 1
A99: Ped, ALL | B99: Not Applicable | C99: 1 | E99: 1
A100: Ped, FI | B100: Not Applicable | C100: 1 | E100: 1
A101: Bike, ALL | B101: Not Applicable | C101: 1 | E101: 1
A102: Bike, FI | B102: Not Applicable | C102: 1 | E102: 1

Sheet Output
A1: Results | B1: Ensure that program at end of Input was run. If any Input values are modified, the program must be run again. If cells display #REF, press the F9 key.
A2: Step 1.2 - Calculate Predicted Number of Crashes in the Design Year
A3: Crash Type, Severity | B3: Predicted Crashes during the Design Year (Npr,design)
A4: MV, FI | B4: ='Design Year'!N71 -> 1.364621549
A5: MV, PDO | B5: ='Design Year'!N73 -> 3.423246104
A6: SV, FI | B6: ='Design Year'!N117 -> 0.06732866093
A7: SV, PDO | B7: ='Design Year'!N119 -> 0.1372944801
A8: Ped, FI | B8: ='Design Year'!M158 -> 0.0002049752214
A9: Ped, PDO | B9: 0
A10: Bike, FI | B10: ='Design Year'!K169 -> 0.03030343426
A11: Bike, PDO | B11: 0
A12: Total (FI) | B12: =SUM(B4,B6,B8,B10) -> 1.462458619
A13: Total (PDO) | B13: =SUM(B5,B7,B9,B11) -> 3.560540584
A14: Total | B14: =SUM(B4:B8,B10) -> 5.022999203
A18: Step 2 – Expected Change in Safety Performance
A19: Alternative 1 | F19: Estimated Lifetime of Alternative 1: | G19: =IF(Input!B51="","",Input!B51) -> 
A20: Countermeasure 1: | B20: =IF(Input!B49="","",Input!B49) ->  | D20: Countermeasure 2: | E20: =IF(Input!B50="","",Input!B50) -> 
A21: Crash Type, Severity | B21: Estimated Crashes during the Design Year | C21: CMF1 | D21: CMF2 (If Applicable) | E21: Resultant CMF | F21: Estimated Crashes during the Design Year for Alternative 1 | G21: Reduced Crashes for Alternative 1
A22: MV, ALL | B22: =IF('Input Summary'!$B$11>=1,Output!B4+B5,"") ->  | C22: =Input!C59 -> 1 | D22: =IF(Input!B59="Not Applicable","",Input!E59) ->  | E22: =IF(Input!C59="","",IF(Input!B59="Not Applicable",Input!C59,IF(Input!B59="Multiplicative",'Construction - do not delete'!B145,IF(Input!B59="Additive",'Construction - do not delete'!D145,IF(Input!B59="Dominant Effect",'Construction - do not delete'!E145,IF(Input!B59="Dominant Common Residuals",'Construction - do not delete'!G145,"Error")))))) -> 1 | F22: =IF(B22="","",B22*E22) ->  | G22: =IF(B22="","",B22-F22) -> 
A23: MV, FI | B23: =IF('Input Summary'!$B$11>=1,Output!B4,"") ->  | C23: =Input!C60 -> 1 | D23: =IF(Input!B60="Not Applicable","",Input!E60) ->  | E23: =IF(Input!C60="","",IF(Input!B60="Not Applicable",Input!C60,IF(Input!B60="Multiplicative",'Construction - do not delete'!B146,IF(Input!B60="Additive",'Construction - do not delete'!D146,IF(Input!B60="Dominant Effect",'Construction - do not delete'!E146,IF(Input!B60="Dominant Common Residuals",'Construction - do not delete'!G146,"Error")))))) -> 1 | F23: =IF(B23="","",B23*E23) ->  | G23: =IF(B23="","",B23-F23) -> 
A24: MV, PDO | B24: =IF('Input Summary'!$B$11>=1,Output!B5,"") ->  | F24: =IF(B24="","",F22-F23) ->  | G24: =IF(B24="","",B24-F24) ->  | H24: =IF(F24<0,"Check CMF Input Values","") -> 
A25: SV, ALL | B25: =IF('Input Summary'!$B$11>=1,Output!B6+B7,"") ->  | C25: =Input!C61 -> 1 | D25: =IF(Input!B61="Not Applicable","",Input!E61) ->  | E25: =IF(Input!C61="","",IF(Input!B61="Not Applicable",Input!C61,IF(Input!B61="Multiplicative",'Construction - do not delete'!B147,IF(Input!B61="Additive",'Construction - do not delete'!D147,IF(Input!B61="Dominant Effect",'Construction - do not delete'!E147,IF(Input!B61="Dominant Common Residuals",'Construction - do not delete'!G147,"Error")))))) -> 1 | F25: =IF(B25="","",B25*E25) ->  | G25: =IF(B25="","",B25-F25) -> 
A26: SV, FI | B26: =IF('Input Summary'!$B$11>=1,Output!B6,"") ->  | C26: =Input!C62 -> 1 | D26: =IF(Input!B62="Not Applicable","",Input!E62) ->  | E26: =IF(Input!C62="","",IF(Input!B62="Not Applicable",Input!C62,IF(Input!B62="Multiplicative",'Construction - do not delete'!B148,IF(Input!B62="Additive",'Construction - do not delete'!D148,IF(Input!B62="Dominant Effect",'Construction - do not delete'!E148,IF(Input!B62="Dominant Common Residuals",'Construction - do not delete'!G148,"Error")))))) -> 1 | F26: =IF(B26="","",B26*E26) ->  | G26: =IF(B26="","",B26-F26) -> 
A27: SV, PDO | B27: =IF('Input Summary'!$B$11>=1,Output!B7,"") ->  | F27: =IF(B27="","",F25-F26) ->  | H27: =IF(F27<0,"Check CMF Input Values","") -> 
A28: Ped, ALL | B28: =IF('Input Summary'!$B$11>=1,Output!B8+B9,"") ->  | C28: =Input!C63 -> 1 | D28: =IF(Input!B63="Not Applicable","",Input!E63) ->  | E28: =IF(Input!C63="","",IF(Input!B63="Not Applicable",Input!C63,IF(Input!B63="Multiplicative",'Construction - do not delete'!B149,IF(Input!B63="Additive",'Construction - do not delete'!D149,IF(Input!B63="Dominant Effect",'Construction - do not delete'!E149,IF(Input!B63="Dominant Common Residuals",'Construction - do not delete'!G149,"Error")))))) -> 1
A29: Ped, FI | B29: =IF('Input Summary'!$B$11>=1,Output!B8,"") ->  | C29: =Input!C64 -> 1 | D29: =IF(Input!B64="Not Applicable","",Input!E64) ->  | E29: =IF(Input!C64="","",IF(Input!B64="Not Applicable",Input!C64,IF(Input!B64="Multiplicative",'Construction - do not delete'!B150,IF(Input!B64="Additive",'Construction - do not delete'!D150,IF(Input!B64="Dominant Effect",'Construction - do not delete'!E150,IF(Input!B64="Dominant Common Residuals",'Construction - do not delete'!G150,"Error")))))) -> 1 | F29: =IF(B29="","",F28) -> 
A30: Ped, PDO | B30: =IF('Input Summary'!$B$11>=1,Output!B9,"") ->  | F30: =IF(B30="","",F28-F29) ->  | H30: =IF(F30<0,"Check CMF Input Values","") -> 
A31: Bike, ALL | B31: =IF('Input Summary'!$B$11>=1,Output!B10+B11,"") ->  | C31: =Input!C65 -> 1 | D31: =IF(Input!B65="Not Applicable","",Input!E65) ->  | E31: =IF(Input!C65="","",IF(Input!B65="Not Applicable",Input!C65,IF(Input!B65="Multiplicative",'Construction - do not delete'!B151,IF(Input!B65="Additive",'Construction - do not delete'!D151,IF(Input!B65="Dominant Effect",'Construction - do not delete'!E151,IF(Input!B65="Dominant Common Residuals",'Construction - do not delete'!G151,"Error")))))) -> 1 | F31: =IF(B31="","",B31*E31) ->  | G31: =IF(B31="","",B31-F31) -> 
A32: Bike, FI | B32: =IF('Input Summary'!$B$11>=1,Output!B10,"") ->  | C32: =Input!C66 -> 1 | D32: =IF(Input!B66="Not Applicable","",Input!E66) ->  | E32: =IF(Input!C66="","",IF(Input!B66="Not Applicable",Input!C66,IF(Input!B66="Multiplicative",'Construction - do not delete'!B152,IF(Input!B66="Additive",'Construction - do not delete'!D152,IF(Input!B66="Dominant Effect",'Construction - do not delete'!E152,IF(Input!B66="Dominant Common Residuals",'Construction - do not delete'!G152,"Error")))))) -> 1 | F32: =IF(B32="","",F31) -> 
A33: Bike, PDO | B33: =IF('Input Summary'!$B$11>=1,Output!B11,"") ->  | F33: =IF(B33="","",F31-F32) ->  | H33: =IF(F33<0,"Check CMF Input Values","") -> 
A34: Total, FI | B34: =IFERROR(B23+B26+B29+B32,"") ->  | F34: =IFERROR(F23+F26+F29+F32,"") ->  | G34: =IFERROR(G23+G26+G29+G32,"") -> 
A35: Total, PDO | B35: =IFERROR(B24+B27+B30+B33,"") ->  | F35: =IFERROR(F24+F27,"") ->  | G35: =IFERROR(G24+G27+G30+G33,"") -> 
A37: Alternative 2 | F37: Estimated Lifetime of Alternative 2: | G37: =IF(Input!C51="","",Input!C51) -> 
A38: Countermeasure 1: | B38: =IF(Input!C49="","",Input!C49) ->  | D38: Countermeasure 2: | E38: =IF(Input!C50="","",Input!C50) -> 
A39: Crash Type, Severity | B39: Estimated Crashes during the Design Year | C39: CMF1 | D39: CMF2 (If Applicable) | E39: Resultant CMF | F39: Estimated Crashes during the Design Year for Alternative 2 | G39: Reduced Crashes for Alternative 2
A40: MV,ALL | B40: =IF('Input Summary'!$B$11>=2,Output!B4+B5,"") ->  | C40: =Input!C71 -> 1 | D40: =IF(Input!B71="Not Applicable","",Input!E71) ->  | E40: =IF(Input!C71="","",IF(Input!B71="Not Applicable",Input!C71,IF(Input!B71="Multiplicative",'Construction - do not delete'!B157,IF(Input!B71="Additive",'Construction - do not delete'!D157,IF(Input!B71="Dominant Effect",'Construction - do not delete'!E157,IF(Input!B71="Dominant Common Residuals",'Construction - do not delete'!G157,"Error")))))) -> 1 | F40: =IF(B40="","",B40*E40) ->  | G40: =IF(B40="","",B40-F40) -> 
A41: MV, FI | B41: =IF('Input Summary'!$B$11>=2,Output!B4,"") ->  | C41: =Input!C72 -> 1 | D41: =IF(Input!B72="Not Applicable","",Input!E72) ->  | E41: =IF(Input!C72="","",IF(Input!B72="Not Applicable",Input!C72,IF(Input!B72="Multiplicative",'Construction - do not delete'!B158,IF(Input!B72="Additive",'Construction - do not delete'!D158,IF(Input!B72="Dominant Effect",'Construction - do not delete'!E158,IF(Input!B72="Dominant Common Residuals",'Construction - do not delete'!G158,"Error")))))) -> 1 | F41: =IF(B41="","",B41*E41) ->  | G41: =IF(B41="","",B41-F41) -> 
A42: MV, PDO | B42: =IF('Input Summary'!$B$11>=2,Output!B5,"") ->  | F42: =IF(B42="","",F40-F41) ->  | G42: =IF(B42="","",B42-F42) ->  | H42: =IF(F42<0,"Check CMF Input Values","") -> 
A43: SV, ALL | B43: =IF('Input Summary'!$B$11>=2,Output!B6+B7,"") ->  | C43: =Input!C73 -> 1 | D43: =IF(Input!B73="Not Applicable","",Input!E73) ->  | E43: =IF(Input!C73="","",IF(Input!B73="Not Applicable",Input!C73,IF(Input!B73="Multiplicative",'Construction - do not delete'!B159,IF(Input!B73="Additive",'Construction - do not delete'!D159,IF(Input!B73="Dominant Effect",'Construction - do not delete'!E159,IF(Input!B73="Dominant Common Residuals",'Construction - do not delete'!G159,"Error")))))) -> 1 | F43: =IF(B43="","",B43*E43) ->  | G43: =IF(B43="","",B43-F43) -> 
A44: SV, FI | B44: =IF('Input Summary'!$B$11>=2,Output!B6,"") ->  | C44: =Input!C74 -> 1 | D44: =IF(Input!B74="Not Applicable","",Input!E74) ->  | E44: =IF(Input!C74="","",IF(Input!B74="Not Applicable",Input!C74,IF(Input!B74="Multiplicative",'Construction - do not delete'!B160,IF(Input!B74="Additive",'Construction - do not delete'!D160,IF(Input!B74="Dominant Effect",'Construction - do not delete'!E160,IF(Input!B74="Dominant Common Residuals",'Construction - do not delete'!G160,"Error")))))) -> 1 | F44: =IF(B44="","",B44*E44) -> 
A45: SV, PDO | B45: =IF('Input Summary'!$B$11>=2,Output!B7,"") ->  | F45: =IF(B45="","",F43-F44) ->  | G45: =IF(B45="","",B45-F45) ->  | H45: =IF(F45<0,"Check CMF Input Values","") -> 
A46: Ped, ALL | B46: =IF('Input Summary'!$B$11>=2,Output!B8+B9,"") ->  | C46: =Input!C75 -> 1 | D46: =IF(Input!B75="Not Applicable","",Input!E75) ->  | E46: =IF(Input!C75="","",IF(Input!B75="Not Applicable",Input!C75,IF(Input!B75="Multiplicative",'Construction - do not delete'!B161,IF(Input!B75="Additive",'Construction - do not delete'!D161,IF(Input!B75="Dominant Effect",'Construction - do not delete'!E161,IF(Input!B75="Dominant Common Residuals",'Construction - do not delete'!G161,"Error")))))) -> 1 | F46: =IF(B46="","",B46*E46) ->  | G46: =IF(B46="","",B46-F46) -> 
A47: Ped, FI | B47: =IF('Input Summary'!$B$11>=2,Output!B8,"") ->  | C47: =Input!C76 -> 1 | D47: =IF(Input!B76="Not Applicable","",Input!E76) ->  | E47: =IF(Input!C76="","",IF(Input!B76="Not Applicable",Input!C76,IF(Input!B76="Multiplicative",'Construction - do not delete'!B162,IF(Input!B76="Additive",'Construction - do not delete'!D162,IF(Input!B76="Dominant Effect",'Construction - do not delete'!E162,IF(Input!B76="Dominant Common Residuals",'Construction - do not delete'!G162,"Error")))))) -> 1 | F47: =IF(B47="","",F46) -> 
A48: Ped, PDO | B48: =IF('Input Summary'!$B$11>=2,Output!B9,"") ->  | F48: =IF(B48="","",F46-F47) ->  | H48: =IF(F48<0,"Check CMF Input Values","") -> 
A49: Bike, ALL | B49: =IF('Input Summary'!$B$11>=2,Output!B10+B11,"") ->  | C49: =Input!C77 -> 1 | D49: =IF(Input!B77="Not Applicable","",Input!E77) ->  | E49: =IF(Input!C77="","",IF(Input!B77="Not Applicable",Input!C77,IF(Input!B77="Multiplicative",'Construction - do not delete'!B163,IF(Input!B77="Additive",'Construction - do not delete'!D163,IF(Input!B77="Dominant Effect",'Construction - do not delete'!E163,IF(Input!B77="Dominant Common Residuals",'Construction - do not delete'!G163,"Error")))))) -> 1 | F49: =IF(B49="","",B49*E49) ->  | G49: =IF(B49="","",B49-F49) -> 
A50: Bike, FI | B50: =IF('Input Summary'!$B$11>=2,Output!B10,"") ->  | C50: =Input!C78 -> 1 | D50: =IF(Input!B78="Not Applicable","",Input!E78) ->  | E50: =IF(Input!C78="","",IF(Input!B78="Not Applicable",Input!C78,IF(Input!B78="Multiplicative",'Construction - do not delete'!B164,IF(Input!B78="Additive",'Construction - do not delete'!D164,IF(Input!B78="Dominant Effect",'Construction - do not delete'!E164,IF(Input!B78="Dominant Common Residuals",'Construction - do not delete'!G164,"Error")))))) -> 1 | F50: =IF(B50="","",F49) -> 
A51: Bike, PDO | B51: =IF('Input Summary'!$B$11>=2,Output!B11,"") ->  | C51: =Input!C78 -> 1 | D51: =IF(Input!B78="Not Applicable","",Input!E78) ->  | E51: =IF(Input!C78="","",IF(Input!B78="Not Applicable",Input!C78,IF(Input!B78="Multiplicative",'Construction - do not delete'!B164,IF(Input!B78="Additive",'Construction - do not delete'!D164,IF(Input!B78="Dominant Effect",'Construction - do not delete'!E164,IF(Input!B78="Dominant Common Residuals",'Construction - do not delete'!G164,"Error")))))) -> 1 | F51: =IF(B51="","",F49-F50) ->  | H51: =IF(F51<0,"Check CMF Input Values","") -> 
A52: Total, FI | B52: =IFERROR(B41+B44+B47+B50,"") ->  | F52: =IFERROR(F41+F44+F47+F50,"") ->  | G52: =IFERROR(G41+G44+G47+G50,"") -> 
A53: Total, PDO | B53: =IFERROR(B42+B45+B48+B51,"") ->  | F53: =IFERROR(F42+F45,"") ->  | G53: =IFERROR(G42+G45+G48+G51,"") -> 
A55: Alternative 3 | F55: Estimated Lifetime of Alternative 3: | G55: =IF(Input!D51="","",Input!D51) -> 
A56: Countermeasure 1: | B56: =IF(Input!D49="","",Input!D49) ->  | D56: Countermeasure 2: | E56: =IF(Input!D50="","",Input!D50) -> 
A57: Crash Type, Severity | B57: Estimated Crashes during the Design Year | C57: CMF1 | D57: CMF2 (If Applicable) | E57: Resultant CMF | F57: Estimated Crashes during the Design Year for Alternative 3 | G57: Reduced Crashes for Alternative 3
A58: MV, ALL | B58: =IF('Input Summary'!$B$11>=3,B5+B4,"") ->  | C58: =Input!C83 -> 1 | D58: =IF(Input!B83="Not Applicable","",Input!E83) ->  | E58: =IF(Input!C83="","",IF(Input!B83="Not Applicable",Input!C83,IF(Input!B83="Multiplicative",'Construction - do not delete'!B169,IF(Input!B83="Additive",'Construction - do not delete'!D169,IF(Input!B83="Dominant Effect",'Construction - do not delete'!E169,IF(Input!B83="Dominant Common Residuals",'Construction - do not delete'!G169,"Error")))))) -> 1 | F58: =IF(B58="","",B58*E58) ->  | G58: =IF(B58="","",B58-F58) -> 
A59: MV, FI | B59: =IF('Input Summary'!$B$11>=3,Output!B4,"") ->  | C59: =Input!C84 -> 1 | D59: =IF(Input!B84="Not Applicable","",Input!E84) ->  | E59: =IF(Input!C84="","",IF(Input!B84="Not Applicable",Input!C84,IF(Input!B84="Multiplicative",'Construction - do not delete'!B170,IF(Input!B84="Additive",'Construction - do not delete'!D170,IF(Input!B84="Dominant Effect",'Construction - do not delete'!E170,IF(Input!B84="Dominant Common Residuals",'Construction - do not delete'!G170,"Error")))))) -> 1 | F59: =IF(B59="","",B59*E59) ->  | G59: =IF(B59="","",B59-F59) -> 
A60: MV, PDO | B60: =IF('Input Summary'!$B$11>=3,Output!B5,"") ->  | F60: =IF(B60="","",F58-F59) ->  | G60: =IF(B60="","",B60-F60) ->  | H60: =IF(F60<0,"Check CMF Input Values","") -> 
A61: SV, ALL | B61: =IF('Input Summary'!$B$11>=3,Output!B6+B7,"") ->  | C61: =Input!C85 -> 1 | D61: =IF(Input!B85="Not Applicable","",Input!E85) ->  | E61: =IF(Input!C85="","",IF(Input!B85="Not Applicable",Input!C85,IF(Input!B85="Multiplicative",'Construction - do not delete'!B171,IF(Input!B85="Additive",'Construction - do not delete'!D171,IF(Input!B85="Dominant Effect",'Construction - do not delete'!E171,IF(Input!B85="Dominant Common Residuals",'Construction - do not delete'!G171,"Error")))))) -> 1 | F61: =IF(B61="","",B61*E61) ->  | G61: =IF(B61="","",B61-F61) -> 
A62: SV, FI | B62: =IF('Input Summary'!$B$11>=3,Output!B6,"") ->  | C62: =Input!C86 -> 1 | D62: =IF(Input!B86="Not Applicable","",Input!E86) ->  | E62: =IF(Input!C86="","",IF(Input!B86="Not Applicable",Input!C86,IF(Input!B86="Multiplicative",'Construction - do not delete'!B172,IF(Input!B86="Additive",'Construction - do not delete'!D172,IF(Input!B86="Dominant Effect",'Construction - do not delete'!E172,IF(Input!B86="Dominant Common Residuals",'Construction - do not delete'!G172,"Error")))))) -> 1 | F62: =IF(B62="","",B62*E62) -> 
A63: SV, PDO | B63: =IF('Input Summary'!$B$11>=3,Output!B7,"") ->  | C63: =Input!C86 -> 1 | D63: =IF(Input!B86="Not Applicable","",Input!E86) ->  | E63: =IF(Input!C86="","",IF(Input!B86="Not Applicable",Input!C86,IF(Input!B86="Multiplicative",'Construction - do not delete'!B172,IF(Input!B86="Additive",'Construction - do not delete'!D172,IF(Input!B86="Dominant Effect",'Construction - do not delete'!E172,IF(Input!B86="Dominant Common Residuals",'Construction - do not delete'!G172,"Error")))))) -> 1 | F63: =IF(B63="","",F61-F62) ->  | H63: =IF(F63<0,"Check CMF Input Values","") -> 
A64: Ped, ALL | B64: =IF('Input Summary'!$B$11>=3,Output!B8+B9,"") ->  | C64: =Input!C87 -> 1 | D64: =IF(Input!B87="Not Applicable","",Input!E87) ->  | E64: =IF(Input!C87="","",IF(Input!B87="Not Applicable",Input!C87,IF(Input!B87="Multiplicative",'Construction - do not delete'!B173,IF(Input!B87="Additive",'Construction - do not delete'!D173,IF(Input!B87="Dominant Effect",'Construction - do not delete'!E173,IF(Input!B87="Dominant Common Residuals",'Construction - do not delete'!G173,"Error")))))) -> 1 | F64: =IF(B64="","",B64*E64) ->  | G64: =IF(B64="","",B64-F64) -> 
A65: Ped, FI | B65: =IF('Input Summary'!$B$11>=3,Output!B8,"") ->  | C65: =Input!C88 -> 1 | D65: =IF(Input!B88="Not Applicable","",Input!E88) ->  | E65: =IF(Input!C88="","",IF(Input!B88="Not Applicable",Input!C88,IF(Input!B88="Multiplicative",'Construction - do not delete'!B174,IF(Input!B88="Additive",'Construction - do not delete'!D174,IF(Input!B88="Dominant Effect",'Construction - do not delete'!E174,IF(Input!B88="Dominant Common Residuals",'Construction - do not delete'!G174,"Error")))))) -> 1 | F65: =IF(B65="","",F64) -> 
A66: Ped, PDO | B66: =IF('Input Summary'!$B$11>=3,Output!B9,"") ->  | C66: =Input!C88 -> 1 | D66: =IF(Input!B88="Not Applicable","",Input!E88) ->  | E66: =IF(Input!C88="","",IF(Input!B88="Not Applicable",Input!C88,IF(Input!B88="Multiplicative",'Construction - do not delete'!B174,IF(Input!B88="Additive",'Construction - do not delete'!D174,IF(Input!B88="Dominant Effect",'Construction - do not delete'!E174,IF(Input!B88="Dominant Common Residuals",'Construction - do not delete'!G174,"Error")))))) -> 1 | F66: =IF(B66="","",F64-F65) ->  | H66: =IF(F66<0,"Check CMF Input Values","") -> 
A67: Bike, ALL | B67: =IF('Input Summary'!$B$11>=3,Output!B10+B11,"") ->  | C67: =Input!C89 -> 1 | D67: =IF(Input!B89="Not Applicable","",Input!E89) ->  | E67: =IF(Input!C89="","",IF(Input!B89="Not Applicable",Input!C89,IF(Input!B89="Multiplicative",'Construction - do not delete'!B175,IF(Input!B89="Additive",'Construction - do not delete'!D175,IF(Input!B89="Dominant Effect",'Construction - do not delete'!E175,IF(Input!B89="Dominant Common Residuals",'Construction - do not delete'!G175,"Error")))))) -> 1 | F67: =IF(B67="","",B67*E67) ->  | G67: =IF(B67="","",B67-F67) -> 
A68: Bike, FI | B68: =IF('Input Summary'!$B$11>=3,Output!B10,"") ->  | C68: =Input!C90 -> 1 | D68: =IF(Input!B90="Not Applicable","",Input!E90) ->  | E68: =IF(Input!C90="","",IF(Input!B90="Not Applicable",Input!C90,IF(Input!B90="Multiplicative",'Construction - do not delete'!B176,IF(Input!B90="Additive",'Construction - do not delete'!D176,IF(Input!B90="Dominant Effect",'Construction - do not delete'!E176,IF(Input!B90="Dominant Common Residuals",'Construction - do not delete'!G176,"Error")))))) -> 1 | F68: =IF(B68="","",F67) -> 
A69: Bike, PDO | B69: =IF('Input Summary'!$B$11>=3,Output!B11,"") ->  | C69: =Input!C90 -> 1 | D69: =IF(Input!B90="Not Applicable","",Input!E90) ->  | E69: =IF(Input!C90="","",IF(Input!B90="Not Applicable",Input!C90,IF(Input!B90="Multiplicative",'Construction - do not delete'!B176,IF(Input!B90="Additive",'Construction - do not delete'!D176,IF(Input!B90="Dominant Effect",'Construction - do not delete'!E176,IF(Input!B90="Dominant Common Residuals",'Construction - do not delete'!G176,"Error")))))) -> 1 | F69: =IF(B69="","",F67-F68) ->  | H69: =IF(F69<0,"Check CMF Input Values","") -> 
A70: Total, FI | B70: =IFERROR(B59+B62+B65+B68,"") ->  | F70: =IFERROR(F59+F62+F65+F68,"") ->  | G70: =IFERROR(G59+G62+G65+G68,"") -> 
A71: Total, PDO | B71: =IFERROR(B60+B63+B66+B69,"") ->  | F71: =IFERROR(F60+F63,"") ->  | G71: =IFERROR(G60+G63+G66+G69,"") -> 
A73: Alternative 4 | F73: Estimated Lifetime of Alternative 4: | G73: =IF(Input!E51="","",Input!E51) -> 
A74: Countermeasure 1: | B74: =IF(Input!E49="","",Input!E49) ->  | D74: Countermeasure 2: | E74: =IF(Input!E50="","",Input!E50) -> 
A75: Crash Type, Severity | B75: Estimated Crashes during the Design Year | C75: CMF1 | D75: CMF2 (If Applicable) | E75: Resultant CMF | F75: Estimated Crashes during the Design Year for Alternative 4 | G75: Reduced Crashes for Alternative 4
A76: MV, ALL | B76: =IF('Input Summary'!$B$11=4,B4+B5,"") ->  | C76: =Input!C95 -> 1 | D76: =IF(Input!B95="Not Applicable","",Input!E95) ->  | E76: =IF(Input!C95="","",IF(Input!B95="Not Applicable",Input!C95,IF(Input!B95="Multiplicative",'Construction - do not delete'!B181,IF(Input!B95="Additive",'Construction - do not delete'!D181,IF(Input!B95="Dominant Effect",'Construction - do not delete'!E181,IF(Input!B95="Dominant Common Residuals",'Construction - do not delete'!G181,"Error")))))) -> 1 | F76: =IF(B76="","",B76*E76) ->  | G76: =IF(B76="","",B76-F76) -> 
A77: MV, FI | B77: =IF('Input Summary'!$B$11=4,Output!B4,"") ->  | C77: =Input!C96 -> 1 | D77: =IF(Input!B96="Not Applicable","",Input!E96) ->  | E77: =IF(Input!C96="","",IF(Input!B96="Not Applicable",Input!C96,IF(Input!B96="Multiplicative",'Construction - do not delete'!B182,IF(Input!B96="Additive",'Construction - do not delete'!D182,IF(Input!B96="Dominant Effect",'Construction - do not delete'!E182,IF(Input!B96="Dominant Common Residuals",'Construction - do not delete'!G182,"Error")))))) -> 1 | F77: =IF(B77="","",B77*E77) ->  | G77: =IF(B77="","",B77-F77) -> 
A78: MV, PDO | B78: =IF('Input Summary'!$B$11=4,Output!B5,"") ->  | F78: =IF(B78="","",F76-F77) ->  | G78: =IF(B78="","",B78-F78) ->  | H78: =IF(F78<0,"Check CMF Input Values","") -> 
A79: SV, ALL | B79: =IF('Input Summary'!$B$11>=4,Output!B6+B7,"") ->  | C79: =Input!C97 -> 1 | D79: =IF(Input!B97="Not Applicable","",Input!E97) ->  | E79: =IF(Input!C97="","",IF(Input!B97="Not Applicable",Input!C97,IF(Input!B97="Multiplicative",'Construction - do not delete'!B183,IF(Input!B97="Additive",'Construction - do not delete'!D183,IF(Input!B97="Dominant Effect",'Construction - do not delete'!E183,IF(Input!B97="Dominant Common Residuals",'Construction - do not delete'!G183,"Error")))))) -> 1 | F79: =IF(B79="","",B79*E79) ->  | G79: =IF(B79="","",B79-F79) -> 
A80: SV, FI | B80: =IF('Input Summary'!$B$11=4,Output!B6,"") ->  | C80: =Input!C98 -> 1 | D80: =IF(Input!B98="Not Applicable","",Input!E98) ->  | E80: =IF(Input!C98="","",IF(Input!B98="Not Applicable",Input!C98,IF(Input!B98="Multiplicative",'Construction - do not delete'!B184,IF(Input!B98="Additive",'Construction - do not delete'!D184,IF(Input!B98="Dominant Effect",'Construction - do not delete'!E184,IF(Input!B98="Dominant Common Residuals",'Construction - do not delete'!G184,"Error")))))) -> 1 | F80: =IF(B80="","",B80*E80) -> 
A81: SV, PDO | B81: =IF('Input Summary'!$B$11=4,Output!B7,"") ->  | C81: =Input!C98 -> 1 | D81: =IF(Input!B98="Not Applicable","",Input!E98) ->  | E81: =IF(Input!C98="","",IF(Input!B98="Not Applicable",Input!C98,IF(Input!B98="Multiplicative",'Construction - do not delete'!B184,IF(Input!B98="Additive",'Construction - do not delete'!D184,IF(Input!B98="Dominant Effect",'Construction - do not delete'!E184,IF(Input!B98="Dominant Common Residuals",'Construction - do not delete'!G184,"Error")))))) -> 1 | F81: =IF(B81="","",F79-F80) ->  | H81: =IF(F81<0,"Check CMF Input Values","") -> 
A82: Ped, ALL | B82: =IF('Input Summary'!$B$11>=4,Output!B8+B9,"") ->  | C82: =Input!C99 -> 1 | D82: =IF(Input!B99="Not Applicable","",Input!E99) ->  | E82: =IF(Input!C99="","",IF(Input!B99="Not Applicable",Input!C99,IF(Input!B99="Multiplicative",'Construction - do not delete'!B185,IF(Input!B99="Additive",'Construction - do not delete'!D185,IF(Input!B99="Dominant Effect",'Construction - do not delete'!E185,IF(Input!B99="Dominant Common Residuals",'Construction - do not delete'!G185,"Error")))))) -> 1 | F82: =IF(B82="","",B82*E82) ->  | G82: =IF(B82="","",B82-F82) -> 
A83: Ped, FI | B83: =IF('Input Summary'!$B$11=4,Output!B8,"") ->  | C83: =Input!C100 -> 1 | D83: =IF(Input!B99="Not Applicable","",Input!E99) ->  | E83: =IF(Input!C100="","",IF(Input!B100="Not Applicable",Input!C100,IF(Input!B100="Multiplicative",'Construction - do not delete'!B186,IF(Input!B100="Additive",'Construction - do not delete'!D186,IF(Input!B100="Dominant Effect",'Construction - do not delete'!E186,IF(Input!B100="Dominant Common Residuals",'Construction - do not delete'!G186,"Error")))))) -> 1 | F83: =IF(B83="","",F82) -> 
A84: Ped, PDO | B84: =IF('Input Summary'!$B$11=4,Output!B9,"") ->  | C84: =Input!C100 -> 1 | D84: =IF(Input!B100="Not Applicable","",Input!E100) ->  | E84: =IF(Input!C100="","",IF(Input!B100="Not Applicable",Input!C100,IF(Input!B100="Multiplicative",'Construction - do not delete'!B186,IF(Input!B100="Additive",'Construction - do not delete'!D186,IF(Input!B100="Dominant Effect",'Construction - do not delete'!E186,IF(Input!B100="Dominant Common Residuals",'Construction - do not delete'!G186,"Error")))))) -> 1 | F84: =IF(B84="","",F82-F83) ->  | H84: =IF(F84<0,"Check CMF Input Values","") -> 
A85: Bike, ALL | B85: =IF('Input Summary'!$B$11>=4,Output!B10+B11,"") ->  | C85: =Input!C101 -> 1 | D85: =IF(Input!B101="Not Applicable","",Input!E101) ->  | E85: =IF(Input!C101="","",IF(Input!B101="Not Applicable",Input!C101,IF(Input!B101="Multiplicative",'Construction - do not delete'!B187,IF(Input!B101="Additive",'Construction - do not delete'!D187,IF(Input!B101="Dominant Effect",'Construction - do not delete'!E187,IF(Input!B101="Dominant Common Residuals",'Construction - do not delete'!G187,"Error")))))) -> 1 | F85: =IF(B85="","",B85*E85) ->  | G85: =IF(B85="","",B85-F85) -> 
A86: Bike, FI | B86: =IF('Input Summary'!$B$11=4,Output!B10,"") ->  | C86: =Input!C102 -> 1 | D86: =IF(Input!B102="Not Applicable","",Input!E102) ->  | E86: =IF(Input!C102="","",IF(Input!B102="Not Applicable",Input!C102,IF(Input!B102="Multiplicative",'Construction - do not delete'!B188,IF(Input!B102="Additive",'Construction - do not delete'!D188,IF(Input!B102="Dominant Effect",'Construction - do not delete'!E188,IF(Input!B102="Dominant Common Residuals",'Construction - do not delete'!G188,"Error")))))) -> 1 | F86: =IF(B86="","",F85) -> 
A87: Bike, PDO | B87: =IF('Input Summary'!$B$11=4,Output!B11,"") ->  | C87: =Input!C102 -> 1 | D87: =IF(Input!B102="Not Applicable","",Input!E102) ->  | E87: =IF(Input!C102="","",IF(Input!B102="Not Applicable",Input!C102,IF(Input!B102="Multiplicative",'Construction - do not delete'!B188,IF(Input!B102="Additive",'Construction - do not delete'!D188,IF(Input!B102="Dominant Effect",'Construction - do not delete'!E188,IF(Input!B102="Dominant Common Residuals",'Construction - do not delete'!G188,"Error")))))) -> 1 | F87: =IF(B87="","",F85-F86) ->  | H87: =IF(F87<0,"Check CMF Input Values","") -> 
A88: Total, FI | B88: =IFERROR(B77+B80+B83+B86,"") ->  | F88: =IFERROR(F77+F80+F83+F86,"") ->  | G88: =IFERROR(G77+G80+G83+G86,"") -> 
A89: Total, PDO | B89: =IFERROR(B78+B81+B84+B87,"") ->  | F89: =IFERROR(F78+F81,"") ->  | G89: =IFERROR(G78+G81+G84+G87,"") -> 
A93: Step 3 – Economic Analysis
B94: =IF(Input!B49="","",Input!B49) ->  | D94: =IF(Input!C49="","",Input!C49) ->  | F94: =IF(Input!D49="","",Input!D49) ->  | H94: =IF(Input!E49="","",Input!E49) -> 
B96: =IF(B94="","","Reduction") ->  | C96: =IF(B94="","","Benefits") ->  | D96: =IF(D94="","","Reduction") ->  | E96: =IF(D94="","","Benefits") ->  | F96: =IF(F94="","","Reduction") ->  | G96: =IF(F94="","","Benefits") ->  | H96: =IF(H94="","","Reduction") ->  | I96: =IF(H94="","","Benefits") -> 
A97: Total, FI | B97: =IF(G34="","",G34) ->  | C97: =IF(B97="","",INDEX(Table57[Average FI Crash Cost],MATCH('Input Summary'!$B$9,'Construction - do not delete'!$H$83:$H$96,0))*B97) ->  | D97: =IF(G52="","",G52) ->  | E97: =IF(D97="","",INDEX(Table57[Average FI Crash Cost],MATCH('Input Summary'!$B$9,'Construction - do not delete'!$H$83:$H$96,0))*D97) ->  | F97: =IF(G70="","",G70) ->  | G97: =IF(F97="","",INDEX(Table57[Average FI Crash Cost],MATCH('Input Summary'!$B$9,'Construction - do not delete'!$H$83:$H$96,0))*F97) ->  | H97: =IF(G88="","",G88) ->  | I97: =IF(H97="","",INDEX(Table57[Average FI Crash Cost],MATCH('Input Summary'!$B$9,'Construction - do not delete'!$H$83:$H$96,0))*H97) -> 
A98: Total, PDO | B98: =IF(G35="","",G35) ->  | C98: =IF(B98="","",INDEX(Table57[Average PDO Crash Cost],MATCH('Input Summary'!$B$9,'Construction - do not delete'!$H$83:$H$96,0))*B98) ->  | D98: =IF(G53="","",G53) ->  | E98: =IF(D98="","",INDEX(Table57[Average PDO Crash Cost],MATCH('Input Summary'!$B$9,'Construction - do not delete'!$H$83:$H$96,0))*D98) ->  | F98: =IF(G71="","",G71) ->  | G98: =IF(F98="","",INDEX(Table57[Average PDO Crash Cost],MATCH('Input Summary'!$B$9,'Construction - do not delete'!$H$83:$H$96,0))*F98) ->  | H98: =IF(G89="","",G89) ->  | I98: =IF(H98="","",INDEX(Table57[Average PDO Crash Cost],MATCH('Input Summary'!$B$9,'Construction - do not delete'!$H$83:$H$96,0))*H98) -> 
A99: Total, All | B99: =IF(SUM(B97:B98)=0,"",SUM(B97:B98)) ->  | C99: =IFERROR(C97+C98,"") ->  | D99: =IF(SUM(D97:D98)=0,"",SUM(D97:D98)) ->  | E99: =IFERROR(E97+E98,"") ->  | F99: =IF(SUM(F97:F98)=0,"",SUM(F97:F98)) ->  | G99: =IFERROR(G97+G98,"") ->  | H99: =IF(SUM(H97:H98)=0,"",SUM(H97:H98)) ->  | I99: =IFERROR(I97+I98,"") -> 
B101: =IF(Input!B49="","",Input!B49) ->  | C101: =IF(Input!C49="","",Input!C49) ->  | D101: =IF(Input!D49="","",Input!D49) ->  | E101: =IF(Input!E49="","",Input!E49) -> 
A102: Design Year Benefit | B102: =C99 ->  | C102: =E99 ->  | D102: =G99 ->  | E102: =I99 -> 
A103: Present Value Conversion Factor (from Equation 13) | B103: =IF('Input Summary'!B11>=1,(((1+'Input Summary'!E9)^Input!B51)-1)/('Input Summary'!E9*((1+'Input Summary'!E9)^Input!B51)),"") ->  | C103: =IF('Input Summary'!B11>=2,(((1+'Input Summary'!E9)^Input!C51)-1)/('Input Summary'!E9*((1+'Input Summary'!E9)^Input!C51)),"") ->  | D103: =IF('Input Summary'!B11>=3,(((1+'Input Summary'!E9)^Input!D51)-1)/('Input Summary'!E9*((1+'Input Summary'!E9)^Input!D51)),"") ->  | E103: =IF('Input Summary'!B11>=4,(((1+'Input Summary'!E9)^Input!E51)-1)/('Input Summary'!E9*((1+'Input Summary'!E9)^Input!E51)),"") -> 
A104: Lifetime Present Value | B104: =IF(B103="","",B102*B103) ->  | C104: =IF(C103="","",C102*C103) ->  | D104: =IF(D103="","",D102*D103) ->  | E104: =IF(E103="","",E102*E103) -> 
A105: Cost | B105: =IF(Input!D44<1,"",Input!B52) ->  | C105: =IF(Input!D44<2,"",Input!C52) ->  | D105: =IF(Input!D44<3,"",Input!D52) ->  | E105: =IF(Input!D44<4,"",Input!E52) -> 
A106: Benefit-Cost Ratio | B106: =IF(B103="","",B104/B105) ->  | C106: =IF(C103="","",C104/C105) ->  | D106: =IF(D103="","",D104/D105) ->  | E106: =IF(E103="","",E104/E105) -> 

Sheet Input Summary (hidden)
A1: Required Automated Input For Each Year | C1: Single Automated Data Pull
A3: General Information and Input Data for Urban and Suburban Arterial Intersections
A4: General Information | C4: Location Information
A5: Analyst | B5: =Input!C5 -> 0 | C5: City | D5: =Input!F5 -> 0
A6: Agency or Company | B6: =Input!C6 -> 0 | C6: Intersection | D6: =Input!F6 -> 0
A7: Date Performed | B7: =Input!C7 -> 00:00:00 | C7: Jurisdiction | D7: =Input!F7 -> 0
C8: Analysis Year | D8: =Input!F8 -> 0
A9: Facility Type: | B9: =Input!C43 -> Urban Three-Leg Stop-Controlled Intersection | C9: Discount Rate (i) | E9: =Input!B44 -> 0.07
A10: Sheet to Pull Data From: | B10: =Input!C11 -> 3ST MassDOT | C10: Intersection Type: | E10: =LEFT(B10,3) -> 3ST
A11: Number of Proposed Alternatives: | B11: =Input!D44 -> 0 | C11: Study Period: | E11: =Input!C8 -> 0
A12: Present Data:
A13: Present AADT(Major): | E13: 12000
A14: Present AADT(Minor): | E14: 5000
A15: Intersection Lighting (Present/Not Present): | E15: =Input!C12 -> Not Present
A17: Stop Controlled
A18: Present Data:
A19: Number of major-road approaches with left-turn lanes (0,1,2) | E19: =Input!G16 -> 0
A20: Number of major-road approaches with right-turn lanes (0,1,2) | E20: =Input!G17 -> 0
A22: Signal Controlled
A23: Present Data:
A24: Number of approaches with left-turn lanes (0,1,2,3,4) [for 3SG, use maximum value of 3] | E24: =Input!G20 -> 0
A25: Number of approaches with right-turn lanes (0,1,2,3,4) [for 3SG, use maximum value of 3] | E25: =Input!G21 -> 0
A26: Number of approaches with left-turn signal phasing [for 3SG, use maximum value of 3] | E26: =Input!G22 -> 0
A27: Type of left-turn signal phasing for Leg #1 | E27: =Input!G23 -> Permissive
A28: Type of left-turn signal phasing for Leg #2 | E28: =Input!G24 -> Permissive
A29: Type of left-turn signal phasing for Leg #3 | E29: =Input!G25 -> Permissive
A30: Type of left-turn signal phasing for Leg #4 (if applicable) | E30: =Input!G26 -> Permissive
A31: Number of approaches with right-turn-on-red prohibited [for 3SG, use maximum value of 3] | E31: =Input!G27 -> 0
A32: Intersection red light cameras (present/not present) | E32: =Input!G28 -> Not Present
A33: Sum of all pedestrian crossing volumes (PedVol) -- Signalized intersections only | E33: =Input!G29 -> 1
A34: Maximum number of lanes crossed by a pedestrian (nlanesx) | E34: =Input!G30 -> 0
A35: Number of bus stops within 300 m (1,000 ft) of the intersection | E35: =Input!G31 -> 0
A36: Schools within 300 m (1,000 ft) of the intersection (present/not present) | E36: =Input!G32 -> Not Present
A37: Number of alcohol sales establishments within 300 m (1,000 ft) of the intersection | E37: =Input!G33 -> 0

Sheet Design Year (hidden)
A1: Legend
A4: Worksheet 2A -- General Information and Input Data for Urban and Suburban Arterial Intersections
A5: General Information | H5: Location Information
A6: Analyst | E6: 0 | H6: City | K6: 0
A7: Agency or Company | E7: 0 | H7: Intersection | K7: 0
A8: Date Performed | E8: 00:00:00 | H8: Jurisdiction | K8: 0
H9: Analysis Year | K9: 0
A10: Input Data | H10: Base Conditions | J10: Site Conditions
A11: Intersection type (3ST, 3SG, 4ST, 4SG) | H11: -- | J11: 4SG
A12: AADT major (veh/day) | E12: AADTMAX = | F12: 67700 | G12: (veh/day) | H12: -- | J12: 12000 | O12: AADT OK
A13: AADT minor (veh/day) | E13: AADTMAX = | F13: 33400 | G13: (veh/day) | H13: -- | J13: 5000 | O13: AADT OK
A14: Intersection lighting (present/not present) | H14: Not Present | J14: Not Present
A15: Calibration factor, Ci | H15: 1 | J15: 0.98
A16: Data for signalized intersections only: | H16: -- | J16: --
A17: Number of approaches with left-turn lanes (0,1,2,3,4) [for 3SG, use maximum value of 3] | H17: 0 | J17: 2
A18: Number of approaches with right-turn lanes (0,1,2,3,4) [for 3SG, use maximum value of 3] | H18: 0 | J18: 2
A19: Number of approaches with left-turn signal phasing [for 3SG, use maximum value of 3] | H19: -- | J19: 1
A20: Type of left-turn signal phasing for Leg #1 | H20: Permissive | J20: Permissive
A21: Type of left-turn signal phasing for Leg #2 | H21: -- | J21: Permissive
A22: Type of left-turn signal phasing for Leg #3 | H22: -- | J22: Permissive
A23: Type of left-turn signal phasing for Leg #4 (if applicable) | H23: -- | J23: Permissive
A24: Number of approaches with right-turn-on-red prohibited [for 3SG, use maximum value of 3] | H24: 0 | J24: 0
A25: Intersection red light cameras (present/not present) | H25: Not Present | J25: Not Present
A26: Sum of all pedestrian crossing volumes (PedVol) -- Signalized intersections only | J26: 1
A27: Maximum number of lanes crossed by a pedestrian (nlanesx) | H27: -- | J27: 0
A28: Number of bus stops within 300 m (1,000 ft) of the intersection | H28: 0 | J28: 0
A29: Schools within 300 m (1,000 ft) of the intersection (present/not present) | H29: Not Present | J29: Not Present
A30: Number of alcohol sales establishments within 300 m (1,000 ft) of the intersection | H30: 0 | J30: 0
B32: SUMMARY OF INTERSECTION & CRASHES
B34: CMF1i | C34: CMF2i | D34: CMF3i | E34: CMF 4i | F34: CMF 5i | G34: CMF 1p | H34: CMF 2p | I34: CMF 3p | J34: Nbi_total | K34: Npedi_total | L34: Nbikei_total | M34: Npredictedint
B35: 0.81 | C35: 1 | D35: 0.92 | E35: 1 | F35: 1 | G35: 1 | H35: 1 | I35: 1 | J35: 4.992490794 | K35: 0.0002049752214 | L35: 0.03030343426 | M35: 5.022999203
A54: Worksheet 2B -- Crash Modification Factors for Urban and Suburban Arterial Intersections
A55: (1) | C55: (2) | E55: (3) | G55: (4) | I55: (5) | K55: (6) | M55: (7)
A56: CMF for Left-Turn Lanes | C56: CMF for Left-Turn Signal Phasing | E56: CMF for Right-Turn Lanes | G56: CMF for Right Turn on Red | I56: CMF for Lighting | K56: CMF for Red Light Cameras | M56: Combined CMF
A58: CMF 1i | C58: CMF 2i | E58: CMF 3i | G58: CMF 4i | I58: CMF 5i | K58: CMF 6i | M58: CMF COMB
A59: from Table 12-24 | C59: from Table 12-25 | E59: from Table 12-26 | G59: from Equation 12-35 | I59: from Equation 12-36 | K59: from Equation 12-37 | M59: (1)*(2)*(3)*(4)*(5)*(6)
A60: 0.81 | C60: 1 | E60: 0.92 | G60: 1 | I60: 1 | K60: 1 | M60: 0.7452
A64: Worksheet 2C -- Multiple-Vehicle Collisions by Severity Level for Urban and Suburban Arterial Intersections
A65: (1) | C65: (2) | F65: (3) | H65: (4) | I65: (5) | K65: (6) | L65: (7) | M65: (8) | N65: (9)
A66: Crash Severity Level | C66: SPF Coefficients | F66: Overdispersion Parameter, k | H66: Initial Nbimv | I66: Proportion of Total Crashes | K66: Adjusted Nbimv | L66: Combined CMFs | M66: Calibration Factor, Ci | N66: Predicted Nbimv
C68: from Table 12-10 | F68: from Table 12-10 | H68: from Equation 12-21 | K68: (4)TOTAL*(5) | L68: (7) from Worksheet 2B | N68: (6)*(7)*(8)
C69: a | D69: b | E69: c
A70: Total | C70: -5.037 | D70: 0.634 | E70: 0.113 | F70: 0.33 | H70: 6.556064463 | I70: 1 | K70: 6.556064463 | L70: 0.7452 | M70: 0.98 | N70: 4.787867653
A71: Fatal and Injury (FI) | C71: -7.601 | D71: 0.79 | E71: 0.093 | F71: 0.44 | H71: 1.842828999 | I71: (4)FI/((4)FI+(4)PDO) | K71: 1.868586914 | L71: 0.7452 | M71: 0.98 | N71: 1.364621549
I72: 0.285016556
A73: Property Damage Only (PDO) | C73: -5.247 | D73: 0.611 | E73: 0.122 | F73: 0.27 | H73: 4.622862065 | I73: (5)TOTAL-(5)FI | K73: 4.687477549 | L73: 0.7452 | M73: 0.98 | N73: 3.423246104
I74: 0.714983444
A92: Worksheet 2D -- Multiple-Vehicle Collisions by Collision Type for Urban and Suburban Arterial Intersections
A93: (1) | D93: (2) | F93: (3) | H93: (4) | J93: (5) | L93: (6)
A94: Collision Type | D94: Proportion of Collision Type(FI) | F94: Predicted N bimv (FI) (crashes/year) | H94: Proportion of Collision Type (PDO) | J94: Predicted N bimv (PDO) (crashes/year) | L94: Predicted N bimv (TOTAL) (crashes/year)
D97: from Table 12-11 | F97: (9)FI from Worksheet 2C | H97: from Table 12-11 | J97: (9)PDO from Worksheet 2C | L97: (9)PDO from Worksheet 2C
A99: Total | D99: 1 | F99: 1.364621549 | H99: 1 | J99: 3.423246104 | L99: 4.787867653
F100: (2)*(3)FI | J100: (4)*(5)PDO | L100: (3)+(5)
A101: Rear-end collision | D101: 0.303 | F101: 0.4134803294 | H101: 0.402 | J101: 1.376144934 | L101: 1.789625263
A102: Head-on collision | D102: 0.066 | F102: 0.09006502224 | H102: 0.038 | J102: 0.1300833519 | L102: 0.2201483742
A103: Angle collision | D103: 0.574 | F103: 0.7832927692 | H103: 0.443 | J103: 1.516498024 | L103: 2.299790793
A104: Sideswipe | D104: 0.03 | F104: 0.04093864647 | H104: 0.103 | J104: 0.3525943487 | L104: 0.3935329952
A105: Other multiple-vehicle collision | D105: 0.027 | F105: 0.03684478183 | H105: 0.014 | J105: 0.04792544545 | L105: 0.08477022728
A109: Worksheet 2E -- Single-Vehicle Collisions by Severity Level for Urban and Suburban Arterial Intersections
A110: (1) | C110: (2) | F110: (3) | H110: (4) | I110: (5) | K110: (6) | L110: (7) | M110: (8) | N110: (9)
A111: Crash Severity Level | C111: SPF Coefficients | F111: Overdispersion Parameter, k | H111: Initial Nbisv | I111: Proportion of Total Crashes | K111: Adjusted Nbimv | L111: Combined CMFs | M111: Calibration Factor, Ci | N111: Predicted Nbisv
C113: from Table 12-12 | F113: from Table 12-12 | H113: from Eqn. 12-24; (FI) from Eqn. 12-24 or 12-27 | K113: (4)TOTAL*(5) | L113: (7) from Worksheet 2B | N113: (6)*(7)*(8)
C114: a | D114: b | E114: c
A116: Total | C116: -8.255 | D116: 0.193 | E116: 0.607 | F116: 0.8 | H116: 0.2801920605 | I116: 1 | K116: 0.2801920605 | L116: 0.7452 | M116: 0.98 | N116: 0.204623141
A117: Fatal and Injury (FI) | C117: -9.154 | D117: 0.255 | E117: 0.513 | F117: 0.79 | H117: 0.09167082559 | I117: (4)FI/((4)FI+(4)PDO) | K117: 0.09219365974 | L117: 0.7452 | M117: 0.98 | N117: 0.06732866093
I118: 0.3290373738
A119: Property Damage Only (PDO) | C119: -8.494 | D119: 0.208 | E119: 0.571 | F119: 0.2 | H119: 0.1869322539 | I119: (5)TOTAL-(5)FI | K119: 0.1879984008 | L119: 0.7452 | M119: 0.98 | N119: 0.1372944801
I120: 0.6709626262
A124: Worksheet 2F -- Single-Vehicle Collisions by Collision Type for Urban and Suburban Arterial Intersections
A125: (1) | D125: (2) | F125: (3) | H125: (4) | J125: (5) | L125: (6)
A126: Collision Type | D126: Proportion of Collision Type(FI) | F126: Predicted N bisv (FI) (crashes/year) | H126: Proportion of Collision Type (PDO) | J126: Predicted N bisv (PDO) (crashes/year) | L126: Predicted N bisv (TOTAL) (crashes/year)
D129: from Table 12-13 | F129: (9)FI from Worksheet 2E | H129: from Table 12-13 | J129: (9)PDO from Worksheet 2E | L129: (9)PDO from Worksheet 2E
A131: Total | D131: 1 | F131: 0.06732866093 | H131: 1 | J131: 0.1372944801 | L131: 0.204623141
F132: (2)*(3)FI | J132: (4)*(5)PDO | L132: (3)+(5)
A133: Collision with parked vehicle | D133: 0 | F133: 0 | H133: 0.103 | J133: 0.01414133145 | L133: 0.01414133145
A134: Collision with animal | D134: 0.105 | F134: 0.007069509398 | H134: 0 | J134: 0 | L134: 0.007069509398
A135: Collision with fixed object | D135: 0.421 | F135: 0.02834536625 | H135: 0.795 | J135: 0.1091491117 | L135: 0.1374944779
A136: Collision with other object | D136: 0 | F136: 0 | H136: 0.051 | J136: 0.007002018485 | L136: 0.007002018485
A137: Other single-vehicle collision | D137: 0.474 | F137: 0.03191378528 | H137: 0.051 | J137: 0.007002018485 | L137: 0.03891580377
A138: Single-vehicle noncollision | D138: 0 | F138: 0 | H138: 0 | J138: 0 | L138: 0
B142: Worksheet 2G-1 -- Crash Modification Factors for Vehicle-Pedestrian Collisions for Urban and Suburban Arterial Signalized Intersections
B143: (1) | E143: (2) | H143: (3) | K143: (4)
B144: CMF for Bus Stops | E144: CMF for Schools | H144: CMF for Alcohol Sales Establishments | K144: Combined CMF
B145: CMF1p | E145: CMF2p | H145: CMF3p
B146: from Table 12-28 | E146: from Table 12-29 | H146: from Table 12-30 | K146: (1)*(2)*(3)
B147: 1 | E147: 1 | H147: 1 | K147: 1
A151: Worksheet 2G -- Vehicle-Pedestrian Collisions for Urban and Suburban Arterial Signalized Intersections
A152: (1) | C152: (2) | H152: (3) | I152: (4) | K152: (5) | M152: (7)
A153: Crash Severity Level | C153: SPF Coefficients | H153: Overdispersion Parameter, k | I153: Npedbase | K153: Combined CMF | M153: Predicted Npedi
C155: from Table 12-14 | I155: from Equation 12-29 | K155: (4) from Worksheet 2H | M155: (4)*(5)
C156: a | D156: b | E156: c | F156: d | G156: e
A157: Total | C157: -10.059 | D157: 0.199 | E157: 0.425 | F157: 0.59 | G157: 0.178 | H157: 0.13 | I157: 0.0002049752214 | K157: 1 | M157: 0.0002049752214
A158: Fatal and Injury (FI) | C158: -- | D158: -- | E158: -- | F158: -- | G158: -- | H158: -- | I158: -- | K158: -- | M158: 0.0002049752214
A162: Worksheet 2J -- Vehicle-Bicycle Collisions for Urban and Suburban Arterial Intersections
A163: (1) | D163: (2) | F163: (3) | H163: (4) | I163: (5) | K163: (7)
A164: Crash Severity Level | D164: Predicted Nbimv | F164: Predicted Nbisv | H164: Predicted Nbi | I164: fbikei | K164: Predicted Nbikei
D166: (9) from Worksheet 2C | F166: (9) from Worksheet 2E | H166: (2) + (3) | I166: from Table 12-17 | K166: (4)*(5)*(6)
A168: Total | D168: 4.787867653 | F168: 0.204623141 | H168: 4.992490794 | I168: 0.006069802731 | K168: 0.03030343426
A169: Fatal and injury (FI) | D169: -- | F169: -- | H169: -- | I169: -- | K169: 0.03030343426
A173: Worksheet 2K -- Crash Severity Distribution for Urban and Suburban Arterial Intersections
A174: (1) | F174: (2) | I174: (3) | L174: (4)
A175: Collision type | F175: Fatal and injury (FI) | I175: Property damage only (PDO) | L175: Total
F176: (3) from Worksheet 2D and 2F; | I176: (5) from Worksheet 2D and 2F | L176: (6) from Worksheet 2D and 2F;
F177: (7) from Worksheet 2G and 2J | L177: (7) from Worksheet 2G and 2J
A178: MULTIPLE-VEHICLE
A179: Rear-end collisions (from Worksheet 2D) | F179: 0.4134803294 | I179: 1.376144934 | L179: 1.789625263
A180: Head-on collisions (from Worksheet 2D) | F180: 0.09006502224 | I180: 0.1300833519 | L180: 0.2201483742
A181: Angle collisions (from Worksheet 2D) | F181: 0.7832927692 | I181: 1.516498024 | L181: 2.299790793
A182: Sideswipe (from Worksheet 2D) | F182: 0.04093864647 | I182: 0.3525943487 | L182: 0.3935329952
A183: Other multiple-vehicle collision (from Worksheet 2D) | F183: 0.03684478183 | I183: 0.04792544545 | L183: 0.08477022728
A184: Subtotal | F184: 1.364621549 | I184: 3.423246104 | L184: 4.787867653
A185: SINGLE-VEHICLE
A186: Collision with parked vehicle (from Worksheet 2F) | F186: 0 | I186: 0.01414133145 | L186: 0.01414133145
A187: Collision with animal (from Worksheet 2F) | F187: 0.007069509398 | I187: 0 | L187: 0.007069509398
A188: Collision with fixed object (from Worksheet 2F) | F188: 0.02834536625 | I188: 0.1091491117 | L188: 0.1374944779
A189: Collision with other object (from Worksheet 2F) | F189: 0 | I189: 0.007002018485 | L189: 0.007002018485
A190: Other single-vehicle collision (from Worksheet 2F) | F190: 0.03191378528 | I190: 0.007002018485 | L190: 0.03891580377
A191: Single-vehicle noncollision (from Worksheet 2F) | F191: 0 | I191: 0 | L191: 0
A192: Collision with pedestrian (from Worksheet 2G or 2I) | F192: 0.0002049752214 | I192: 0 | L192: 0.0002049752214
A193: Collision with bicycle (from Worksheet 2J) | F193: 0.03030343426 | I193: 0 | L193: 0.03030343426
A194: Subtotal | F194: 0.09783707041 | I194: 0.1372944801 | L194: 0.2351315505
A195: Total | F195: 1.462458619 | I195: 3.560540584 | L195: 5.022999203
E199: Worksheet 2L -- Summary Results for Urban and Suburban Arterial Intersections
E200: (1) | H200: (2)
E201: Crash severity level | H201: Predicted average crash frequency, Npredicted int (crashes/year)
H204: Total
E205: Total | H205: 5.022999203
E206: Fatal and injury (FI) | H206: 1.462458619
E207: Property damage only (PDO) | H207: 3.560540584

Sheet 3ST MassDOT (hidden)
A1: Legend
A4: Worksheet 2A -- General Information and Input Data for Urban and Suburban Arterial Intersections
A5: General Information | H5: Location Information
A6: Analyst | E6: ='Input Summary'!B5 -> 0 | H6: City | K6: ='Input Summary'!D5 -> 0
A7: Agency or Company | E7: ='Input Summary'!B6 -> 0 | H7: Intersection | K7: ='Input Summary'!D6 -> 0
A8: Date Performed | E8: ='Input Summary'!B7 -> 00:00:00 | H8: Jurisdiction | K8: ='Input Summary'!D7 -> 0
H9: Analysis Year | K9: ='Input Summary'!D8 -> 0
A10: Input Data | H10: Base Conditions | J10: Site Conditions
A11: Intersection type (3ST, 3SG, 4ST, 4SG) | H11: -- | J11: 3ST | P11: =IF($J$11="3ST","Unsignalized three-leg intersection (stop control on minor-road approaches)",IF($J$11="3SG","Signalized three-leg intersections",IF($J$11="4ST","Unsignalized four-leg intersection (stop control on minor-road approaches)","Signalized four-leg intersections"))) -> Unsignalized three-leg intersection (stop control on minor-road approaches)
A12: AADT major (veh/day) | E12: AADTMAX = | F12: 45700 | G12: (veh/day) | H12: -- | J12: ='Input Summary'!E13 -> 12000 | O12: =IF(J12>F12,"AADT out of range","AADT OK") -> AADT OK
A13: AADT minor (veh/day) | E13: AADTMAX = | F13: 9300 | G13: (veh/day) | H13: -- | J13: ='Input Summary'!E14 -> 5000 | O13: =IF(J13>F13,"AADT out of range","AADT OK") -> AADT OK
A14: Intersection lighting (present/not present) | H14: Not Present | J14: ='Input Summary'!E15 -> Not Present
A15: Calibration factor, Ci | H15: 1 | J15: ='Calibration Factors'!E7 -> 0.98
A16: Data for unsignalized intersections only: | H16: -- | J16: --
A17: Number of major-road approaches with left-turn lanes (0,1,2) | H17: 0 | J17: ='Input Summary'!E19 -> 0
A18: Number of major-road approaches with right-turn lanes (0,1,2) | H18: 0 | J18: ='Input Summary'!E20 -> 0
C20: SUMMARY OF INTERSECTION & CRASHES
C22: CMF1i | D22: CMF2i | E22: CMF3i | F22: CMF 4i | G22: CMF 5i | H22: Nbi_total | I22: Npedi_total | J22: Nbikei_total | K22: Npredictedint
C23: =A60 -> 1 | D23: =C60 -> 1 | E23: =E60 -> 1 | F23: =G60 -> 1 | G23: =I60 -> 1 | H23: =$H$157 -> 1.969933461 | I23: =$M$157 -> 0.02954900191 | J23: =$K$168 -> 0.009849667304 | K23: =$H$205 -> 2.00933213
A54: Worksheet 2B -- Crash Modification Factors for Urban and Suburban Arterial Intersections
A55: (1) | C55: (2) | E55: (3) | G55: (4) | I55: (5) | K55: (6) | M55: (7)
A56: CMF for Left-Turn Lanes | C56: CMF for Left-Turn Signal Phasing | E56: CMF for Right-Turn Lanes | G56: CMF for Right Turn on Red | I56: CMF for Lighting | K56: CMF for Red Light Cameras | M56: Combined CMF
A58: CMF 1i | C58: CMF 2i | E58: CMF 3i | G58: CMF 4i | I58: CMF 5i | K58: CMF 6i | M58: CMF COMB
A59: from Table 12-24 | C59: from Table 12-25 | E59: from Table 12-26 | G59: from Equation 12-35 | I59: from Equation 12-36 | K59: from Equation 12-37 | M59: (1)*(2)*(3)*(4)*(5)*(6)
A60: =IF(J17=0,1,IF(J17=1,'Intersection Tables'!AB13,'Intersection Tables'!AC13)) -> 1 | C60: 1 | E60: =IF(J18=0,1,IF(J18=1,'Intersection Tables'!AB28,'Intersection Tables'!AC28)) -> 1 | G60: 1 | I60: =IF($J$14="Not Present",1,(1-'Intersection Tables'!F87*0.38)) -> 1 | K60: 1 | M60: =+A60*C60*E60*G60*I60*K60 -> 1
A64: Worksheet 2C -- Multiple-Vehicle Collisions by Severity Level for Urban and Suburban Arterial Intersections
A65: (1) | C65: (2) | F65: (3) | H65: (4) | I65: (5) | K65: (6) | L65: (7) | M65: (8) | N65: (9)
A66: Crash Severity Level | C66: SPF Coefficients | F66: Overdispersion Parameter, k | H66: Initial Nbimv | I66: Proportion of Total Crashes | K66: Adjusted Nbimv | L66: Combined CMFs | M66: Calibration Factor, Ci | N66: Predicted Nbimv
C68: from Table 12-10 | F68: from Table 12-10 | H68: from Equation 12-21 | K68: (4)TOTAL*(5) | L68: (7) from Worksheet 2B | N68: (6)*(7)*(8)
C69: a | D69: b | E69: c
A70: Total | C70: ='Intersection Tables'!C13 -> -8.86 | D70: ='Intersection Tables'!D13 -> 0.475 | E70: ='Intersection Tables'!E13 -> 0.587 | F70: ='Intersection Tables'!F13 -> 0.97 | H70: =EXP(C70+(D70*LN($J$12))+(E70*LN($J$13))) -> 1.824136674 | I70: 1 | K70: =H70*I70 -> 1.824136674 | L70: =+M60 -> 1 | M70: =+$J$15 -> 0.98 | N70: =+K70*L70*M70 -> 1.78765394
A71: Fatal and Injury (FI) | C71: ='Intersection Tables'!C18 -> -8.968 | D71: ='Intersection Tables'!D18 -> 0.443 | E71: ='Intersection Tables'!E18 -> 0.444 | F71: ='Intersection Tables'!F18 -> 0.76 | H71: =EXP(C71+(D71*LN($J$12))+(E71*LN($J$13))) -> 0.3586468826 | I71: (4)FI/((4)FI+(4)PDO) | K71: =H70*I72 -> 0.360758725 | L71: =+M60 -> 1 | M71: =+$J$15 -> 0.98 | N71: =+K71*L71*M71 -> 0.3535435505
I72: =+H71/(H71+H73) -> 0.1977695697
A73: Property Damage Only (PDO) | C73: ='Intersection Tables'!C23 -> -9.53 | D73: ='Intersection Tables'!D23 -> 0.476 | E73: ='Intersection Tables'!E23 -> 0.638 | F73: ='Intersection Tables'!F23 -> 0.92 | H73: =EXP(C73+(D73*LN($J$12))+(E73*LN($J$13))) -> 1.454811493 | I73: (5)TOTAL-(5)FI | K73: =H70*I74 -> 1.463377949 | L73: =+M60 -> 1 | M73: =+$J$15 -> 0.98 | N73: =+K73*L73*M73 -> 1.43411039
I74: =I70-I72 -> 0.8022304303
A92: Worksheet 2D -- Multiple-Vehicle Collisions by Collision Type for Urban and Suburban Arterial Intersections
A93: (1) | D93: (2) | F93: (3) | H93: (4) | J93: (5) | L93: (6)
A94: Collision Type | D94: Proportion of Collision Type(FI) | F94: Predicted N bimv (FI) (crashes/year) | H94: Proportion of Collision Type (PDO) | J94: Predicted N bimv (PDO) (crashes/year) | L94: Predicted N bimv (TOTAL) (crashes/year)
D97: from Table 12-11 | F97: (9)FI from Worksheet 2C | H97: from Table 12-11 | J97: (9)PDO from Worksheet 2C | L97: (9)PDO from Worksheet 2C
A99: Total | D99: =SUM(D101:E105) -> 1 | F99: =+N71 -> 0.3535435505 | H99: =SUM(H101:I105) -> 1 | J99: =+N73 -> 1.43411039 | L99: =+N70 -> 1.78765394
F100: (2)*(3)FI | J100: (4)*(5)PDO | L100: (3)+(5)
A101: Rear-end collision | D101: ='Intersection Tables'!D50 -> 0.28 | F101: =+D101*$F$99 -> 0.09899219413 | H101: ='Intersection Tables'!E50 -> 0.316 | J101: =+H101*$J$99 -> 0.4531788831 | L101: =+F101+J101 -> 0.5521710773
A102: Head-on collision | D102: ='Intersection Tables'!D51 -> 0.061 | F102: =+D102*$F$99 -> 0.02156615658 | H102: ='Intersection Tables'!E51 -> 0.033 | J102: =+H102*$J$99 -> 0.04732564286 | L102: =+F102+J102 -> 0.06889179944
A103: Angle collision | D103: ='Intersection Tables'!D52 -> 0.598 | F103: =+D103*$F$99 -> 0.2114190432 | H103: ='Intersection Tables'!E52 -> 0.57 | J103: =+H103*$J$99 -> 0.8174429221 | L103: =+F103+J103 -> 1.028861965
A104: Sideswipe | D104: ='Intersection Tables'!D53 -> 0.037 | F104: =+D104*$F$99 -> 0.01308111137 | H104: ='Intersection Tables'!E53 -> 0.07 | J104: =+H104*$J$99 -> 0.1003877273 | L104: =+F104+J104 -> 0.1134688386
A105: Other multiple-vehicle collision | D105: ='Intersection Tables'!D54 -> 0.024 | F105: =+D105*$F$99 -> 0.008485045211 | H105: ='Intersection Tables'!E54 -> 0.011 | J105: =+H105*$J$99 -> 0.01577521429 | L105: =+F105+J105 -> 0.0242602595
A109: Worksheet 2E -- Single-Vehicle Collisions by Severity Level for Urban and Suburban Arterial Intersections
A110: (1) | C110: (2) | F110: (3) | H110: (4) | I110: (5) | K110: (6) | L110: (7) | M110: (8) | N110: (9)
A111: Crash Severity Level | C111: SPF Coefficients | F111: Overdispersion Parameter, k | H111: Initial Nbisv | I111: Proportion of Total Crashes | K111: Adjusted Nbimv | L111: Combined CMFs | M111: Calibration Factor, Ci | N111: Predicted Nbisv
C113: from Table 12-12 | F113: from Table 12-12 | H113: from Eqn. 12-24; (FI) from Eqn. 12-24 or 12-27 | K113: (4)TOTAL*(5) | L113: (7) from Worksheet 2B | N113: (6)*(7)*(8)
C114: a | D114: b | E114: c
A116: Total | C116: ='Intersection Tables'!J13 -> -6.95 | D116: ='Intersection Tables'!K13 -> 0.112 | E116: ='Intersection Tables'!L13 -> 0.495 | F116: ='Intersection Tables'!M13 -> 0.51 | H116: =EXP(C116+(D116*LN($J$12))+(E116*LN($J$13))) -> 0.185999511 | I116: 1 | K116: =H116*I116 -> 0.185999511 | L116: =+M60 -> 1 | M116: =+$J$15 -> 0.98 | N116: =H116*L116*M116 -> 0.1822795208
A117: Fatal and Injury (FI) | C117: =VLOOKUP($J$11,'Intersection Tables'!$I$18:$M$21,2,FALSE) -> -- | D117: =VLOOKUP($J$11,'Intersection Tables'!$I$18:$M$21,3,FALSE) -> -- | E117: =VLOOKUP($J$11,'Intersection Tables'!$I$18:$M$21,4,FALSE) -> -- | F117: =VLOOKUP($J$11,'Intersection Tables'!$I$18:$M$21,5,FALSE) -> 0 | H117: =H116*'Intersection Tables'!Q78 -> 0.04463988264 | I117: (4)FI/((4)FI+(4)PDO) | K117: =H116*I118 -> 0.04520979317 | L117: =+M60 -> 1 | M117: =+$J$15 -> 0.98 | N117: =+K117*L117*M117 -> 0.0443055973
I118: =+H117/(H117+H119) -> 0.2430640431
A119: Property Damage Only (PDO) | C119: ='Intersection Tables'!J23 -> -7.218 | D119: ='Intersection Tables'!K23 -> 0.105 | E119: ='Intersection Tables'!L23 -> 0.5 | F119: ='Intersection Tables'!M23 -> 0.47 | H119: =EXP(C119+(D119*LN($J$12))+(E119*LN($J$13))) -> 0.1390149355 | I119: (5)TOTAL-(5)FI | K119: =H116*I120 -> 0.1407897178 | L119: =+M60 -> 1 | M119: =+$J$15 -> 0.98 | N119: =+K119*L119*M119 -> 0.1379739235
I120: =I116-I118 -> 0.7569359569
A124: Worksheet 2F -- Single-Vehicle Collisions by Collision Type for Urban and Suburban Arterial Intersections
A125: (1) | D125: (2) | F125: (3) | H125: (4) | J125: (5) | L125: (6)
A126: Collision Type | D126: Proportion of Collision Type(FI) | F126: Predicted N bisv (FI) (crashes/year) | H126: Proportion of Collision Type (PDO) | J126: Predicted N bisv (PDO) (crashes/year) | L126: Predicted N bisv (TOTAL) (crashes/year)
D129: from Table 12-13 | F129: (9)FI from Worksheet 2E | H129: from Table 12-13 | J129: (9)PDO from Worksheet 2E | L129: (9)PDO from Worksheet 2E
A131: Total | D131: =SUM(D133:E138) -> 1 | F131: =+N117 -> 0.0443055973 | H131: =SUM(H133:I138) -> 1 | J131: =+N119 -> 0.1379739235 | L131: =+N116 -> 0.1822795208
F132: (2)*(3)FI | J132: (4)*(5)PDO | L132: (3)+(5)
A133: Collision with parked vehicle | D133: ='Intersection Tables'!D74 -> 0.091 | F133: =+D133*$F$131 -> 0.004031809354 | H133: ='Intersection Tables'!E74 -> 0.029 | J133: =+H133*$J$131 -> 0.004001243781 | L133: =+F133+J133 -> 0.008033053136
A134: Collision with animal | D134: ='Intersection Tables'!D75 -> 0 | F134: 0 | H134: ='Intersection Tables'!E75 -> 0 | J134: 0 | L134: 0
A135: Collision with fixed object | D135: ='Intersection Tables'!D76 -> 0.818 | F135: 0.03624197859 | H135: ='Intersection Tables'!E76 -> 0.743 | J135: 0.1025146252 | L135: 0.1387566037
A136: Collision with other object | D136: ='Intersection Tables'!D77 -> 0 | F136: 0 | H136: ='Intersection Tables'!E77 -> 0.057 | J136: 0.007864513639 | L136: 0.007864513639
A137: Other single-vehicle collision | D137: ='Intersection Tables'!D78 -> 0.091 | F137: 0.004031809354 | H137: ='Intersection Tables'!E78 -> 0.142 | J137: 0.01959229714 | L137: 0.02362410649
A138: Single-vehicle noncollision | D138: ='Intersection Tables'!D79 -> 0 | F138: 0 | H138: ='Intersection Tables'!E79 -> 0.029 | J138: 0.004001243781 | L138: 0.004001243781
A151: Worksheet 2G -- Vehicle-Pedestrian Collisions for Urban and Suburban Arterial Stop-Controlled Intersections
A152: (1) | D152: (2) | F152: (3) | H152: (4) | I152: (5) | M152: (7)
A153: Crash Severity Level | D153: Predicted Nbimv | F153: Predicted Nbisv | H153: Predicted Nbi | I153: fpedi | M153: Predicted Npedi
D155: (9) from Worksheet 2C | F155: (9) from Worksheet 2E | H155: (2) + (3) | I155: from Table 12-16 | M155: (4)*(5)*(6)
A157: Total | D157: =IF($J$11="3SG","--",IF($J$11="4SG","--",N70)) -> 1.78765394 | F157: =IF($J$11="3SG","--",IF($J$11="4SG","--",N116)) -> 0.1822795208 | H157: =IF($J$11="3SG","--",IF($J$11="4SG","--",(D157+F157))) -> 1.969933461 | I157: ='Intersection Tables'!M100 -> 0.015 | M157: =IF(J11="3SG","--",IF(J11="4SG","--",$H$157*$I$157)) -> 0.02954900191
A158: Fatal and injury (FI) | D158: -- | F158: -- | H158: -- | I158: -- | M158: =+M157 -> 0.02954900191
A162: Worksheet 2J -- Vehicle-Bicycle Collisions for Urban and Suburban Arterial Intersections
A163: (1) | D163: (2) | F163: (3) | H163: (4) | I163: (5) | K163: (7)
A164: Crash Severity Level | D164: Predicted Nbimv | F164: Predicted Nbisv | H164: Predicted Nbi | I164: fbikei | K164: Predicted Nbikei
D166: (9) from Worksheet 2C | F166: (9) from Worksheet 2E | H166: (2) + (3) | I166: from Table 12-17 | K166: (4)*(5)*(6)
A168: Total | D168: =+$N$70 -> 1.78765394 | F168: =+$N$116 -> 0.1822795208 | H168: =+D168+F168 -> 1.969933461 | I168: ='Intersection Tables'!N100 -> 0.005 | K168: =+$H$168*$I$168 -> 0.009849667304
A169: Fatal and injury (FI) | D169: -- | F169: -- | H169: -- | I169: -- | K169: =+K168 -> 0.009849667304
A173: Worksheet 2K -- Crash Severity Distribution for Urban and Suburban Arterial Intersections
A174: (1) | F174: (2) | I174: (3) | L174: (4)
A175: Collision type | F175: Fatal and injury (FI) | I175: Property damage only (PDO) | L175: Total
F176: (3) from Worksheet 2D and 2F; | I176: (5) from Worksheet 2D and 2F | L176: (6) from Worksheet 2D and 2F;
F177: (7) from Worksheet 2G and 2J | L177: (7) from Worksheet 2G and 2J
A178: MULTIPLE-VEHICLE
A179: Rear-end collisions (from Worksheet 2D) | F179: =+F101 -> 0.09899219413 | I179: =+J101 -> 0.4531788831 | L179: =+L101 -> 0.5521710773
A180: Head-on collisions (from Worksheet 2D) | F180: =+F102 -> 0.02156615658 | I180: =+J102 -> 0.04732564286 | L180: =+L102 -> 0.06889179944
A181: Angle collisions (from Worksheet 2D) | F181: =+F103 -> 0.2114190432 | I181: =+J103 -> 0.8174429221 | L181: =+L103 -> 1.028861965
A182: Sideswipe (from Worksheet 2D) | F182: =+F104 -> 0.01308111137 | I182: =+J104 -> 0.1003877273 | L182: =+L104 -> 0.1134688386
A183: Other multiple-vehicle collision (from Worksheet 2D) | F183: =+F105 -> 0.008485045211 | I183: =+J105 -> 0.01577521429 | L183: =+L105 -> 0.0242602595
A184: Subtotal | F184: =SUM(F179:H183) -> 0.3535435505 | I184: =SUM(I179:K183) -> 1.43411039 | L184: =SUM(L179:N183) -> 1.78765394
A185: SINGLE-VEHICLE
A186: Collision with parked vehicle (from Worksheet 2F) | F186: =+F133 -> 0.004031809354 | I186: =+J133 -> 0.004001243781 | L186: =+L133 -> 0.008033053136
A187: Collision with animal (from Worksheet 2F) | F187: 0 | I187: 0 | L187: 0
A188: Collision with fixed object (from Worksheet 2F) | F188: 0.03624197859 | I188: 0.1025146252 | L188: 0.1387566037
A189: Collision with other object (from Worksheet 2F) | F189: 0 | I189: 0.007864513639 | L189: 0.007864513639
A190: Other single-vehicle collision (from Worksheet 2F) | F190: 0.004031809354 | I190: 0.01959229714 | L190: 0.02362410649
A191: Single-vehicle noncollision (from Worksheet 2F) | F191: 0 | I191: 0.004001243781 | L191: 0.004001243781
A192: Collision with pedestrian (from Worksheet 2G or 2I) | F192: =IF(J11="3ST",M158,IF(J11="4ST",M158,#REF!)) -> 0.02954900191 | I192: 0 | L192: =+F192+I192 -> 0.02954900191
A193: Collision with bicycle (from Worksheet 2J) | F193: =+K169 -> 0.009849667304 | I193: 0 | L193: =+F193+I193 -> 0.009849667304
A194: Subtotal | F194: =SUM(F186:H193) -> 0.08370426652 | I194: =SUM(I186:K193) -> 0.1379739235 | L194: =SUM(L186:N193) -> 0.22167819
A195: Total | F195: =+F184+F194 -> 0.437247817 | I195: =+I184+I194 -> 1.572084313 | L195: =+L184+L194 -> 2.00933213
E199: Worksheet 2L -- Summary Results for Urban and Suburban Arterial Intersections
E200: (1) | H200: (2)
E201: Crash severity level | H201: Predicted average crash frequency, Npredicted int (crashes/year)
H204: (Total) from Worksheet 2K
E205: Total | H205: =H168+K168+M157 -> 2.00933213
E206: Fatal and injury (FI) | H206: =+F195 -> 0.437247817
E207: Property damage only (PDO) | H207: =+I195 -> 1.572084313

Sheet 4ST MassDOT (hidden)
A1: Legend
A4: Worksheet 2A -- General Information and Input Data for Urban and Suburban Arterial Intersections
A5: General Information | H5: Location Information
A6: Analyst | E6: ='Input Summary'!B5 -> 0 | H6: City | K6: ='Input Summary'!D5 -> 0
A7: Agency or Company | E7: ='Input Summary'!B6 -> 0 | H7: Intersection | K7: ='Input Summary'!D6 -> 0
A8: Date Performed | E8: ='Input Summary'!B7 -> 00:00:00 | H8: Jurisdiction | K8: ='Input Summary'!D7 -> 0
H9: Analysis Year | K9: ='Input Summary'!D8 -> 0
A10: Input Data | H10: Base Conditions | J10: Site Conditions
A11: Intersection type (3ST, 3SG, 4ST, 4SG) | H11: -- | J11: 4ST | P11: =IF($J$11="3ST","Unsignalized three-leg intersection (stop control on minor-road approaches)",IF($J$11="3SG","Signalized three-leg intersections",IF($J$11="4ST","Unsignalized four-leg intersection (stop control on minor-road approaches)","Signalized four-leg intersections"))) -> Unsignalized four-leg intersection (stop control on minor-road approaches)
A12: AADT major (veh/day) | E12: AADTMAX = | F12: 46800 | G12: (veh/day) | H12: -- | J12: ='Input Summary'!E13 -> 12000 | O12: =IF(J12>F12,"AADT out of range","AADT OK") -> AADT OK
A13: AADT minor (veh/day) | E13: AADTMAX = | F13: 5900 | G13: (veh/day) | H13: -- | J13: ='Input Summary'!E14 -> 5000 | O13: =IF(J13>F13,"AADT out of range","AADT OK") -> AADT OK
A14: Intersection lighting (present/not present) | H14: Not Present | J14: ='Input Summary'!E15 -> Not Present
A15: Calibration factor, Ci | H15: 1 | J15: ='Calibration Factors'!G7 -> 1.01
A16: Data for unsignalized intersections only: | H16: -- | J16: --
A17: Number of major-road approaches with left-turn lanes (0,1,2) | H17: 0 | J17: ='Input Summary'!E19 -> 0
A18: Number of major-road approaches with right-turn lanes (0,1,2) | H18: 0 | J18: ='Input Summary'!E20 -> 0
D20: SUMMARY OF INTERSECTION & CRASHES
D22: CMF1i | E22: CMF2i | F22: CMF3i | G22: CMF 4i | H22: CMF 5i | I22: Nbi_total | J22: Npedi_total | K22: Nbikei_total | L22: Npredictedint
D23: =A60 -> 1 | E23: =C60 -> 1 | F23: =E60 -> 1 | G23: =G60 -> 1 | H23: =I60 -> 1 | I23: =H157 -> 5.054770449 | J23: =M157 -> 0.06447411287 | K23: =K168 -> 0.06447411287 | L23: =H205 -> 5.183718675
A54: Worksheet 2B -- Crash Modification Factors for Urban and Suburban Arterial Intersections
A55: (1) | C55: (2) | E55: (3) | G55: (4) | I55: (5) | K55: (6) | M55: (7)
A56: CMF for Left-Turn Lanes | C56: CMF for Left-Turn Signal Phasing | E56: CMF for Right-Turn Lanes | G56: CMF for Right Turn on Red | I56: CMF for Lighting | K56: CMF for Red Light Cameras | M56: Combined CMF
A58: CMF 1i | C58: CMF 2i | E58: CMF 3i | G58: CMF 4i | I58: CMF 5i | K58: CMF 6i | M58: CMF COMB
A59: from Table 12-24 | C59: from Table 12-25 | E59: from Table 12-26 | G59: from Equation 12-35 | I59: from Equation 12-36 | K59: from Equation 12-37 | M59: (1)*(2)*(3)*(4)*(5)*(6)
A60: =IF(J17=0,1,IF(J17=1,'Intersection Tables'!AB15,'Intersection Tables'!AC15)) -> 1 | C60: 1 | E60: =IF(J18=0,1,IF(J18=1,'Intersection Tables'!AB30,'Intersection Tables'!AC30)) -> 1 | G60: 1 | I60: =IF($J$14="Not Present",1,1-'Intersection Tables'!F88*0.38) -> 1 | K60: 1 | M60: =+A60*C60*E60*G60*I60*K60 -> 1
A64: Worksheet 2C -- Multiple-Vehicle Collisions by Severity Level for Urban and Suburban Arterial Intersections
A65: (1) | C65: (2) | F65: (3) | H65: (4) | I65: (5) | K65: (6) | L65: (7) | M65: (8) | N65: (9)
A66: Crash Severity Level | C66: SPF Coefficients | F66: Overdispersion Parameter, k | H66: Initial Nbimv | I66: Proportion of Total Crashes | K66: Adjusted Nbimv | L66: Combined CMFs | M66: Calibration Factor, Ci | N66: Predicted Nbimv
C68: from Table 12-10 | F68: from Table 12-10 | H68: from Equation 12-21 | K68: (4)TOTAL*(5) | L68: (7) from Worksheet 2B | N68: (6)*(7)*(8)
C69: a | D69: b | E69: c
A70: Total | C70: ='Intersection Tables'!C15 -> -9.331 | D70: ='Intersection Tables'!D15 -> 0.573 | E70: ='Intersection Tables'!E15 -> 0.649 | F70: ='Intersection Tables'!F15 -> 1.21 | H70: =EXP(C70+(D70*LN($J$12))+(E70*LN($J$13))) -> 4.848423819 | I70: 1 | K70: =H70*I70 -> 4.848423819 | L70: =+$M$60 -> 1 | M70: =+$J$15 -> 1.01 | N70: =+K70*L70*M70 -> 4.896908057
A71: Fatal and Injury (FI) | C71: ='Intersection Tables'!C20 -> -7.309 | D71: ='Intersection Tables'!D20 -> 0.424 | E71: ='Intersection Tables'!E20 -> 0.413 | F71: ='Intersection Tables'!F20 -> 1.75 | H71: =EXP(C71+(D71*LN($J$12))+(E71*LN($J$13))) -> 1.210567728 | I71: (4)FI/((4)FI+(4)PDO) | K71: =H70*I72 -> 1.18408381 | L71: =+$M$60 -> 1 | M71: =+$J$15 -> 1.01 | N71: =+K71*L71*M71 -> 1.195924648
I72: =+H71/(H71+H73) -> 0.2442203599
A73: Property Damage Only (PDO) | C73: ='Intersection Tables'!C25 -> -11.569 | D73: ='Intersection Tables'!D25 -> 0.675 | E73: ='Intersection Tables'!E25 -> 0.769 | F73: ='Intersection Tables'!F25 -> 1.03 | H73: =EXP(C73+(D73*LN($J$12))+(E73*LN($J$13))) -> 3.746298801 | I73: (5)TOTAL-(5)FI | K73: =H70*I74 -> 3.664340009 | L73: =+$M$60 -> 1 | M73: =+$J$15 -> 1.01 | N73: =+K73*L73*M73 -> 3.700983409
I74: =I70-I72 -> 0.7557796401
A92: Worksheet 2D -- Multiple-Vehicle Collisions by Collision Type for Urban and Suburban Arterial Intersections
A93: (1) | D93: (2) | F93: (3) | H93: (4) | J93: (5) | L93: (6)
A94: Collision Type | D94: Proportion of Collision Type(FI) | F94: Predicted N bimv (FI) (crashes/year) | H94: Proportion of Collision Type (PDO) | J94: Predicted N bimv (PDO) (crashes/year) | L94: Predicted N bimv (TOTAL) (crashes/year)
D97: from Table 12-11 | F97: (9)FI from Worksheet 2C | H97: from Table 12-11 | J97: (9)PDO from Worksheet 2C | L97: (9)PDO from Worksheet 2C
A99: Total | D99: =SUM(D101:E105) -> 1 | F99: =+N71 -> 1.195924648 | H99: =SUM(H101:I105) -> 1 | J99: =+N73 -> 3.700983409 | L99: =+N70 -> 4.896908057
F100: (2)*(3)FI | J100: (4)*(5)PDO | L100: (3)+(5)
A101: Rear-end collision | D101: ='Intersection Tables'!H50 -> 0.077 | F101: =+D101*$F$99 -> 0.09208619791 | H101: ='Intersection Tables'!I50 -> 0.157 | J101: =+H101*$J$99 -> 0.5810543953 | L101: =+F101+J101 -> 0.6731405932
A102: Head-on collision | D102: ='Intersection Tables'!H51 -> 0.015 | F102: =+D102*$F$99 -> 0.01793886972 | H102: ='Intersection Tables'!I51 -> 0.034 | J102: =+H102*$J$99 -> 0.1258334359 | L102: =+F102+J102 -> 0.1437723056
A103: Angle collision | D103: ='Intersection Tables'!H52 -> 0.823 | F103: =+D103*$F$99 -> 0.9842459855 | H103: ='Intersection Tables'!I52 -> 0.719 | J103: =+H103*$J$99 -> 2.661007071 | L103: =+F103+J103 -> 3.645253057
A104: Sideswipe | D104: ='Intersection Tables'!H53 -> 0.031 | F104: =+D104*$F$99 -> 0.03707366409 | H104: ='Intersection Tables'!I53 -> 0.068 | J104: =+H104*$J$99 -> 0.2516668718 | L104: =+F104+J104 -> 0.2887405359
A105: Other multiple-vehicle collision | D105: ='Intersection Tables'!H54 -> 0.054 | F105: =+D105*$F$99 -> 0.064579931 | H105: ='Intersection Tables'!I54 -> 0.022 | J105: =+H105*$J$99 -> 0.081421635 | L105: =+F105+J105 -> 0.146001566
A109: Worksheet 2E -- Single-Vehicle Collisions by Severity Level for Urban and Suburban Arterial Intersections
A110: (1) | C110: (2) | F110: (3) | H110: (4) | I110: (5) | K110: (6) | L110: (7) | M110: (8) | N110: (9)
A111: Crash Severity Level | C111: SPF Coefficients | F111: Overdispersion Parameter, k | H111: Initial Nbisv | I111: Proportion of Total Crashes | K111: Adjusted Nbimv | L111: Combined CMFs | M111: Calibration Factor, Ci | N111: Predicted Nbisv
C113: from Table 12-12 | F113: from Table 12-12 | H113: from Eqn. 12-24; (FI) from Eqn. 12-24 or 12-27 | K113: (4)TOTAL*(5) | L113: (7) from Worksheet 2B | N113: (6)*(7)*(8)
C114: a | D114: b | E114: c
A116: Total | C116: ='Intersection Tables'!J15 -> -6.117 | D116: ='Intersection Tables'!K15 -> 0.353 | E116: ='Intersection Tables'!L15 -> 0.111 | F116: ='Intersection Tables'!M15 -> 2.45 | H116: =EXP(C116+(D116*LN($J$12))+(E116*LN($J$13))) -> 0.1562993977 | I116: 1 | K116: =H116*I116 -> 0.1562993977 | L116: =+M60 -> 1 | M116: =+$J$15 -> 1.01 | N116: =+K116*L116*M116 -> 0.1578623917
A117: Fatal and Injury (FI) | C117: =VLOOKUP($J$11,'Intersection Tables'!$I$18:$M$21,2,FALSE) -> -- | D117: =VLOOKUP($J$11,'Intersection Tables'!$I$18:$M$21,3,FALSE) -> -- | E117: =VLOOKUP($J$11,'Intersection Tables'!$I$18:$M$21,4,FALSE) -> -- | F117: =VLOOKUP($J$11,'Intersection Tables'!$I$18:$M$21,5,FALSE) -> 0 | H117: =H116*'Intersection Tables'!Q79 -> 0.0343858675 | I117: (4)FI/((4)FI+(4)PDO) | K117: =H116*I118 -> 0.03496679449 | L117: =+M60 -> 1 | M117: =+$J$15 -> 1.01 | N117: =+K117*L117*M117 -> 0.03531646244
I118: =+H117/(H117+H119) -> 0.2237167577
A119: Property Damage Only (PDO) | C119: ='Intersection Tables'!J25 -> -5.902 | D119: ='Intersection Tables'!K25 -> 0.266 | E119: ='Intersection Tables'!L25 -> 0.15 | F119: ='Intersection Tables'!M25 -> 1.27 | H119: =EXP(C119+(D119*LN($J$12))+(E119*LN($J$13))) -> 0.1193168227 | I119: (5)TOTAL-(5)FI | K119: =H116*I120 -> 0.1213326032 | L119: =+M60 -> 1 | M119: =+$J$15 -> 1.01 | N119: =+K119*L119*M119 -> 0.1225459293
I120: =I116-I118 -> 0.7762832423
A124: Worksheet 2F -- Single-Vehicle Collisions by Collision Type for Urban and Suburban Arterial Intersections
A125: (1) | D125: (2) | F125: (3) | H125: (4) | J125: (5) | L125: (6)
A126: Collision Type | D126: Proportion of Collision Type(FI) | F126: Predicted N bisv (FI) (crashes/year) | H126: Proportion of Collision Type (PDO) | J126: Predicted N bisv (PDO) (crashes/year) | L126: Predicted N bisv (TOTAL) (crashes/year)
D129: from Table 12-13 | F129: (9)FI from Worksheet 2E | H129: from Table 12-13 | J129: (9)PDO from Worksheet 2E | L129: (9)PDO from Worksheet 2E
A131: Total | D131: 1 | F131: =+N117 -> 0.03531646244 | H131: 1 | J131: =+N119 -> 0.1225459293 | L131: =+N116 -> 0.1578623917
F132: (2)*(3)FI | J132: (4)*(5)PDO | L132: (3)+(5)
A133: Collision with parked vehicle | D133: ='Intersection Tables'!H74 -> 0 | F133: =+D133*$F$131 -> 0 | H133: ='Intersection Tables'!I74 -> 0.095 | J133: =+H133*$J$131 -> 0.01164186328 | L133: =+F133+J133 -> 0.01164186328
A134: Collision with animal | D134: ='Intersection Tables'!H75 -> 0 | F134: 0 | H134: ='Intersection Tables'!I75 -> 0.095 | J134: 0.01164186328 | L134: 0.01164186328
A135: Collision with fixed object | D135: ='Intersection Tables'!H76 -> 0.5 | F135: 0.01765823122 | H135: ='Intersection Tables'!I76 -> 0.571 | J135: 0.06997372561 | L135: 0.08763195683
A136: Collision with other object | D136: ='Intersection Tables'!H77 -> 0 | F136: 0 | H136: ='Intersection Tables'!I77 -> 0.048 | J136: 0.005882204605 | L136: 0.005882204605
A137: Other single-vehicle collision | D137: ='Intersection Tables'!H78 -> 0.5 | F137: 0.01765823122 | H137: ='Intersection Tables'!I78 -> 0.191 | J137: 0.02340627249 | L137: 0.04106450371
A138: Single-vehicle noncollision | D138: ='Intersection Tables'!H79 -> 0 | F138: 0 | H138: ='Intersection Tables'!I79 -> 0 | J138: 0 | L138: 0
A151: Worksheet 2G -- Vehicle-Pedestrian Collisions for Urban and Suburban Arterial Stop-Controlled Intersections
A152: (1) | D152: (2) | F152: (3) | H152: (4) | I152: (5) | M152: (7)
A153: Crash Severity Level | D153: Predicted Nbimv | F153: Predicted Nbisv | H153: Predicted Nbi | I153: fpedi | M153: Predicted Npedi
D155: (9) from Worksheet 2C | F155: (9) from Worksheet 2E | H155: (2) + (3) | I155: from Table 12-16 | M155: (4)*(5)
A157: Total | D157: =N70 -> 4.896908057 | F157: =N116 -> 0.1578623917 | H157: =D157+F157 -> 5.054770449 | I157: ='Intersection Tables'!M102 -> 0.01275510204 | M157: =H157*I157 -> 0.06447411287
A158: Fatal and injury (FI) | D158: -- | F158: -- | H158: -- | I158: -- | M158: =H157*I157 -> 0.06447411287
A162: Worksheet 2J -- Vehicle-Bicycle Collisions for Urban and Suburban Arterial Intersections
A163: (1) | D163: (2) | F163: (3) | H163: (4) | I163: (5) | K163: (7)
A164: Crash Severity Level | D164: Predicted Nbimv | F164: Predicted Nbisv | H164: Predicted Nbi | I164: fbikei | K164: Predicted Nbikei
D166: (9) from Worksheet 2C | F166: (9) from Worksheet 2E | H166: (2) + (3) | I166: from Table 12-17 | K166: (4)*(5)
A168: Total | D168: =+$N$70 -> 4.896908057 | F168: =+$N$116 -> 0.1578623917 | H168: =+D168+F168 -> 5.054770449 | I168: ='Intersection Tables'!N102 -> 0.01275510204 | K168: =+$H$168*$I$168 -> 0.06447411287
A169: Fatal and injury (FI) | D169: -- | F169: -- | H169: -- | I169: -- | K169: =+$H$168*$I$168 -> 0.06447411287
A173: Worksheet 2K -- Crash Severity Distribution for Urban and Suburban Arterial Intersections
A174: (1) | F174: (2) | I174: (3) | L174: (4)
A175: Collision type | F175: Fatal and injury (FI) | I175: Property damage only (PDO) | L175: Total
F176: (3) from Worksheet 2D and 2F; | I176: (5) from Worksheet 2D and 2F | L176: (6) from Worksheet 2D and 2F;
F177: (7) from Worksheet 2G and 2J | L177: (7) from Worksheet 2G and 2J
A178: MULTIPLE-VEHICLE
A179: Rear-end collisions (from Worksheet 2D) | F179: =+F101 -> 0.09208619791 | I179: =+J101 -> 0.5810543953 | L179: =+L101 -> 0.6731405932
A180: Head-on collisions (from Worksheet 2D) | F180: =+F102 -> 0.01793886972 | I180: =+J102 -> 0.1258334359 | L180: =+L102 -> 0.1437723056
A181: Angle collisions (from Worksheet 2D) | F181: =+F103 -> 0.9842459855 | I181: =+J103 -> 2.661007071 | L181: =+L103 -> 3.645253057
A182: Sideswipe (from Worksheet 2D) | F182: =+F104 -> 0.03707366409 | I182: =+J104 -> 0.2516668718 | L182: =+L104 -> 0.2887405359
A183: Other multiple-vehicle collision (from Worksheet 2D) | F183: =+F105 -> 0.064579931 | I183: =+J105 -> 0.081421635 | L183: =+L105 -> 0.146001566
A184: Subtotal | F184: =SUM(F179:H183) -> 1.195924648 | I184: =SUM(I179:K183) -> 3.700983409 | L184: =SUM(L179:N183) -> 4.896908057
A185: SINGLE-VEHICLE
A186: Collision with parked vehicle (from Worksheet 2F) | F186: =+F133 -> 0 | I186: =+J133 -> 0.01164186328 | L186: =+L133 -> 0.01164186328
A187: Collision with animal (from Worksheet 2F) | F187: 0 | I187: 0.01164186328 | L187: 0.01164186328
A188: Collision with fixed object (from Worksheet 2F) | F188: 0.01765823122 | I188: 0.06997372561 | L188: 0.08763195683
A189: Collision with other object (from Worksheet 2F) | F189: 0 | I189: 0.005882204605 | L189: 0.005882204605
A190: Other single-vehicle collision (from Worksheet 2F) | F190: 0.01765823122 | I190: 0.02340627249 | L190: 0.04106450371
A191: Single-vehicle noncollision (from Worksheet 2F) | F191: 0 | I191: 0 | L191: 0
A192: Collision with pedestrian (from Worksheet 2G or 2I) | F192: =IF(J11="3ST",M158,IF(J11="4ST",M158,#REF!)) -> 0.06447411287 | I192: 0 | L192: =+F192+I192 -> 0.06447411287
A193: Collision with bicycle (from Worksheet 2J) | F193: =+K169 -> 0.06447411287 | I193: 0 | L193: =+F193+I193 -> 0.06447411287
A194: Subtotal | F194: =SUM(F186:H193) -> 0.1642646882 | I194: =SUM(I186:K193) -> 0.1225459293 | L194: =SUM(L186:N193) -> 0.2868106174
A195: Total | F195: =+F184+F194 -> 1.360189336 | I195: =+I184+I194 -> 3.823529339 | L195: =+L184+L194 -> 5.183718675
E199: Worksheet 2L -- Summary Results for Urban and Suburban Arterial Intersections
E200: (1) | H200: (2)
E201: Crash severity level | H201: Predicted average crash frequency, Npredicted int (crashes/year)
H204: (Total) from Worksheet 2K
E205: Total | H205: =H168+M157+K168 -> 5.183718675
E206: Fatal and injury (FI) | H206: =+F195 -> 1.360189336
E207: Property damage only (PDO) | H207: =+I195 -> 3.823529339

Sheet 3SG MassDOT (hidden)
A1: Legend
A4: Worksheet 2A -- General Information and Input Data for Urban and Suburban Arterial Intersections
A5: General Information | H5: Location Information
A6: Analyst | E6: ='Input Summary'!B5 -> 0 | H6: City | K6: ='Input Summary'!D5 -> 0
A7: Agency or Company | E7: ='Input Summary'!B6 -> 0 | H7: Intersection | K7: ='Input Summary'!D6 -> 0
A8: Date Performed | E8: ='Input Summary'!B7 -> 00:00:00 | H8: Jurisdiction | K8: ='Input Summary'!D7 -> 0
H9: Analysis Year | K9: ='Input Summary'!D8 -> 0
A10: Input Data | H10: Base Conditions | J10: Site Conditions
A11: Intersection type (3ST, 3SG, 4ST, 4SG) | H11: -- | J11: 3SG
A12: AADT major (veh/day) | E12: AADTMAX = | F12: 58100 | G12: (veh/day) | H12: -- | J12: ='Input Summary'!E13 -> 12000 | O12: =IF(J12>F12,"AADT out of range","AADT OK") -> AADT OK
A13: AADT minor (veh/day) | E13: AADTMAX = | F13: 16400 | G13: (veh/day) | H13: -- | J13: ='Input Summary'!E14 -> 5000 | O13: =IF(J13>F13,"AADT out of range","AADT OK") -> AADT OK
A14: Intersection lighting (present/not present) | H14: Not Present | J14: ='Input Summary'!E15 -> Not Present
A15: Calibration factor, Ci | H15: 1 | J15: ='Calibration Factors'!D7 -> 0.98
A16: Data for signalized intersections only: | H16: -- | J16: --
A17: Number of approaches with left-turn lanes (0,1,2,3,4) [for 3SG, use maximum value of 3] | H17: 0 | J17: ='Input Summary'!E24 -> 0
A18: Number of approaches with right-turn lanes (0,1,2,3,4) [for 3SG, use maximum value of 3] | H18: 0 | J18: ='Input Summary'!E25 -> 0
A19: Number of approaches with left-turn signal phasing [for 3SG, use maximum value of 3] | H19: -- | J19: ='Input Summary'!E26 -> 0
A20: Type of left-turn signal phasing for Leg #1 | H20: Permissive | J20: ='Input Summary'!E27 -> Permissive
A21: Type of left-turn signal phasing for Leg #2 | H21: -- | J21: ='Input Summary'!E28 -> Permissive
A22: Type of left-turn signal phasing for Leg #3 | H22: -- | J22: ='Input Summary'!E29 -> Permissive
A23: Type of left-turn signal phasing for Leg #4 (if applicable) | H23: -- | J23: ='Input Summary'!E30 -> Permissive
A24: Number of approaches with right-turn-on-red prohibited [for 3SG, use maximum value of 3] | H24: 0 | J24: ='Input Summary'!E31 -> 0
A25: Intersection red light cameras (present/not present) | H25: Not Present | J25: ='Input Summary'!E32 -> Not Present
A26: Sum of all pedestrian crossing volumes (PedVol) -- Signalized intersections only | J26: ='Input Summary'!E33 -> 1
A27: Maximum number of lanes crossed by a pedestrian (nlanesx) | H27: -- | J27: ='Input Summary'!E34 -> 0
A28: Number of bus stops within 300 m (1,000 ft) of the intersection | H28: 0 | J28: ='Input Summary'!E35 -> 0
A29: Schools within 300 m (1,000 ft) of the intersection (present/not present) | H29: Not Present | J29: ='Input Summary'!E36 -> Not Present
A30: Number of alcohol sales establishments within 300 m (1,000 ft) of the intersection | H30: 0 | J30: ='Input Summary'!E37 -> 0
B32: SUMMARY OF INTERSECTION & CRASHES
B34: CMF1i | C34: CMF2i | D34: CMF3i | E34: CMF 4i | F34: CMF 5i | G34: CMF 1p | H34: CMF 2p | I34: CMF 3p | J34: Nbi_total | K34: Npedi_total | L34: Nbikei_total | M34: Npredictedint
B35: =A60 -> 1 | C35: =C60 -> 1 | D35: =E60 -> 1 | E35: =G60 -> 1 | F35: =I60 -> 1 | G35: =B147 -> 1 | H35: =E147 -> 1 | I35: =H147 -> 1 | J35: =H168 -> 3.738203178 | K35: =M157 -> 0.002815126481 | L35: =K168 -> 0.09287461311 | M35: =H205 -> 3.833892917
A54: Worksheet 2B -- Crash Modification Factors for Urban and Suburban Arterial Intersections
A55: (1) | C55: (2) | E55: (3) | G55: (4) | I55: (5) | K55: (6) | M55: (7)
A56: CMF for Left-Turn Lanes | C56: CMF for Left-Turn Signal Phasing | E56: CMF for Right-Turn Lanes | G56: CMF for Right Turn on Red | I56: CMF for Lighting | K56: CMF for Red Light Cameras | M56: Combined CMF
A58: CMF 1i | C58: CMF 2i | E58: CMF 3i | G58: CMF 4i | I58: CMF 5i | K58: CMF 6i | M58: CMF COMB
A59: from Table 12-24 | C59: from Table 12-25 | E59: from Table 12-26 | G59: from Equation 12-35 | I59: from Equation 12-36 | K59: from Equation 12-37 | M59: (1)*(2)*(3)*(4)*(5)*(6)
A60: =IF(J17=0,1,IF(J17=1,'Intersection Tables'!AB14,IF(J17=2,'Intersection Tables'!AC14,'Intersection Tables'!AD14))) -> 1 | C60: =IF(J20="Not Applicable",1,IF(J20="Protected",'Intersection Tables'!AC43,IF(J20="Permissive",'Intersection Tables'!AC41,'Intersection Tables'!AC42)))*IF(J21="Not Applicable",1,IF(J21="Protected",'Intersection Tables'!AC43,IF(J21="Permissive",'Intersection Tables'!AC41,'Intersection Tables'!AC42)))*IF(J22="Not Applicable",1,IF(J22="Protected",'Intersection Tables'!AC43,IF(J22="Permissive",'Intersection Tables'!AC41,'Intersection Tables'!AC42)))*IF(J23="Not Applicable",1,IF(J23="Protected",'Intersection Tables'!AC43,IF(J23="Permissive",'Intersection Tables'!AC41,'Intersection Tables'!AC42))) -> 1 | E60: =IF(J18=0,1,IF(J18=1,'Intersection Tables'!AB29,'Intersection Tables'!AC29)) -> 1 | G60: =POWER(0.98,$J$24) -> 1 | I60: =IF($J$14="Not Present",1,(1-'Intersection Tables'!F89*0.38)) -> 1 | K60: 1 | M60: =+A60*C60*E60*G60*I60*K60 -> 1
A64: Worksheet 2C -- Multiple-Vehicle Collisions by Severity Level for Urban and Suburban Arterial Intersections
A65: (1) | C65: (2) | F65: (3) | H65: (4) | I65: (5) | K65: (6) | L65: (7) | M65: (8) | N65: (9)
A66: Crash Severity Level | C66: SPF Coefficients | F66: Overdispersion Parameter, k | H66: Initial Nbimv | I66: Proportion of Total Crashes | K66: Adjusted Nbimv | L66: Combined CMFs | M66: Calibration Factor, Ci | N66: Predicted Nbimv
C68: from Table 12-10 | F68: from Table 12-10 | H68: from Equation 12-21 | K68: (4)TOTAL*(5) | L68: (7) from Worksheet 2B | N68: (6)*(7)*(8)
C69: a | D69: b | E69: c
A70: Total | C70: ='Intersection Tables'!C14 -> -2.511 | D70: ='Intersection Tables'!D14 -> 0.352 | E70: ='Intersection Tables'!E14 -> 0.057 | F70: ='Intersection Tables'!F14 -> 0.58 | H70: =EXP(C70+(D70*LN($J$12))+(E70*LN($J$13))) -> 3.599147496 | I70: 1 | K70: =H70*I70 -> 3.599147496 | L70: =+M60 -> 1 | M70: =+$J$15 -> 0.98 | N70: =+K70*L70*M70 -> 3.527164546
A71: Fatal and Injury (FI) | C71: ='Intersection Tables'!C19 -> -2.761 | D71: ='Intersection Tables'!D19 -> 0.267 | E71: ='Intersection Tables'!E19 -> 0.018 | F71: ='Intersection Tables'!F19 -> 0.77 | H71: =EXP(C71+(D71*LN($J$12))+(E71*LN($J$13))) -> 0.9049733461 | I71: (4)FI/((4)FI+(4)PDO) | K71: =H70*I72 -> 0.9053416312 | L71: =+M60 -> 1 | M71: =+$J$15 -> 0.98 | N71: =+K71*L71*M71 -> 0.8872347986
I72: =+H71/(H71+H73) -> 0.2515433536
A73: Property Damage Only (PDO) | C73: ='Intersection Tables'!C24 -> -4.325 | D73: ='Intersection Tables'!D24 -> 0.429 | E73: ='Intersection Tables'!E24 -> 0.151 | F73: ='Intersection Tables'!F24 -> 0.59 | H73: =EXP(C73+(D73*LN($J$12))+(E73*LN($J$13))) -> 2.692710048 | I73: (5)TOTAL-(5)FI | K73: =H70*I74 -> 2.693805865 | L73: =+M60 -> 1 | M73: =+$J$15 -> 0.98 | N73: =+K73*L73*M73 -> 2.639929748
I74: =I70-I72 -> 0.7484566464
A92: Worksheet 2D -- Multiple-Vehicle Collisions by Collision Type for Urban and Suburban Arterial Intersections
A93: (1) | D93: (2) | F93: (3) | H93: (4) | J93: (5) | L93: (6)
A94: Collision Type | D94: Proportion of Collision Type(FI) | F94: Predicted N bimv (FI) (crashes/year) | H94: Proportion of Collision Type (PDO) | J94: Predicted N bimv (PDO) (crashes/year) | L94: Predicted N bimv (TOTAL) (crashes/year)
D97: from Table 12-11 | F97: (9)FI from Worksheet 2C | H97: from Table 12-11 | J97: (9)PDO from Worksheet 2C | L97: (9)PDO from Worksheet 2C
A99: Total | D99: =SUM(D101:E105) -> 1 | F99: =+N71 -> 0.8872347986 | H99: =SUM(H101:I105) -> 1 | J99: =+N73 -> 2.639929748 | L99: =+N70 -> 3.527164546
F100: (2)*(3)FI | J100: (4)*(5)PDO | L100: (3)+(5)
A101: Rear-end collision | D101: ='Intersection Tables'!F50 -> 0.363 | F101: =+D101*$F$99 -> 0.3220662319 | H101: ='Intersection Tables'!G50 -> 0.496 | J101: =+H101*$J$99 -> 1.309405155 | L101: =+F101+J101 -> 1.631471387
A102: Head-on collision | D102: ='Intersection Tables'!F51 -> 0.104 | F102: =+D102*$F$99 -> 0.09227241905 | H102: ='Intersection Tables'!G51 -> 0.04 | J102: =+H102*$J$99 -> 0.1055971899 | L102: =+F102+J102 -> 0.197869609
A103: Angle collision | D103: ='Intersection Tables'!F52 -> 0.39 | F103: =+D103*$F$99 -> 0.3460215714 | H103: ='Intersection Tables'!G52 -> 0.285 | J103: =+H103*$J$99 -> 0.7523799781 | L103: =+F103+J103 -> 1.09840155
A104: Sideswipe | D104: ='Intersection Tables'!F53 -> 0.065 | F104: =+D104*$F$99 -> 0.05767026191 | H104: ='Intersection Tables'!G53 -> 0.157 | J104: =+H104*$J$99 -> 0.4144689704 | L104: =+F104+J104 -> 0.4721392323
A105: Other multiple-vehicle collision | D105: ='Intersection Tables'!F54 -> 0.078 | F105: =+D105*$F$99 -> 0.06920431429 | H105: ='Intersection Tables'!G54 -> 0.022 | J105: =+H105*$J$99 -> 0.05807845445 | L105: =+F105+J105 -> 0.1272827687
A109: Worksheet 2E -- Single-Vehicle Collisions by Severity Level for Urban and Suburban Arterial Intersections
A110: (1) | C110: (2) | F110: (3) | H110: (4) | I110: (5) | K110: (6) | L110: (7) | M110: (8) | N110: (9)
A111: Crash Severity Level | C111: SPF Coefficients | F111: Overdispersion Parameter, k | H111: Initial Nbisv | I111: Proportion of Total Crashes | K111: Adjusted Nbimv | L111: Combined CMFs | M111: Calibration Factor, Ci | N111: Predicted Nbisv
C113: from Table 12-12 | F113: from Table 12-12 | H113: from Eqn. 12-24; (FI) from Eqn. 12-24 or 12-27 | K113: (4)TOTAL*(5) | L113: (7) from Worksheet 2B | N113: (6)*(7)*(8)
C114: a | D114: b | E114: c
A116: Total | C116: ='Intersection Tables'!J14 -> -6.309 | D116: ='Intersection Tables'!K14 -> 0.306 | E116: ='Intersection Tables'!L14 -> 0.223 | F116: ='Intersection Tables'!M14 -> 0.2 | H116: =EXP(C116+(D116*LN($J$12))+(E116*LN($J$13))) -> 0.2153455422 | I116: 1 | K116: =H116*I116 -> 0.2153455422 | L116: =+M60 -> 1 | M116: =+$J$15 -> 0.98 | N116: =+K116*L116*M116 -> 0.2110386313
A117: Fatal and Injury (FI) | C117: ='Intersection Tables'!J19 -> -7.212 | D117: ='Intersection Tables'!K19 -> 0.351 | E117: ='Intersection Tables'!L19 -> 0.147 | F117: ='Intersection Tables'!M19 -> 0.16 | H117: =EXP(C117+(D117*LN($J$12))+(E117*LN($J$13))) -> 0.06972835257 | I117: (4)FI/((4)FI+(4)PDO) | K117: =H116*I118 -> 0.07122003076 | L117: =+M60 -> 1 | M117: =+$J$15 -> 0.98 | N117: =+K117*L117*M117 -> 0.06979563015
I118: =+H117/(H117+H119) -> 0.3307244257
A119: Property Damage Only (PDO) | C119: ='Intersection Tables'!J24 -> -7.522 | D119: ='Intersection Tables'!K24 -> 0.265 | E119: ='Intersection Tables'!L24 -> 0.361 | F119: ='Intersection Tables'!M24 -> 0.55 | H119: =EXP(C119+(D119*LN($J$12))+(E119*LN($J$13))) -> 0.1411068539 | I119: (5)TOTAL-(5)FI | K119: =H116*I120 -> 0.1441255114 | L119: =+M60 -> 1 | M119: =+$J$15 -> 0.98 | N119: =+K119*L119*M119 -> 0.1412430012
I120: =I116-I118 -> 0.6692755743
A124: Worksheet 2F -- Single-Vehicle Collisions by Collision Type for Urban and Suburban Arterial Intersections
A125: (1) | D125: (2) | F125: (3) | H125: (4) | J125: (5) | L125: (6)
A126: Collision Type | D126: Proportion of Collision Type(FI) | F126: Predicted N bisv (FI) (crashes/year) | H126: Proportion of Collision Type (PDO) | J126: Predicted N bisv (PDO) (crashes/year) | L126: Predicted N bisv (TOTAL) (crashes/year)
D129: from Table 12-13 | F129: (9)FI from Worksheet 2E | H129: from Table 12-13 | J129: (9)PDO from Worksheet 2E | L129: (9)PDO from Worksheet 2E
A131: Total | D131: =SUM(D133:E138) -> 1 | F131: =+N117 -> 0.06979563015 | H131: =SUM(H133:I138) -> 1 | J131: =+N119 -> 0.1412430012 | L131: =+N116 -> 0.2110386313
F132: (2)*(3)FI | J132: (4)*(5)PDO | L132: (3)+(5)
A133: Collision with parked vehicle | D133: ='Intersection Tables'!F74 -> 0.154 | F133: =+D133*$F$131 -> 0.01074852704 | H133: ='Intersection Tables'!G74 -> 0.042 | J133: =+H133*$J$131 -> 0.005932206049 | L133: =+F133+J133 -> 0.01668073309
A134: Collision with animal | D134: ='Intersection Tables'!F75 -> 0 | F134: 0 | H134: ='Intersection Tables'!G75 -> 0 | J134: 0 | L134: 0
A135: Collision with fixed object | D135: ='Intersection Tables'!F76 -> 0.615 | F135: 0.04292431254 | H135: ='Intersection Tables'!G76 -> 0.875 | J135: 0.123587626 | L135: 0.1665119386
A136: Collision with other object | D136: ='Intersection Tables'!F77 -> 0 | F136: 0 | H136: ='Intersection Tables'!G77 -> 0 | J136: 0 | L136: 0
A137: Other single-vehicle collision | D137: ='Intersection Tables'!F78 -> 0.154 | F137: 0.01074852704 | H137: ='Intersection Tables'!G78 -> 0.083 | J137: 0.0117231691 | L137: 0.02247169614
A138: Single-vehicle noncollision | D138: ='Intersection Tables'!F79 -> 0.077 | F138: 0.005374263521 | H138: ='Intersection Tables'!G79 -> 0 | J138: 0 | L138: 0.005374263521
B142: Worksheet 2G-1 -- Crash Modification Factors for Vehicle-Pedestrian Collisions for Urban and Suburban Arterial Signalized Intersections
B143: (1) | E143: (2) | H143: (3) | K143: (4)
B144: CMF for Bus Stops | E144: CMF for Schools | H144: CMF for Alcohol Sales Establishments | K144: Combined CMF
B145: CMF1p | E145: CMF2p | H145: CMF3p
B146: from Table 12-28 | E146: from Table 12-29 | H146: from Table 12-30 | K146: (1)*(2)*(3)
B147: =IF($J$28=0,'Intersection Tables'!AC51,IF($J$28<=2,'Intersection Tables'!AC52,'Intersection Tables'!AC53)) -> 1 | E147: =IF($J$29="Present",'Intersection Tables'!AC62,'Intersection Tables'!AC61) -> 1 | H147: =IF(J30=0,'Intersection Tables'!AC70,IF(J30<=8,'Intersection Tables'!AC71,'Intersection Tables'!AC72)) -> 1 | K147: =IF(J11="3ST","--",IF(J11="4ST","--",B147*E147*H147)) -> 1
A151: Worksheet 2G -- Vehicle-Pedestrian Collisions for Urban and Suburban Arterial Signalized Intersections
A152: (1) | C152: (2) | H152: (3) | I152: (4) | K152: (5) | M152: (7)
A153: Crash Severity Level | C153: SPF Coefficients | H153: Overdispersion Parameter, k | I153: Npedbase | K153: Combined CMF | M153: Predicted Npedi
C155: from Table 12-14 | I155: from Equation 12-29 | K155: (4) from Worksheet 2G-1 | M155: (4)*(5)
C156: a | D156: b | E156: c | F156: d | G156: e
A157: Total | C157: ='Intersection Tables'!Q13 -> -7.782 | D157: ='Intersection Tables'!R13 -> 0.212 | E157: ='Intersection Tables'!S13 -> 0.178 | F157: ='Intersection Tables'!T13 -> 0.289 | G157: ='Intersection Tables'!U13 -> 0.144 | H157: ='Intersection Tables'!V13 -> 0.22 | I157: =EXP(+$C157+($D157*LN($J$12+J$13))+(E$157*LN($J$13/$J$12))+(F$157*LN($J$26))+(G$157*$J$27)) -> 0.002815126481 | K157: =+$K$147 -> 1 | M157: =$I$157*$K$157 -> 0.002815126481
A158: Fatal and Injury (FI) | C158: -- | D158: -- | E158: -- | F158: -- | G158: -- | H158: -- | I158: -- | K158: -- | M158: =M157 -> 0.002815126481
A162: Worksheet 2J -- Vehicle-Bicycle Collisions for Urban and Suburban Arterial Intersections
A163: (1) | D163: (2) | F163: (3) | H163: (4) | I163: (5) | K163: (7)
A164: Crash Severity Level | D164: Predicted Nbimv | F164: Predicted Nbisv | H164: Predicted Nbi | I164: fbikei | K164: Predicted Nbikei
D166: (9) from Worksheet 2C | F166: (9) from Worksheet 2E | H166: (2) + (3) | I166: from Table 12-17 | K166: (4)*(5)
A168: Total | D168: =+$N$70 -> 3.527164546 | F168: =+$N$116 -> 0.2110386313 | H168: =+D168+F168 -> 3.738203178 | I168: ='Intersection Tables'!N101 -> 0.0248447205 | K168: =+$H$168*$I$168 -> 0.09287461311
A169: Fatal and injury (FI) | D169: -- | F169: -- | H169: -- | I169: -- | K169: =K168 -> 0.09287461311
A173: Worksheet 2K -- Crash Severity Distribution for Urban and Suburban Arterial Intersections
A174: (1) | F174: (2) | I174: (3) | L174: (4)
A175: Collision type | F175: Fatal and injury (FI) | I175: Property damage only (PDO) | L175: Total
F176: (3) from Worksheet 2D and 2F; | I176: (5) from Worksheet 2D and 2F | L176: (6) from Worksheet 2D and 2F;
F177: (7) from Worksheet 2G and 2J | L177: (7) from Worksheet 2G and 2J
A178: MULTIPLE-VEHICLE
A179: Rear-end collisions (from Worksheet 2D) | F179: =+F101 -> 0.3220662319 | I179: =+J101 -> 1.309405155 | L179: =+L101 -> 1.631471387
A180: Head-on collisions (from Worksheet 2D) | F180: =+F102 -> 0.09227241905 | I180: =+J102 -> 0.1055971899 | L180: =+L102 -> 0.197869609
A181: Angle collisions (from Worksheet 2D) | F181: =+F103 -> 0.3460215714 | I181: =+J103 -> 0.7523799781 | L181: =+L103 -> 1.09840155
A182: Sideswipe (from Worksheet 2D) | F182: =+F104 -> 0.05767026191 | I182: =+J104 -> 0.4144689704 | L182: =+L104 -> 0.4721392323
A183: Other multiple-vehicle collision (from Worksheet 2D) | F183: =+F105 -> 0.06920431429 | I183: =+J105 -> 0.05807845445 | L183: =+L105 -> 0.1272827687
A184: Subtotal | F184: =SUM(F179:H183) -> 0.8872347986 | I184: =SUM(I179:K183) -> 2.639929748 | L184: =SUM(L179:N183) -> 3.527164546
A185: SINGLE-VEHICLE
A186: Collision with parked vehicle (from Worksheet 2F) | F186: =+F133 -> 0.01074852704 | I186: =+J133 -> 0.005932206049 | L186: =+L133 -> 0.01668073309
A187: Collision with animal (from Worksheet 2F) | F187: 0 | I187: 0 | L187: 0
A188: Collision with fixed object (from Worksheet 2F) | F188: 0.04292431254 | I188: 0.123587626 | L188: 0.1665119386
A189: Collision with other object (from Worksheet 2F) | F189: 0 | I189: 0 | L189: 0
A190: Other single-vehicle collision (from Worksheet 2F) | F190: 0.01074852704 | I190: 0.0117231691 | L190: 0.02247169614
A191: Single-vehicle noncollision (from Worksheet 2F) | F191: 0.005374263521 | I191: 0 | L191: 0.005374263521
A192: Collision with pedestrian (from Worksheet 2G or 2I) | F192: =IF(J11="3ST",#REF!,IF(J11="4ST",#REF!,M158)) -> 0.002815126481 | I192: 0 | L192: =+F192+I192 -> 0.002815126481
A193: Collision with bicycle (from Worksheet 2J) | F193: =+K169 -> 0.09287461311 | I193: 0 | L193: =+F193+I193 -> 0.09287461311
A194: Subtotal | F194: =SUM(F186:H193) -> 0.1654853697 | I194: =SUM(I186:K193) -> 0.1412430012 | L194: =SUM(L186:N193) -> 0.3067283709
A195: Total | F195: =+F184+F194 -> 1.052720168 | I195: =+I184+I194 -> 2.781172749 | L195: =+L184+L194 -> 3.833892917
E199: Worksheet 2L -- Summary Results for Urban and Suburban Arterial Intersections
E200: (1) | H200: (2)
E201: Crash severity level | H201: Predicted average crash frequency, Npredicted int (crashes/year)
H204: (Total) from Worksheet 2K
E205: Total | H205: =H168+M157+K168 -> 3.833892917
E206: Fatal and injury (FI) | H206: =+F195 -> 1.052720168
E207: Property damage only (PDO) | H207: =+I195 -> 2.781172749

Sheet 4SG MassDOT (hidden)
A1: Legend
A4: Worksheet 2A -- General Information and Input Data for Urban and Suburban Arterial Intersections
A5: General Information | H5: Location Information
A6: Analyst | E6: ='Input Summary'!B5 -> 0 | H6: City | K6: ='Input Summary'!D5 -> 0
A7: Agency or Company | E7: ='Input Summary'!B6 -> 0 | H7: Intersection | K7: ='Input Summary'!D6 -> 0
A8: Date Performed | E8: ='Input Summary'!B7 -> 00:00:00 | H8: Jurisdiction | K8: ='Input Summary'!D7 -> 0
H9: Analysis Year | K9: ='Input Summary'!D8 -> 0
A10: Input Data | H10: Base Conditions | J10: Site Conditions
A11: Intersection type (3ST, 3SG, 4ST, 4SG) | H11: -- | J11: 4SG
A12: AADT major (veh/day) | E12: AADTMAX = | F12: 67700 | G12: (veh/day) | H12: -- | J12: ='Input Summary'!E13 -> 12000 | O12: =IF(J12>F12,"AADT out of range","AADT OK") -> AADT OK
A13: AADT minor (veh/day) | E13: AADTMAX = | F13: 33400 | G13: (veh/day) | H13: -- | J13: ='Input Summary'!E14 -> 5000 | O13: =IF(J13>F13,"AADT out of range","AADT OK") -> AADT OK
A14: Intersection lighting (present/not present) | H14: Not Present | J14: ='Input Summary'!E15 -> Not Present
A15: Calibration factor, Ci | H15: 1 | J15: ='Calibration Factors'!F7 -> 0.98
A16: Data for signalized intersections only: | H16: -- | J16: --
A17: Number of approaches with left-turn lanes (0,1,2,3,4) [for 3SG, use maximum value of 3] | H17: 0 | J17: ='Input Summary'!E24 -> 0
A18: Number of approaches with right-turn lanes (0,1,2,3,4) [for 3SG, use maximum value of 3] | H18: 0 | J18: ='Input Summary'!E25 -> 0
A19: Number of approaches with left-turn signal phasing [for 3SG, use maximum value of 3] | H19: -- | J19: ='Input Summary'!E26 -> 0
A20: Type of left-turn signal phasing for Leg #1 | H20: Permissive | J20: ='Input Summary'!E27 -> Permissive
A21: Type of left-turn signal phasing for Leg #2 | H21: -- | J21: ='Input Summary'!E28 -> Permissive
A22: Type of left-turn signal phasing for Leg #3 | H22: -- | J22: ='Input Summary'!E29 -> Permissive
A23: Type of left-turn signal phasing for Leg #4 (if applicable) | H23: -- | J23: ='Input Summary'!E30 -> Permissive
A24: Number of approaches with right-turn-on-red prohibited [for 3SG, use maximum value of 3] | H24: 0 | J24: ='Input Summary'!E31 -> 0
A25: Intersection red light cameras (present/not present) | H25: Not Present | J25: ='Input Summary'!E32 -> Not Present
A26: Sum of all pedestrian crossing volumes (PedVol) -- Signalized intersections only | J26: ='Input Summary'!E33 -> 1
A27: Maximum number of lanes crossed by a pedestrian (nlanesx) | H27: -- | J27: ='Input Summary'!E34 -> 0
A28: Number of bus stops within 300 m (1,000 ft) of the intersection | H28: 0 | J28: ='Input Summary'!E35 -> 0
A29: Schools within 300 m (1,000 ft) of the intersection (present/not present) | H29: Not Present | J29: ='Input Summary'!E36 -> Not Present
A30: Number of alcohol sales establishments within 300 m (1,000 ft) of the intersection | H30: 0 | J30: ='Input Summary'!E37 -> 0
B32: SUMMARY OF INTERSECTION & CRASHES
B34: CMF1i | C34: CMF2i | D34: CMF3i | E34: CMF 4i | F34: CMF 5i | G34: CMF 1p | H34: CMF 2p | I34: CMF 3p | J34: Nbi_total | K34: Npedi_total | L34: Nbikei_total | M34: Npredictedint
B35: =A60 -> 1 | C35: =C60 -> 1 | D35: =E60 -> 1 | E35: =G60 -> 1 | F35: =I60 -> 1 | G35: =B147 -> 1 | H35: =E147 -> 1 | I35: =H147 -> 1 | J35: =H168 -> 6.699531393 | K35: =M157 -> 0.0002049752214 | L35: =K168 -> 0.04066483395 | M35: =H205 -> 6.740401202
A54: Worksheet 2B -- Crash Modification Factors for Urban and Suburban Arterial Intersections
A55: (1) | C55: (2) | E55: (3) | G55: (4) | I55: (5) | K55: (6) | M55: (7)
A56: CMF for Left-Turn Lanes | C56: CMF for Left-Turn Signal Phasing | E56: CMF for Right-Turn Lanes | G56: CMF for Right Turn on Red | I56: CMF for Lighting | K56: CMF for Red Light Cameras | M56: Combined CMF
A58: CMF 1i | C58: CMF 2i | E58: CMF 3i | G58: CMF 4i | I58: CMF 5i | K58: CMF 6i | M58: CMF COMB
A59: from Table 12-24 | C59: from Table 12-25 | E59: from Table 12-26 | G59: from Equation 12-35 | I59: from Equation 12-36 | K59: from Equation 12-37 | M59: (1)*(2)*(3)*(4)*(5)*(6)
A60: =IF(J17=0,1,IF(J17=1,'Intersection Tables'!AB16,IF(J17=2,'Intersection Tables'!AC16,IF(J17=3,'Intersection Tables'!AD16,'Intersection Tables'!AE16)))) -> 1 | C60: =IF(J20="Not Applicable",1,IF(J20="Protected",'Intersection Tables'!AC43,IF(J20="Permissive",'Intersection Tables'!AC41,'Intersection Tables'!AC42)))*IF(J21="Not Applicable",1,IF(J21="Protected",'Intersection Tables'!AC43,IF(J21="Permissive",'Intersection Tables'!AC41,'Intersection Tables'!AC42)))*IF(J22="Not Applicable",1,IF(J22="Protected",'Intersection Tables'!AC43,IF(J22="Permissive",'Intersection Tables'!AC41,'Intersection Tables'!AC42)))*IF(J23="Not Applicable",1,IF(J23="Protected",'Intersection Tables'!AC43,IF(J23="Permissive",'Intersection Tables'!AC41,'Intersection Tables'!AC42))) -> 1 | E60: =IF(J18=0,1,IF(J18=1,'Intersection Tables'!AB31,IF(J18=2,'Intersection Tables'!AC31,IF(J18=3,'Intersection Tables'!AD31,'Intersection Tables'!AE31)))) -> 1 | G60: =POWER(0.98,$J$24) -> 1 | I60: =IF($J$14="Not Present",1,(1-'Intersection Tables'!F90*0.38)) -> 1 | K60: =IF($J$25="Not Present",1,$T$24) -> 1 | M60: =+A60*C60*E60*G60*I60*K60 -> 1
A64: Worksheet 2C -- Multiple-Vehicle Collisions by Severity Level for Urban and Suburban Arterial Intersections
A65: (1) | C65: (2) | F65: (3) | H65: (4) | I65: (5) | K65: (6) | L65: (7) | M65: (8) | N65: (9)
A66: Crash Severity Level | C66: SPF Coefficients | F66: Overdispersion Parameter, k | H66: Initial Nbimv | I66: Proportion of Total Crashes | K66: Adjusted Nbimv | L66: Combined CMFs | M66: Calibration Factor, Ci | N66: Predicted Nbimv
C68: from Table 12-10 | F68: from Table 12-10 | H68: from Equation 12-21 | K68: (4)TOTAL*(5) | L68: (7) from Worksheet 2B | N68: (6)*(7)*(8)
C69: a | D69: b | E69: c
A70: Total | C70: ='Intersection Tables'!C16 -> -5.037 | D70: ='Intersection Tables'!D16 -> 0.634 | E70: ='Intersection Tables'!E16 -> 0.113 | F70: ='Intersection Tables'!F16 -> 0.33 | H70: =EXP(C70+(D70*LN($J$12))+(E70*LN($J$13))) -> 6.556064463 | I70: 1 | K70: =H70*I70 -> 6.556064463 | L70: =+M60 -> 1 | M70: =+$J$15 -> 0.98 | N70: =+K70*L70*M70 -> 6.424943174
A71: Fatal and Injury (FI) | C71: ='Intersection Tables'!C21 -> -7.601 | D71: ='Intersection Tables'!D21 -> 0.79 | E71: ='Intersection Tables'!E21 -> 0.093 | F71: ='Intersection Tables'!F21 -> 0.44 | H71: =EXP(C71+(D71*LN($J$12))+(E71*LN($J$13))) -> 1.842828999 | I71: (4)FI/((4)FI+(4)PDO) | K71: =H70*I72 -> 1.868586914 | L71: =+M60 -> 1 | M71: =+$J$15 -> 0.98 | N71: =+K71*L71*M71 -> 1.831215176
I72: =+H71/(H71+H73) -> 0.285016556
A73: Property Damage Only (PDO) | C73: ='Intersection Tables'!C26 -> -5.247 | D73: ='Intersection Tables'!D26 -> 0.611 | E73: ='Intersection Tables'!E26 -> 0.122 | F73: ='Intersection Tables'!F26 -> 0.27 | H73: =EXP(C73+(D73*LN($J$12))+(E73*LN($J$13))) -> 4.622862065 | I73: (5)TOTAL-(5)FI | K73: =H70*I74 -> 4.687477549 | L73: =+M60 -> 1 | M73: =+$J$15 -> 0.98 | N73: =+K73*L73*M73 -> 4.593727998
I74: =I70-I72 -> 0.714983444
A92: Worksheet 2D -- Multiple-Vehicle Collisions by Collision Type for Urban and Suburban Arterial Intersections
A93: (1) | D93: (2) | F93: (3) | H93: (4) | J93: (5) | L93: (6)
A94: Collision Type | D94: Proportion of Collision Type(FI) | F94: Predicted N bimv (FI) (crashes/year) | H94: Proportion of Collision Type (PDO) | J94: Predicted N bimv (PDO) (crashes/year) | L94: Predicted N bimv (TOTAL) (crashes/year)
D97: from Table 12-11 | F97: (9)FI from Worksheet 2C | H97: from Table 12-11 | J97: (9)PDO from Worksheet 2C | L97: (9)PDO from Worksheet 2C
A99: Total | D99: =SUM(D101:E105) -> 1 | F99: =+N71 -> 1.831215176 | H99: =SUM(H101:I105) -> 1 | J99: =+N73 -> 4.593727998 | L99: =+N70 -> 6.424943174
F100: (2)*(3)FI | J100: (4)*(5)PDO | L100: (3)+(5)
A101: Rear-end collision | D101: ='Intersection Tables'!J50 -> 0.303 | F101: =+D101*$F$99 -> 0.5548581983 | H101: ='Intersection Tables'!K50 -> 0.402 | J101: =+H101*$J$99 -> 1.846678655 | L101: =+F101+J101 -> 2.401536853
A102: Head-on collision | D102: ='Intersection Tables'!J51 -> 0.066 | F102: =+D102*$F$99 -> 0.1208602016 | H102: ='Intersection Tables'!K51 -> 0.038 | J102: =+H102*$J$99 -> 0.1745616639 | L102: =+F102+J102 -> 0.2954218655
A103: Angle collision | D103: ='Intersection Tables'!J52 -> 0.574 | F103: =+D103*$F$99 -> 1.051117511 | H103: ='Intersection Tables'!K52 -> 0.443 | J103: =+H103*$J$99 -> 2.035021503 | L103: =+F103+J103 -> 3.086139014
A104: Sideswipe | D104: ='Intersection Tables'!J53 -> 0.03 | F104: =+D104*$F$99 -> 0.05493645528 | H104: ='Intersection Tables'!K53 -> 0.103 | J104: =+H104*$J$99 -> 0.4731539838 | L104: =+F104+J104 -> 0.528090439
A105: Other multiple-vehicle collision | D105: ='Intersection Tables'!J54 -> 0.027 | F105: =+D105*$F$99 -> 0.04944280975 | H105: ='Intersection Tables'!K54 -> 0.014 | J105: =+H105*$J$99 -> 0.06431219197 | L105: =+F105+J105 -> 0.1137550017
A109: Worksheet 2E -- Single-Vehicle Collisions by Severity Level for Urban and Suburban Arterial Intersections
A110: (1) | C110: (2) | F110: (3) | H110: (4) | I110: (5) | K110: (6) | L110: (7) | M110: (8) | N110: (9)
A111: Crash Severity Level | C111: SPF Coefficients | F111: Overdispersion Parameter, k | H111: Initial Nbisv | I111: Proportion of Total Crashes | K111: Adjusted Nbimv | L111: Combined CMFs | M111: Calibration Factor, Ci | N111: Predicted Nbisv
C113: from Table 12-12 | F113: from Table 12-12 | H113: from Eqn. 12-24; (FI) from Eqn. 12-24 or 12-27 | K113: (4)TOTAL*(5) | L113: (7) from Worksheet 2B | N113: (6)*(7)*(8)
C114: a | D114: b | E114: c
A116: Total | C116: ='Intersection Tables'!J16 -> -8.255 | D116: ='Intersection Tables'!K16 -> 0.193 | E116: ='Intersection Tables'!L16 -> 0.607 | F116: ='Intersection Tables'!M16 -> 0.8 | H116: =EXP(C116+(D116*LN($J$12))+(E116*LN($J$13))) -> 0.2801920605 | I116: 1 | K116: =H116*I116 -> 0.2801920605 | L116: =+M60 -> 1 | M116: =+$J$15 -> 0.98 | N116: =+K116*L116*M116 -> 0.2745882193
A117: Fatal and Injury (FI) | C117: ='Intersection Tables'!J21 -> -9.154 | D117: ='Intersection Tables'!K21 -> 0.255 | E117: ='Intersection Tables'!L21 -> 0.513 | F117: ='Intersection Tables'!M21 -> 0.79 | H117: =IF(J11="3ST",H116*0.31,IF(J11="4ST",H116*0.28,(EXP(C117+(D117*LN($J$12))+(E117*LN($J$13)))))) -> 0.09167082559 | I117: (4)FI/((4)FI+(4)PDO) | K117: =H116*I118 -> 0.09219365974 | L117: =+M60 -> 1 | M117: =+$J$15 -> 0.98 | N117: =+K117*L117*M117 -> 0.09034978654
I118: =+H117/(H117+H119) -> 0.3290373738
A119: Property Damage Only (PDO) | C119: ='Intersection Tables'!J26 -> -8.494 | D119: ='Intersection Tables'!K26 -> 0.208 | E119: ='Intersection Tables'!L26 -> 0.571 | F119: ='Intersection Tables'!M26 -> 0.2 | H119: =EXP(C119+(D119*LN($J$12))+(E119*LN($J$13))) -> 0.1869322539 | I119: (5)TOTAL-(5)FI | K119: =H116*I120 -> 0.1879984008 | L119: =+M60 -> 1 | M119: =+$J$15 -> 0.98 | N119: =+K119*L119*M119 -> 0.1842384328
I120: =I116-I118 -> 0.6709626262
A124: Worksheet 2F -- Single-Vehicle Collisions by Collision Type for Urban and Suburban Arterial Intersections
A125: (1) | D125: (2) | F125: (3) | H125: (4) | J125: (5) | L125: (6)
A126: Collision Type | D126: Proportion of Collision Type(FI) | F126: Predicted N bisv (FI) (crashes/year) | H126: Proportion of Collision Type (PDO) | J126: Predicted N bisv (PDO) (crashes/year) | L126: Predicted N bisv (TOTAL) (crashes/year)
D129: from Table 12-13 | F129: (9)FI from Worksheet 2E | H129: from Table 12-13 | J129: (9)PDO from Worksheet 2E | L129: (9)PDO from Worksheet 2E
A131: Total | D131: =SUM(D133:E138) -> 1 | F131: =+N117 -> 0.09034978654 | H131: =SUM(H133:I138) -> 1 | J131: =+N119 -> 0.1842384328 | L131: =+N116 -> 0.2745882193
F132: (2)*(3)FI | J132: (4)*(5)PDO | L132: (3)+(5)
A133: Collision with parked vehicle | D133: ='Intersection Tables'!J74 -> 0 | F133: =+D133*$F$131 -> 0 | H133: ='Intersection Tables'!K74 -> 0.103 | J133: =+H133*$J$131 -> 0.01897655857 | L133: =+F133+J133 -> 0.01897655857
A134: Collision with animal | D134: ='Intersection Tables'!J75 -> 0.105 | F134: 0.009486727587 | H134: ='Intersection Tables'!K75 -> 0 | J134: 0 | L134: 0.009486727587
A135: Collision with fixed object | D135: ='Intersection Tables'!J76 -> 0.421 | F135: 0.03803726014 | H135: ='Intersection Tables'!K76 -> 0.795 | J135: 0.146469554 | L135: 0.1845068142
A136: Collision with other object | D136: ='Intersection Tables'!J77 -> 0 | F136: 0 | H136: ='Intersection Tables'!K77 -> 0.051 | J136: 0.009396160071 | L136: 0.009396160071
A137: Other single-vehicle collision | D137: ='Intersection Tables'!J78 -> 0.474 | F137: 0.04282579882 | H137: ='Intersection Tables'!K78 -> 0.051 | J137: 0.009396160071 | L137: 0.05222195889
A138: Single-vehicle noncollision | D138: ='Intersection Tables'!J79 -> 0 | F138: 0 | H138: ='Intersection Tables'!K79 -> 0 | J138: 0 | L138: 0
B142: Worksheet 2G-1 -- Crash Modification Factors for Vehicle-Pedestrian Collisions for Urban and Suburban Arterial Signalized Intersections
B143: (1) | E143: (2) | H143: (3) | K143: (4)
B144: CMF for Bus Stops | E144: CMF for Schools | H144: CMF for Alcohol Sales Establishments | K144: Combined CMF
B145: CMF1p | E145: CMF2p | H145: CMF3p
B146: from Table 12-28 | E146: from Table 12-29 | H146: from Table 12-30 | K146: (1)*(2)*(3)
B147: =IF($J$28=0,'Intersection Tables'!AC51,IF($J$28<=2,'Intersection Tables'!AC52,'Intersection Tables'!AC53)) -> 1 | E147: =IF($J$29="Present",'Intersection Tables'!AC62,'Intersection Tables'!AC61) -> 1 | H147: =IF(J30=0,'Intersection Tables'!AC70,IF(J30<=8,'Intersection Tables'!AC71,'Intersection Tables'!AC72)) -> 1 | K147: =IF(J11="3ST","--",IF(J11="4ST","--",B147*E147*H147)) -> 1
A151: Worksheet 2G -- Vehicle-Pedestrian Collisions for Urban and Suburban Arterial Signalized Intersections
A152: (1) | C152: (2) | H152: (3) | I152: (4) | K152: (5) | M152: (7)
A153: Crash Severity Level | C153: SPF Coefficients | H153: Overdispersion Parameter, k | I153: Npedbase | K153: Combined CMF | M153: Predicted Npedi
C155: from Table 12-14 | I155: from Equation 12-29 | K155: (4) from Worksheet 2H | M155: (4)*(5)
C156: a | D156: b | E156: c | F156: d | G156: e
A157: Total | C157: ='Intersection Tables'!Q14 -> -10.059 | D157: ='Intersection Tables'!R14 -> 0.199 | E157: ='Intersection Tables'!S14 -> 0.425 | F157: ='Intersection Tables'!T14 -> 0.59 | G157: ='Intersection Tables'!U14 -> 0.178 | H157: ='Intersection Tables'!V14 -> 0.13 | I157: =EXP(+$C157+($D157*LN($J$12+J$13))+(E$157*LN($J$13/$J$12))+(F$157*LN($J$26))+(G$157*$J$27)) -> 0.0002049752214 | K157: =+$K$147 -> 1 | M157: =$I$157*$K$157 -> 0.0002049752214
A158: Fatal and Injury (FI) | C158: -- | D158: -- | E158: -- | F158: -- | G158: -- | H158: -- | I158: -- | K158: -- | M158: =M157 -> 0.0002049752214
A162: Worksheet 2J -- Vehicle-Bicycle Collisions for Urban and Suburban Arterial Intersections
A163: (1) | D163: (2) | F163: (3) | H163: (4) | I163: (5) | K163: (7)
A164: Crash Severity Level | D164: Predicted Nbimv | F164: Predicted Nbisv | H164: Predicted Nbi | I164: fbikei | K164: Predicted Nbikei
D166: (9) from Worksheet 2C | F166: (9) from Worksheet 2E | H166: (2) + (3) | I166: from Table 12-17 | K166: (4)*(5)*(6)
A168: Total | D168: =+$N$70 -> 6.424943174 | F168: =+$N$116 -> 0.2745882193 | H168: =+D168+F168 -> 6.699531393 | I168: ='Intersection Tables'!N103 -> 0.006069802731 | K168: =+$H$168*$I$168 -> 0.04066483395
A169: Fatal and injury (FI) | D169: -- | F169: -- | H169: -- | I169: -- | K169: =+$H$168*$I$168 -> 0.04066483395
A173: Worksheet 2K -- Crash Severity Distribution for Urban and Suburban Arterial Intersections
A174: (1) | F174: (2) | I174: (3) | L174: (4)
A175: Collision type | F175: Fatal and injury (FI) | I175: Property damage only (PDO) | L175: Total
F176: (3) from Worksheet 2D and 2F; | I176: (5) from Worksheet 2D and 2F | L176: (6) from Worksheet 2D and 2F;
F177: (7) from Worksheet 2G and 2J | L177: (7) from Worksheet 2G and 2J
A178: MULTIPLE-VEHICLE
A179: Rear-end collisions (from Worksheet 2D) | F179: =+F101 -> 0.5548581983 | I179: =+J101 -> 1.846678655 | L179: =+L101 -> 2.401536853
A180: Head-on collisions (from Worksheet 2D) | F180: =+F102 -> 0.1208602016 | I180: =+J102 -> 0.1745616639 | L180: =+L102 -> 0.2954218655
A181: Angle collisions (from Worksheet 2D) | F181: =+F103 -> 1.051117511 | I181: =+J103 -> 2.035021503 | L181: =+L103 -> 3.086139014
A182: Sideswipe (from Worksheet 2D) | F182: =+F104 -> 0.05493645528 | I182: =+J104 -> 0.4731539838 | L182: =+L104 -> 0.528090439
A183: Other multiple-vehicle collision (from Worksheet 2D) | F183: =+F105 -> 0.04944280975 | I183: =+J105 -> 0.06431219197 | L183: =+L105 -> 0.1137550017
A184: Subtotal | F184: =SUM(F179:H183) -> 1.831215176 | I184: =SUM(I179:K183) -> 4.593727998 | L184: =SUM(L179:N183) -> 6.424943174
A185: SINGLE-VEHICLE
A186: Collision with parked vehicle (from Worksheet 2F) | F186: =+F133 -> 0 | I186: =+J133 -> 0.01897655857 | L186: =+L133 -> 0.01897655857
A187: Collision with animal (from Worksheet 2F) | F187: 0.009486727587 | I187: 0 | L187: 0.009486727587
A188: Collision with fixed object (from Worksheet 2F) | F188: 0.03803726014 | I188: 0.146469554 | L188: 0.1845068142
A189: Collision with other object (from Worksheet 2F) | F189: 0 | I189: 0.009396160071 | L189: 0.009396160071
A190: Other single-vehicle collision (from Worksheet 2F) | F190: 0.04282579882 | I190: 0.009396160071 | L190: 0.05222195889
A191: Single-vehicle noncollision (from Worksheet 2F) | F191: 0 | I191: 0 | L191: 0
A192: Collision with pedestrian (from Worksheet 2G or 2I) | F192: =M158 -> 0.0002049752214 | I192: 0 | L192: =+F192+I192 -> 0.0002049752214
A193: Collision with bicycle (from Worksheet 2J) | F193: =K169 -> 0.04066483395 | I193: 0 | L193: =+F193+I193 -> 0.04066483395
A194: Subtotal | F194: =SUM(F186:H193) -> 0.1312195957 | I194: =SUM(I186:K193) -> 0.1842384328 | L194: =SUM(L186:N193) -> 0.3154580285
A195: Total | F195: =+F184+F194 -> 1.962434772 | I195: =+I184+I194 -> 4.77796643 | L195: =+L184+L194 -> 6.740401202
E199: Worksheet 2L -- Summary Results for Urban and Suburban Arterial Intersections
E200: (1) | H200: (2)
E201: Crash severity level | H201: Predicted average crash frequency, Npredicted int (crashes/year)
H204: Total
E205: Total | H205: =H168+M157+K168 -> 6.740401202
E206: Fatal and injury (FI) | H206: =+F195 -> 1.962434772
E207: Property damage only (PDO) | H207: =+I195 -> 4.77796643

Sheet Intersection Tables (hidden)
A1: This sheet (Columns A~AE) contains all the relevant tables required for prediction of crashes at urban and suburban intersections. Please do not delete this worksheet.
B5: Tables Affiliated with SPF Computation: | Y5: Tables Affiliated with Crash Modification Factors:
B7: Table 12-10: SPF Coefficients for Multiple-Vehicle Collisions at Intersections | I7: Table 12-12: SPF Coefficients for Single-Vehicle Crashes at Intersections | P7: Table 12-14: SPF for Vehicle-Pedestrian Collisions at Signalized Intersections | Y7: Table 12-24: Crash Modification Factor (CMF1i) for Installation of Left-Turn Lanes on Intersection Approaches
B9: Intersection Type | C9: Coefficients use in Eqn. 12-21 | F9: Overdispersion parameter (k) | I9: Intersection Type | J9: Coefficients use in Eqn. 12-24 | M9: Overdispersion parameter (k) | P9: Intersection Type | Q9: Coefficients use in Eqn. 12-29 | V9: Overdispersion parameter (k) | Y9: Intersection Type | Z9: Intersection traffic control | AB9: Number of approaches with left-turn lanes a
C10: Intercept | D10: AADTmaj | E10: AADTmin | J10: Intercept | K10: AADTmaj | L10: AADTmin | Q10: Intercept | R10: AADTtot | S10: AADTmin/AADTmaj | T10: PedVol | U10: nlanesx
C11: (a) | D11: (b) | E11: (c) | J11: (a) | K11: (b) | L11: (c) | Q11: (a) | R11: (b) | S11: (c) | T11: (d) | U11: (e) | AB11: One approach | AC11: Two approaches | AD11: Three approaches | AE11: Four approaches
B12: Total crashes | I12: Total crashes | P12: Total crashes
B13: 3ST | C13: -8.86 | D13: 0.475 | E13: 0.587 | F13: 0.97 | I13: 3ST | J13: -6.95 | K13: 0.112 | L13: 0.495 | M13: 0.51 | P13: 3SG | Q13: -7.782 | R13: 0.212 | S13: 0.178 | T13: 0.289 | U13: 0.144 | V13: 0.22 | Y13: 3ST | Z13: Minor-road STOP controlb | AB13: 0.67 | AC13: 0.45 | AD13: -- | AE13: --
B14: 3SG | C14: -2.511 | D14: 0.352 | E14: 0.057 | F14: 0.58 | I14: 3SG | J14: -6.309 | K14: 0.306 | L14: 0.223 | M14: 0.2 | P14: 4SG | Q14: -10.059 | R14: 0.199 | S14: 0.425 | T14: 0.59 | U14: 0.178 | V14: 0.13 | Y14: 3SG | Z14: Traffic signal | AB14: 0.93 | AC14: 0.86 | AD14: 0.8
B15: 4ST | C15: -9.331 | D15: 0.573 | E15: 0.649 | F15: 1.21 | I15: 4ST | J15: -6.117 | K15: 0.353 | L15: 0.111 | M15: 2.45 | Y15: 4ST | Z15: Minor-road STOP controla | AB15: 0.73 | AC15: 0.53 | AD15: -- | AE15: --
B16: 4SG | C16: -5.037 | D16: 0.634 | E16: 0.113 | F16: 0.33 | I16: 4SG | J16: -8.255 | K16: 0.193 | L16: 0.607 | M16: 0.8 | Y16: 4SG | Z16: Traffic signal | AB16: 0.9 | AC16: 0.81 | AD16: 0.73 | AE16: 0.66
B17: Fatal-and-injury crashes | I17: Fatal-and-injury crashes | Y17: a STOP-controlled approaches are not considered in determining the number of approaches with left-turn lanes.
B18: 3ST | C18: -8.968 | D18: 0.443 | E18: 0.444 | F18: 0.76 | I18: 3ST | J18: -- | K18: -- | L18: -- | M18: 0 | Y18: b Stop signs present on minor-road approaches only.
B19: 3SG | C19: -2.761 | D19: 0.267 | E19: 0.018 | F19: 0.77 | I19: 3SG | J19: -7.212 | K19: 0.351 | L19: 0.147 | M19: 0.16
B20: 4ST | C20: -7.309 | D20: 0.424 | E20: 0.413 | F20: 1.75 | I20: 4ST | J20: -- | K20: -- | L20: -- | M20: 0
B21: 4SG | C21: -7.601 | D21: 0.79 | E21: 0.093 | F21: 0.44 | I21: 4SG | J21: -9.154 | K21: 0.255 | L21: 0.513 | M21: 0.79
B22: Property-damage-only crashes | I22: Property-damage-only crashes | Y22: Table 12-26: Crash Modification Factor (CMF3i) for Installation of Right-Turn Lanes on Intersection Approaches
B23: 3ST | C23: -9.53 | D23: 0.476 | E23: 0.638 | F23: 0.92 | I23: 3ST | J23: -7.218 | K23: 0.105 | L23: 0.5 | M23: 0.47
B24: 3SG | C24: -4.325 | D24: 0.429 | E24: 0.151 | F24: 0.59 | I24: 3SG | J24: -7.522 | K24: 0.265 | L24: 0.361 | M24: 0.55 | Y24: Intersection Type | Z24: Intersection traffic control | AB24: Number of approaches with right-turn lanes a
B25: 4ST | C25: -11.569 | D25: 0.675 | E25: 0.769 | F25: 1.03 | I25: 4ST | J25: -5.902 | K25: 0.266 | L25: 0.15 | M25: 1.27
B26: 4SG | C26: -5.247 | D26: 0.611 | E26: 0.122 | F26: 0.27 | I26: 4SG | J26: -8.494 | K26: 0.208 | L26: 0.571 | M26: 0.2 | AB26: One approach | AC26: Two approaches | AD26: Three approaches | AE26: Four approaches
I27: Note: Where no models are available, Equations 12-27 is used.
I28: Equation 12-27: | Y28: 3ST | Z28: Minor-road STOP controlb | AB28: 0.86 | AC28: 0.74 | AD28: -- | AE28: --
I29: Nbisv(FI) = Nbisv(TOTAL) x fbisv | Y29: 3SG | Z29: Traffic signal | AB29: 0.96 | AC29: 0.92 | AD29: -- | AE29: --
Y30: 4ST | Z30: Minor-road STOP controla | AB30: 0.86 | AC30: 0.74 | AD30: -- | AE30: --
Y31: 4SG | Z31: Traffic signal | AB31: 0.96 | AC31: 0.92 | AD31: 0.88 | AE31: 0.85
Y32: a STOP-controlled approaches are not considered in determining the number of approaches with right-turn lanes.
B33: Tables Affiliated with Crash Statistics: | Y33: b Stop signs present on minor-road approaches only.
B35: Table 12-11: Distribution of Multiple-Vehicle Collisions for Intersections by Collision Type
D37: Proportion of crashes by severity level for specific intersection types | Y37: Table 12-25: Crash Modification Factor (CMF2i) for Type of Left-Turn Signal Phasing
D38: HSM-Provided Values
B39: Collision Type | D39: 3ST | F39: 3SG | H39: 4ST | J39: 4SG | Y39: Type of Left-Turn Signal Phasing | AC39: CMF2i
D40: FI | E40: PDO | F40: FI | G40: PDO | H40: FI | I40: PDO | J40: FI | K40: PDO
B41: Rear-end collision | D41: 0.421 | E41: 0.44 | F41: 0.549 | G41: 0.546 | H41: 0.338 | I41: 0.374 | J41: 0.45 | K41: 0.483 | Y41: Permissive | AC41: 1
B42: Head-on collision | D42: 0.045 | E42: 0.023 | F42: 0.038 | G42: 0.02 | H42: 0.041 | I42: 0.03 | J42: 0.049 | K42: 0.03 | Y42: Protected/permissive or permissive/protected | AC42: 0.99
B43: Angle collision | D43: 0.343 | E43: 0.262 | F43: 0.28 | G43: 0.204 | H43: 0.44 | I43: 0.335 | J43: 0.347 | K43: 0.244 | Y43: Protected | AC43: 0.94
B44: Sideswipe | D44: 0.126 | E44: 0.04 | F44: 0.076 | G44: 0.032 | H44: 0.121 | I44: 0.044 | J44: 0.099 | K44: 0.032
B45: Other multiple-vehicle collision | D45: 0.065 | E45: 0.235 | F45: 0.057 | G45: 0.198 | H45: 0.06 | I45: 0.217 | J45: 0.055 | K45: 0.211
B46: Source: HSIS data for Washington (2002-2006)
B47: Collision Type | D47: Locally-Derived Values (Massachusetts) | Y47: Table 12-28. Crash Modification Factor (CMF1p) for the Presence of Bus Stops near the Intersection
D48: 3ST | F48: 3SG | H48: 4ST | J48: 4SG
D49: FI | E49: PDO | F49: FI | G49: PDO | H49: FI | I49: PDO | J49: FI | K49: PDO | Y49: Number of Bus Stops within 1,000 ft of the Intersection | AC49: CMF1p
B50: Rear-end collision | D50: 0.28 | E50: 0.316 | F50: 0.363 | G50: 0.496 | H50: 0.077 | I50: 0.157 | J50: 0.303 | K50: 0.402
B51: Head-on collision | D51: 0.061 | E51: 0.033 | F51: 0.104 | G51: 0.04 | H51: 0.015 | I51: 0.034 | J51: 0.066 | K51: 0.038 | Y51: 0 | AC51: 1
B52: Angle collision | D52: 0.598 | E52: 0.57 | F52: 0.39 | G52: 0.285 | H52: 0.823 | I52: 0.719 | J52: 0.574 | K52: 0.443 | Y52: 1 or 2 | AC52: 2.78
B53: Sideswipe | D53: 0.037 | E53: 0.07 | F53: 0.065 | G53: 0.157 | H53: 0.031 | I53: 0.068 | J53: 0.03 | K53: 0.103 | Y53: 3 or more | AC53: 4.15
B54: Other multiple-vehicle collision | D54: 0.024 | E54: 0.011 | F54: 0.078 | G54: 0.022 | H54: 0.054 | I54: 0.022 | J54: 0.027 | K54: 0.014
B55: Note: HSM-Provided values based on HSIS data for California (2002-2006)
Y57: Table 12-29. Crash Modification Factor (CMF2p) for the Presence of Schools near the Intersection
B58: Table 12-13: Distribution of Single-Vehicle Crashes for Intersections by Collision Type
Y59: Number of Schools within 1,000 ft of the Intersection | AC59: CMF2p
D60: Proportion of crashes by severity level for specific intersection types
D61: HSM-Provided Values | Y61: No school present | AC61: 1
B62: Collision Type | D62: 3ST | F62: 3SG | H62: 4ST | J62: 4SG | Y62: School present | AC62: 1.35
D63: FI | E63: PDO | F63: FI | G63: PDO | H63: FI | I63: PDO | J63: FI | K63: PDO
B64: Collision with parked vehicle | D64: 0.001 | E64: 0.003 | F64: 0.001 | G64: 0.001 | H64: 0.001 | I64: 0.001 | J64: 0.001 | K64: 0.001
B65: Collision with animal | D65: 0.003 | E65: 0.018 | F65: 0.001 | G65: 0.003 | H65: 0.001 | I65: 0.026 | J65: 0.002 | K65: 0.002
B66: Collision with fixed object | D66: 0.762 | E66: 0.8341 | F66: 0.653 | G66: 0.895 | H66: 0.679 | I66: 0.847 | J66: 0.744 | K66: 0.87 | Y66: Table 12-30. Crash Modification Factor (CMF3p) for the Presence of Alcohol Sales Establishments near the Intersection
B67: Collision with other object | D67: 0.09 | E67: 0.092 | F67: 0.091 | G67: 0.069 | H67: 0.089 | I67: 0.07 | J67: 0.072 | K67: 0.07
B68: Other single-vehicle collision | D68: 0.039 | E68: 0.023 | F68: 0.045 | G68: 0.018 | H68: 0.051 | I68: 0.007 | J68: 0.04 | K68: 0.023 | Y68: Number of Alcohol Sales Establishment within 1,000 ft of the Intersection | AC68: CMF3p
B69: Noncollision | D69: 0.105 | E69: 0.03 | F69: 0.209 | G69: 0.014 | H69: 0.179 | I69: 0.049 | J69: 0.141 | K69: 0.034
B70: Source: HSM-Provided values base on HSIS data for California (2002-2006) | Y70: 0 | AC70: 1
B71: Collision Type | D71: Locally-Derived Values | Y71: 1--8 | AC71: 1.12
D72: 3ST | F72: 3SG | H72: 4ST | J72: 4SG | Y72: 9 or more | AC72: 1.56
D73: FI | E73: PDO | F73: FI | G73: PDO | H73: FI | I73: PDO | J73: FI | K73: PDO
B74: Collision with parked vehicle | D74: 0.091 | E74: 0.029 | F74: 0.154 | G74: 0.042 | H74: 0 | I74: 0.095 | J74: 0 | K74: 0.103
B75: Collision with animal | D75: 0 | E75: 0 | F75: 0 | G75: 0 | H75: 0 | I75: 0.095 | J75: 0.105 | K75: 0 | M75: Equation 12-27 Ratio of Single-Vehicle FI Crashes
B76: Collision with fixed object | D76: 0.818 | E76: 0.743 | F76: 0.615 | G76: 0.875 | H76: 0.5 | I76: 0.571 | J76: 0.421 | K76: 0.795 | M76: Intersection Type | O76: Ratio of FI to Total Crashes (fbisv)
B77: Collision with other object | D77: 0 | E77: 0.057 | F77: 0 | G77: 0 | H77: 0 | I77: 0.048 | J77: 0 | K77: 0.051 | O77: HSM Value | Q77: Local Value
B78: Other single-vehicle collision | D78: 0.091 | E78: 0.142 | F78: 0.154 | G78: 0.083 | H78: 0.5 | I78: 0.191 | J78: 0.474 | K78: 0.051 | M78: 3ST | O78: 0.31 | Q78: 0.24
B79: Noncollision | D79: 0 | E79: 0.029 | F79: 0.077 | G79: 0 | H79: 0 | I79: 0 | J79: 0 | K79: 0 | M79: 4ST | O79: 0.28 | Q79: 0.22
B82: Table 12-27: Nighttime Crash Proportions for Unlighted Intersections
D84: Proportion of crashes that occur at night, pni
D85: HSM-Provided Values | F85: Locally-Derived Values
B86: Intersection Type | H86: Note: Although 4 out of 118 3ST intersections were unlighted, there were no nighttime crashes at those intersections during the data collection period (2015~2018). Therefore, HSM-provided proportion (pni) for 3ST intersections is used.
B87: 3ST | D87: 0.238 | F87: 0.238
B88: 4ST | D88: 0.229 | F88: 0.25
B89: 3SG | D89: 0.235 | F89: 0.061
B90: 4SG | D90: 0.235 | F90: 0.284
B93: Table 1B: Number of Vehicle-Pedestrian and Vehicle-Bike Crashes by Manner and Injury Severity
B95: Intersection Type | C95: Total Single-Vehicle Crashes | D95: Total Multiple-Vehicle Crashes | E95: Veh-Pedestrian | H95: Veh-Bike | K95: Sum of Veh-Pedestrian and Veh-Bike (FI and PDO) | M95: Locally-Derived Values | O95: HSM-Provided Values
M96: Veh-Ped FI ω Coefficient | N96: Veh-Bike ω Coefficient | O96: Veh-Ped FI ω Coefficient | P96: Veh-Bike ω Coefficient
E99: FI | F99: PDO | G99: Total | H99: FI | I99: PDO | J99: Total | K99: FI | L99: PDO
B100: 3ST | C100: 46 | D100: 354 | E100: 4 | F100: 2 | G100: =E100+F100 -> 6 | H100: 2 | I100: 0 | J100: =H100+I100 -> 2 | K100: =E100+H100 -> 6 | L100: 2 | M100: =G100/(C100+D100) -> 0.015 | N100: =J100/(C100+D100) -> 0.005 | O100: 0.021 | P100: 0.016
B101: 3SG | C101: 37 | D101: 607 | E101: 16 | F101: 3 | G101: =E101+F101 -> 19 | H101: 14 | I101: 2 | J101: =H101+I101 -> 16 | K101: 30 | L101: 5 | N101: =J101/(C101+D101) -> 0.0248447205 | P101: 0.011
B102: 4ST | C102: 27 | D102: 365 | E102: 3 | F102: 2 | G102: =E102+F102 -> 5 | H102: 5 | I102: 0 | J102: =H102+I102 -> 5 | K102: 8 | L102: 2 | M102: =G102/(C102+D102) -> 0.01275510204 | N102: =J102/(C102+D102) -> 0.01275510204 | O102: 0.022 | P102: 0.018
B103: 4SG | C103: 58 | D103: 1260 | E103: 12 | F103: 3 | G103: =E103+F103 -> 15 | H103: 4 | I103: 4 | J103: =H103+I103 -> 8 | K103: 16 | L103: 7 | N103: =J103/(C103+D103) -> 0.006069802731 | P103: 0.015
B106: Table 1C: Coefficients of FI and PDO Derived From Historical Data for Multiple-Vehicle and Single-Vehicle Collisions at Intersections
B108: Intersection Type | C108: Total Single Vehicle Crashes | D108: Total Multiple Vehicle Crashes | E108: Single-Vehicle | I108: Multiple-Vehicle
E109: FI | F109: PDO | G109: FI Ratio | H109: PDO Ratio | I109: FI | J109: PDO | K109: FI Ratio | L109: PDO Ratio
B111: 3ST | C111: 46 | D111: 354 | E111: 11 | F111: 35 | G111: =E111/C111 -> 0.2391304348 | H111: =1-G111 -> 0.7608695652 | I111: 82 | J111: 272 | K111: =I111/D111 -> 0.2316384181 | L111: =J111/D111 -> 0.7683615819
B112: 3SG | C112: 37 | D112: 607 | E112: 13 | F112: 24 | G112: =E112/C112 -> 0.3513513514 | H112: =1-G112 -> 0.6486486486 | I112: 154 | J112: 453 | K112: =I112/D112 -> 0.2537067545 | L112: =J112/D112 -> 0.7462932455
B113: 4ST | C113: 27 | D113: 365 | E113: 6 | F113: 21 | G113: =E113/C113 -> 0.2222222222 | H113: 0.7777777778 | I113: 130 | J113: 235 | K113: 0.3561643836 | L113: 0.6438356164
B114: 4SG | C114: 58 | D114: 1260 | E114: 19 | F114: 39 | G114: =E114/C114 -> 0.3275862069 | H114: 0.6724137931 | I114: 366 | J114: 894 | K114: 0.2904761905 | L114: 0.7095238095

Sheet Calibration Factors (hidden)
C4: Calibration Factors
D6: 3SG | E6: 3ST | F6: 4SG | G6: 4ST
C7: HSM Method | D7: 0.98 | E7: 0.98 | F7: 0.98 | G7: 1.01

Sheet Construction - do not delete (hidden)
A1: NOTICE!
A2: This sheet is present to ensure the proper functioning of the excel workbook. Please do not tamper with or delete this worksheet. Doing so, would result in improper functioning of the workbook.
B4: Lane Width | D4: Shoulder Width | F4: RHR
B5: 9 | D5: 0 | F5: 1
B6: 9.5 | D6: 1 | F6: 2
B7: 10 | D7: 2 | F7: 3
B8: 10.5 | D8: 3 | F8: 4
B9: 11 | D9: 4 | F9: 5
B10: 11.5 | D10: 5 | F10: 6
B11: 12 | D11: 6 | F11: 7
D12: 7
D13: 8
H16: Centerline | J16: Passing | L16: Local
D17: Shoulder Type | F17: Spiral | H17: Rumble Strips | J17: Lane | L17: Yes
D18: Paved | F18: Not Present | H18: Not Present | J18: Not Present | L18: No
D19: Gravel | F19: Present | H19: Present | J19: Present (1 lane)
D20: Composite | J20: Present (2 lanes)
D21: Turf
F23: TWLTL | H23: Lighting | J23: SpEnforce
F24: Not Present | H24: Not Present | J24: Not Present
F25: Present | H25: Present | J25: Present
D28: Intersection Type | F28: No. of Left Turn Approaches | H28: No. of Right Turn Approaches | J28: Intersection Lighting | L28: Use of Coefficients
D29: Itype | F29: Lapproach | H29: Rapproach | J29: Ilight | L29: Differ
D30: 3ST | F30: 0 | H30: 0 | J30: Not Present | L30: Yes
D31: 4ST | F31: 1 | H31: 1 | J31: Present | L31: No
D32: 4SG | F32: 2 | H32: 2
F33: 3 | H33: 3
F34: 4 | H34: 4
D36: Median Width
D37: Mwidth | F37: Division | H37: Sslope | J37: Shld2 | L37: Iapproach
D38: 10 | F38: Divided | H38: 1:2 or Steeper | J38: 0 | L38: 0
D39: 20 | F39: Undivided | H39: 1:4 | J39: 1 | L39: 1
D40: 30 | H40: 1:5 | J40: 2 | L40: 2
D41: 40 | H41: 1:6 | J41: 3
D42: 50 | H42: 1:7 or Flatter | J42: 4
D43: 60 | J43: 5
D44: 70 | J44: 6
D45: 80 | J45: 7
D46: 90 | J46: 8
D47: 100 | J47: 9
J48: 10
D52: Urban / Suburban Fields:
D55: Rtype | F55: UMedWidth | H55: PresOrNot | J55: OnStreetType | L55: OffsetFO | N55: Posted
D56: 2U | F56: Not Present | H56: Not Present | J56: None | L56: 2 | N56: Posted Speed 30 mph or Lower
D57: 3T | F57: 10 | J57: Parallel (Residential) | L57: 5 | N57: Posted Speed Greater than 30 mph
D58: 4U | F58: 15 | J58: Parallel (Comm/Ind) | L58: 10
D59: 4D | F59: 20 | J59: Angle (Residential) | L59: 15
D60: 5T | F60: 30 | J60: Angle (Comm/Ind) | L60: 20
F61: 40 | L61: 25
F62: 50 | L62: ≥ 30
F63: 60
F64: 70
F65: 80
F66: 90
F67: 100
D70: Turning Lanes | F70: Intersection Type2 | H70: Phasing | J70: Unsignalized Approaches | L70: Phasing 2
D71: Tlanes | F71: Itype2 | H71: Phasing | J71: UnsigApproach | L71: Phasing2
D72: 0 | F72: 3ST | H72: Permissive | J72: 0 | L72: Not Applicable
D73: 1 | F73: 3SG | H73: Protected | J73: 1 | L73: Permissive
D74: 2 | F74: 4ST | H74: Protected / Permissive | J74: 2 | L74: Protected
D75: 3 | F75: 4SG | H75: Permissive / Protected | L75: Protected / Permissive
D76: =IF((Input!C11="3SG MassDOT"),"",4) -> 4 | L76: Permissive / Protected
V79: =IF(Input!#REF!="","",IF(Input!#REF!>#REF!,"AADT Out of Range", "AADT OK")) -> 
A82: Intersection Type | C82: Number of Alternatives | E82: Spreadsheet Selection | H82: Facility Type | I82: Facility Type Code | J82: Average FI Crash Cost | K82: Average PDO Crash Cost | N82: Study Period (Years) | V82: DO NOT MODIFY | AB82: DO NOT MODIFY
A83: 3ST | C83: 0 | E83: 3ST MassDOT | H83: Urban Three-Leg Signalized Intersection | I83: U3SG | J83: 339500 | K83: 16700 | N83: 1 | V83: Major AADT Verification | AB83: Minor AADT Verification
A84: 3SG | C84: 1 | E84: 4ST MassDOT | H84: Urban Three-Leg Stop-Controlled Intersection | I84: U3ST | J84: 352800 | K84: 16700 | N84: 2 | V84: =V85&W85&X85&Y85&Z85 -> =if('Input'!D37>'3ST MassDOT'!F12,"AADT Out of Range","AADT OK") | AB84: =AB85&AC85&AD85&AE85&AF85 -> =if('Input'!D39>'3ST MassDOT'!F13,"AADT Out of Range","AADT OK")
A85: 4ST | C85: 2 | E85: 3SG MassDOT | H85: Urban Four-Leg Signalized Intersection | I85: U4SG | J85: 327200 | K85: 16700 | N85: 3 | V85: =if(' | W85: Input | X85: '!D37>' | Y85: ='Input Summary'!B10 -> 3ST MassDOT | Z85: '!F12,"AADT Out of Range","AADT OK") | AB85: =if(' | AC85: Input | AD85: '!D39>' | AE85: ='Input Summary'!B10 -> 3ST MassDOT | AF85: '!F13,"AADT Out of Range","AADT OK")
A86: 4SG | C86: 3 | E86: 4SG MassDOT | H86: Urban Four-Leg Stop-Controlled Intersection | I86: U4ST | J86: 319100 | K86: 16700 | N86: 4
C87: 4 | H87: Urban Two-Lane Undivided Arterial – District 1 | I87: U2UAD1 | J87: 501300 | K87: 16700 | N87: 5
H88: Urban Two-Lane Undivided Arterial – District 2 | I88: U2UAD2 | J88: 490700 | K88: 16700 | N88: 6
H89: Urban Two-Lane Undivided Arterial – District 3 | I89: U2UAD3 | J89: 532100 | K89: 16700 | N89: 7
H90: Urban Two-Lane Undivided Arterial – District 4 | I90: U2UAD4 | J90: 402400 | K90: 16700 | N90: 8
H91: Urban Two-Lane Undivided Arterial – District 5 | I91: U2UAD5 | J91: 522500 | K91: 16700 | N91: 9
H92: Urban Two-Lane Undivided Arterial – District 6 | I92: U2UAD6 | J92: 462000 | K92: 16700 | N92: 10
H93: Urban Four-Lane Undivided Arterial | I93: U4UA | J93: 481300 | K93: 16700
H94: Urban Four-Lane Divided Arterial | I94: U4DA | J94: 530800 | K94: 16700
H95: Rural Two-Lane Undivided Highway | I95: R2UAC | J95: 878400 | K95: 16700
A107: DO NOT MODIFY
A108: Crash Type, Severity | B108: Predicted Crash Frequency per Year (From Prediction Spreadsheet [Predicted Nb]) | E108: Year:
E109: 1 | F109: 2 | G109: 3 | H109: 4 | I109: 5 | J109: 6 | K109: 7 | L109: 8 | M109: 9 | N109: 10 | O109: Design Year
A110: MV, FI | B110: =$A$118&$B$118&"'!N71" -> ='Year '!N71 | E110: =$A$118&E109&"'!N71" -> ='Year 1'!N71 | F110: =$A$118&F109&"'!N71" -> ='Year 2'!N71 | G110: ='Year 3'!N71 | H110: ='Year 4'!N71 | I110: ='Year 5'!N71 | J110: ='Year 6'!N71 | K110: ='Year 7'!N71 | L110: ='Year 8'!N71 | M110: ='Year 9'!N71 | N110: ='Year 10'!N71 | O110: ="'"&O109&"'!N71" -> 'Design Year'!N71
A111: MV, PDO | B111: =$A$118&$B$118&"'!N73" -> ='Year '!N73 | E111: =$A$118&E109&"'!N73" -> ='Year 1'!N73 | F111: =$A$118&F109&"'!N73" -> ='Year 2'!N73 | G111: ='Year 3'!N73 | H111: ='Year 4'!N73 | I111: ='Year 5'!N73 | J111: ='Year 6'!N73 | K111: ='Year 7'!N73 | L111: ='Year 8'!N73 | M111: ='Year 9'!N73 | N111: ='Year 10'!N73 | O111: ="'"&O109&"'!N73" -> 'Design Year'!N73
A112: SV, FI | B112: =$A$118&$B$118&"'!N117" -> ='Year '!N117 | E112: =$A$118&E109&"'!N117" -> ='Year 1'!N117 | F112: =$A$118&F109&"'!N117" -> ='Year 2'!N117 | G112: ='Year 3'!N117 | H112: ='Year 4'!N117 | I112: ='Year 5'!N117 | J112: ='Year 6'!N117 | K112: ='Year 7'!N117 | L112: ='Year 8'!N117 | M112: ='Year 9'!N117 | N112: ='Year 10'!N117 | O112: ="'"&O109&"'!N117" -> 'Design Year'!N117
A113: SV, PDO | B113: =$A$118&$B$118&"'!N119" -> ='Year '!N119 | E113: =$A$118&E109&"'!N119" -> ='Year 1'!N119 | F113: =$A$118&F109&"'!N119" -> ='Year 2'!N119 | G113: ='Year 3'!N119 | H113: ='Year 4'!N119 | I113: ='Year 5'!N119 | J113: ='Year 6'!N119 | K113: ='Year 7'!N119 | L113: ='Year 8'!N119 | M113: ='Year 9'!N119 | N113: ='Year 10'!N119 | O113: ="'"&O109&"'!N119" -> 'Design Year'!N119
A114: Ped, FI | B114: =$A$118&$B$118&"'!N158" -> ='Year '!N158 | E114: =$A$118&E109&"'!K158" -> ='Year 1'!K158 | F114: ='Year 2'!K158 | G114: ='Year 3'!K158 | H114: ='Year 4'!K158 | I114: ='Year 5'!K158 | J114: ='Year 6'!K158 | K114: ='Year 7'!K158 | L114: ='Year 8'!K158 | M114: ='Year 9'!K158 | N114: ='Year 10'!K158 | O114: ="'"&O109&"'!K158" -> 'Design Year'!K158
A115: Ped, PDO | B115: 0 | E115: 0 | F115: 0 | G115: 0 | H115: 0 | I115: 0 | J115: 0 | K115: 0 | L115: 0 | M115: 0 | N115: 0 | O115: 0
A116: Bike, FI | B116: =$A$118&$B$118&"'!M169" -> ='Year '!M169 | E116: =$A$118&E109&"'!K169" -> ='Year 1'!K169 | F116: ='Year 2'!K169 | G116: ='Year 3'!K169 | H116: ='Year 4'!K169 | I116: ='Year 5'!K169 | J116: ='Year 6'!K169 | K116: ='Year 7'!K169 | L116: ='Year 8'!K169 | M116: ='Year 9'!K169 | N116: ='Year 10'!K169 | O116: ="'"&O109&"'!K169" -> 'Design Year'!K169
A117: Bike, PDO | B117: 0 | E117: 0 | F117: 0 | G117: 0 | H117: 0 | I117: 0 | J117: 0 | K117: 0 | L117: 0 | M117: 0 | N117: 0 | O117: 0
A118: ='Year
A120: DO NOT MODIFY - For Design Year Calc
A121: Crash Type, Severity | B121: Future Predicted Crash Frequency per Year (From Prediction Spreadsheet [Predicted Nb])
A122: MV, FI | B122: =$A$130&$B$130&"'!N71" -> ='Design Year'!N71
A123: MV, PDO | B123: =$A$130&$B$130&"'!N73" -> ='Design Year'!N73
A124: SV, FI | B124: =$A$130&$B$130&"'!N117" -> ='Design Year'!N117
A125: SV, PDO | B125: =$A$130&$B$130&"'!N119" -> ='Design Year'!N119
A126: Ped, FI | B126: =$A$130&$B$130&"'!M158" -> ='Design Year'!M158
A127: Ped, PDO | B127: 0
A128: Bike, FI | B128: =$A$130&$B$130&"'!K169" -> ='Design Year'!K169
A129: Bike, PDO | B129: 0
A130: ='Design Year | C130: N71
A135: CMF Calculations:
A136: Not Applicable
A137: Multiplicative
A138: Additive
A139: Dominant Effect
A140: Dominant Common Residuals
A143: Alternative 1
A144: Crash Type, Severity | B144: Multiplicative | C144: Additive Calc | D144: Additive < 0 Round | E144: Dominant Effect | F144: Dominant Common Residuals Step 1 | G144: Dominant Common Residuals Result
A145: MV, ALL | B145: =IF(AND(Input!B59="Multiplicative",Input!C59<>"",Input!E59<>""),IF(AND(Input!C59<1,Input!E59<1),"ERROR Check Input",Input!C59*Input!E59),"") ->  | C145: =IF(AND(Input!B59="Additive",Input!C59<>"",Input!E59<>""),1-((1-Input!C59)+(1-Input!E59)),"") ->  | D145: =IF(C145="","",IF(C145<=0,0,C145)) ->  | E145: =IF(AND(Input!B59="Dominant Effect",Input!C59<>"",Input!E59<>""),MIN(Input!C59,Input!E59),"") ->  | F145: =IF(AND(Input!B59="Dominant Common Residuals",Input!C59<>"",Input!E59<>""),MIN(Input!C59,Input!E59),"") ->  | G145: =IF(F145<>"",MIN(Input!C59,Input!E59,(Input!C59*Input!E59)^F145),"") -> 
A146: MV, FI | B146: =IF(AND(Input!B60="Multiplicative",Input!C60<>"",Input!E60<>""),IF(AND(Input!C60<1,Input!E60<1),"ERROR Check Input",Input!C60*Input!E60),"") ->  | C146: =IF(AND(Input!B60="Additive",Input!C60<>"",Input!E60<>""),1-((1-Input!C60)+(1-Input!E60)),"") ->  | D146: =IF(AND(Input!B60="Additive",Input!C60<>"",Input!E60<>""),1-((1-Input!C60)+(1-Input!E60)),"") ->  | E146: =IF(AND(Input!B60="Dominant Effect",Input!C60<>"",Input!E60<>""),MIN(Input!C60,Input!E60),"") ->  | F146: =IF(AND(Input!B60="Dominant Common Residuals",Input!C60<>"",Input!E60<>""),MIN(Input!C60,Input!E60),"") ->  | G146: =IF(F146<>"",MIN(Input!C60,Input!E60,(Input!C60*Input!E60)^F146),"") -> 
A147: SV, ALL | B147: =IF(AND(Input!B61="Multiplicative",Input!C61<>"",Input!E61<>""),IF(AND(Input!C61<1,Input!E61<1),"ERROR Check Input",Input!C61*Input!E61),"") ->  | C147: =IF(AND(Input!B61="Additive",Input!C61<>"",Input!E61<>""),1-((1-Input!C61)+(1-Input!E61)),"") ->  | D147: =IF(AND(Input!B61="Additive",Input!C61<>"",Input!E61<>""),1-((1-Input!C61)+(1-Input!E61)),"") ->  | E147: =IF(AND(Input!B61="Dominant Effect",Input!C61<>"",Input!E61<>""),MIN(Input!C61,Input!E61),"") ->  | F147: =IF(AND(Input!B61="Dominant Common Residuals",Input!C61<>"",Input!E61<>""),MIN(Input!C61,Input!E61),"") ->  | G147: =IF(F147<>"",MIN(Input!C61,Input!E61,(Input!C61*Input!E61)^F147),"") -> 
A148: SV, FI | B148: =IF(AND(Input!B62="Multiplicative",Input!C62<>"",Input!E62<>""),IF(AND(Input!C62<1,Input!E62<1),"ERROR Check Input",Input!C62*Input!E62),"") ->  | C148: =IF(AND(Input!B62="Additive",Input!C62<>"",Input!E62<>""),1-((1-Input!C62)+(1-Input!E62)),"") ->  | D148: =IF(AND(Input!B62="Additive",Input!C62<>"",Input!E62<>""),1-((1-Input!C62)+(1-Input!E62)),"") ->  | E148: =IF(AND(Input!B62="Dominant Effect",Input!C62<>"",Input!E62<>""),MIN(Input!C62,Input!E62),"") ->  | F148: =IF(AND(Input!B62="Dominant Common Residuals",Input!C62<>"",Input!E62<>""),MIN(Input!C62,Input!E62),"") ->  | G148: =IF(F148<>"",MIN(Input!C62,Input!E62,(Input!C62*Input!E62)^F148),"") -> 
A149: Ped, ALL | B149: =IF(AND(Input!B63="Multiplicative",Input!C63<>"",Input!E63<>""),IF(AND(Input!C63<1,Input!E63<1),"ERROR Check Input",Input!C63*Input!E63),"") ->  | C149: =IF(AND(Input!B63="Additive",Input!C63<>"",Input!E63<>""),1-((1-Input!C63)+(1-Input!E63)),"") ->  | D149: =IF(AND(Input!B63="Additive",Input!C63<>"",Input!E63<>""),1-((1-Input!C63)+(1-Input!E63)),"") ->  | E149: =IF(AND(Input!B63="Dominant Effect",Input!C63<>"",Input!E63<>""),MIN(Input!C63,Input!E63),"") ->  | F149: =IF(AND(Input!B63="Dominant Common Residuals",Input!C63<>"",Input!E63<>""),MIN(Input!C63,Input!E63),"") ->  | G149: =IF(F149<>"",MIN(Input!C63,Input!E63,(Input!C63*Input!E63)^F149),"") -> 
A150: Ped, FI | B150: =IF(AND(Input!B64="Multiplicative",Input!C64<>"",Input!E64<>""),IF(AND(Input!C64<1,Input!E64<1),"ERROR Check Input",Input!C64*Input!E64),"") ->  | C150: =IF(AND(Input!B64="Additive",Input!C64<>"",Input!E64<>""),1-((1-Input!C64)+(1-Input!E64)),"") ->  | D150: =IF(AND(Input!B64="Additive",Input!C64<>"",Input!E64<>""),1-((1-Input!C64)+(1-Input!E64)),"") ->  | E150: =IF(AND(Input!B64="Dominant Effect",Input!C64<>"",Input!E64<>""),MIN(Input!C64,Input!E64),"") ->  | F150: =IF(AND(Input!B64="Dominant Common Residuals",Input!C64<>"",Input!E64<>""),MIN(Input!C64,Input!E64),"") ->  | G150: =IF(F150<>"",MIN(Input!C64,Input!E64,(Input!C64*Input!E64)^F150),"") -> 
A151: Bike, ALL | B151: =IF(AND(Input!B65="Multiplicative",Input!C65<>"",Input!E65<>""),IF(AND(Input!C65<1,Input!E65<1),"ERROR Check Input",Input!C65*Input!E65),"") ->  | C151: =IF(AND(Input!B65="Additive",Input!C65<>"",Input!E65<>""),1-((1-Input!C65)+(1-Input!E65)),"") ->  | D151: =IF(AND(Input!B65="Additive",Input!C65<>"",Input!E65<>""),1-((1-Input!C65)+(1-Input!E65)),"") ->  | E151: =IF(AND(Input!B65="Dominant Effect",Input!C65<>"",Input!E65<>""),MIN(Input!C65,Input!E65),"") ->  | F151: =IF(AND(Input!B65="Dominant Common Residuals",Input!C65<>"",Input!E65<>""),MIN(Input!C65,Input!E65),"") ->  | G151: =IF(F151<>"",MIN(Input!C65,Input!E65,(Input!C65*Input!E65)^F151),"") -> 
A152: Bike, FI | B152: =IF(AND(Input!B66="Multiplicative",Input!C66<>"",Input!E66<>""),IF(AND(Input!C66<1,Input!E66<1),"ERROR Check Input",Input!C66*Input!E66),"") ->  | C152: =IF(AND(Input!B66="Additive",Input!C66<>"",Input!E66<>""),1-((1-Input!C66)+(1-Input!E66)),"") ->  | D152: =IF(AND(Input!B66="Additive",Input!C66<>"",Input!E66<>""),1-((1-Input!C66)+(1-Input!E66)),"") ->  | E152: =IF(AND(Input!B66="Dominant Effect",Input!C66<>"",Input!E66<>""),MIN(Input!C66,Input!E66),"") ->  | F152: =IF(AND(Input!B66="Dominant Common Residuals",Input!C66<>"",Input!E66<>""),MIN(Input!C66,Input!E66),"") ->  | G152: =IF(F152<>"",MIN(Input!C66,Input!E66,(Input!C66*Input!E66)^F152),"") -> 
A155: Alternative 2
A156: Crash Type, Severity | B156: Multiplicative | C156: Additive Calc | D156: Additive < 0 Round | E156: Dominant Effect | F156: Dominant Common Residuals Step 1 | G156: Dominant Common Residuals Result
A157: MV, ALL | B157: =IF(AND(Input!B71="Multiplicative",Input!C71<>"",Input!E71<>""),IF(AND(Input!C71<1,Input!E71<1),"ERROR Check Input",Input!C71*Input!E71),"") ->  | C157: =IF(AND(Input!B71="Additive",Input!C71<>"",Input!E71<>""),1-((1-Input!C71)+(1-Input!E71)),"") ->  | D157: =IF(C157="","",IF(C157<=0,0,C157)) ->  | E157: =IF(AND(Input!B71="Dominant Effect",Input!C71<>"",Input!E71<>""),MIN(Input!C71,Input!E71),"") ->  | F157: =IF(AND(Input!B71="Dominant Common Residuals",Input!C71<>"",Input!E71<>""),MIN(Input!C71,Input!E71),"") ->  | G157: =IF(F157<>"",MIN(Input!C71,Input!E71,(Input!C71*Input!E71)^F157),"") -> 
A158: MV, FI | B158: =IF(AND(Input!B72="Multiplicative",Input!C72<>"",Input!E72<>""),IF(AND(Input!C72<1,Input!E72<1),"ERROR Check Input",Input!C72*Input!E72),"") ->  | C158: =IF(AND(Input!B72="Additive",Input!C72<>"",Input!E72<>""),1-((1-Input!C72)+(1-Input!E72)),"") ->  | D158: =IF(AND(Input!B72="Additive",Input!C72<>"",Input!E72<>""),1-((1-Input!C72)+(1-Input!E72)),"") ->  | E158: =IF(AND(Input!B72="Dominant Effect",Input!C72<>"",Input!E72<>""),MIN(Input!C72,Input!E72),"") ->  | F158: =IF(AND(Input!B72="Dominant Common Residuals",Input!C72<>"",Input!E72<>""),MIN(Input!C72,Input!E72),"") ->  | G158: =IF(F158<>"",MIN(Input!C72,Input!E72,(Input!C72*Input!E72)^F158),"") -> 
A159: SV, ALL | B159: =IF(AND(Input!B73="Multiplicative",Input!C73<>"",Input!E73<>""),IF(AND(Input!C73<1,Input!E73<1),"ERROR Check Input",Input!C73*Input!E73),"") ->  | C159: =IF(AND(Input!B73="Additive",Input!C73<>"",Input!E73<>""),1-((1-Input!C73)+(1-Input!E73)),"") ->  | D159: =IF(AND(Input!B73="Additive",Input!C73<>"",Input!E73<>""),1-((1-Input!C73)+(1-Input!E73)),"") ->  | E159: =IF(AND(Input!B73="Dominant Effect",Input!C73<>"",Input!E73<>""),MIN(Input!C73,Input!E73),"") ->  | F159: =IF(AND(Input!B73="Dominant Common Residuals",Input!C73<>"",Input!E73<>""),MIN(Input!C73,Input!E73),"") ->  | G159: =IF(F159<>"",MIN(Input!C73,Input!E73,(Input!C73*Input!E73)^F159),"") -> 
A160: SV, FI | B160: =IF(AND(Input!B74="Multiplicative",Input!C74<>"",Input!E74<>""),IF(AND(Input!C74<1,Input!E74<1),"ERROR Check Input",Input!C74*Input!E74),"") ->  | C160: =IF(AND(Input!B74="Additive",Input!C74<>"",Input!E74<>""),1-((1-Input!C74)+(1-Input!E74)),"") ->  | D160: =IF(AND(Input!B74="Additive",Input!C74<>"",Input!E74<>""),1-((1-Input!C74)+(1-Input!E74)),"") ->  | E160: =IF(AND(Input!B74="Dominant Effect",Input!C74<>"",Input!E74<>""),MIN(Input!C74,Input!E74),"") ->  | F160: =IF(AND(Input!B74="Dominant Common Residuals",Input!C74<>"",Input!E74<>""),MIN(Input!C74,Input!E74),"") ->  | G160: =IF(F160<>"",MIN(Input!C74,Input!E74,(Input!C74*Input!E74)^F160),"") -> 
A161: Ped, ALL | B161: =IF(AND(Input!B75="Multiplicative",Input!C75<>"",Input!E75<>""),IF(AND(Input!C75<1,Input!E75<1),"ERROR Check Input",Input!C75*Input!E75),"") ->  | C161: =IF(AND(Input!B75="Additive",Input!C75<>"",Input!E75<>""),1-((1-Input!C75)+(1-Input!E75)),"") ->  | D161: =IF(AND(Input!B75="Additive",Input!C75<>"",Input!E75<>""),1-((1-Input!C75)+(1-Input!E75)),"") ->  | E161: =IF(AND(Input!B75="Dominant Effect",Input!C75<>"",Input!E75<>""),MIN(Input!C75,Input!E75),"") ->  | F161: =IF(AND(Input!B75="Dominant Common Residuals",Input!C75<>"",Input!E75<>""),MIN(Input!C75,Input!E75),"") ->  | G161: =IF(F161<>"",MIN(Input!C75,Input!E75,(Input!C75*Input!E75)^F161),"") -> 
A162: Ped, FI | B162: =IF(AND(Input!B76="Multiplicative",Input!C76<>"",Input!E76<>""),IF(AND(Input!C76<1,Input!E76<1),"ERROR Check Input",Input!C76*Input!E76),"") ->  | C162: =IF(AND(Input!B76="Additive",Input!C76<>"",Input!E76<>""),1-((1-Input!C76)+(1-Input!E76)),"") ->  | D162: =IF(AND(Input!B76="Additive",Input!C76<>"",Input!E76<>""),1-((1-Input!C76)+(1-Input!E76)),"") ->  | E162: =IF(AND(Input!B76="Dominant Effect",Input!C76<>"",Input!E76<>""),MIN(Input!C76,Input!E76),"") ->  | F162: =IF(AND(Input!B76="Dominant Common Residuals",Input!C76<>"",Input!E76<>""),MIN(Input!C76,Input!E76),"") ->  | G162: =IF(F162<>"",MIN(Input!C76,Input!E76,(Input!C76*Input!E76)^F162),"") -> 
A163: Bike, ALL | B163: =IF(AND(Input!B77="Multiplicative",Input!C77<>"",Input!E77<>""),IF(AND(Input!C77<1,Input!E77<1),"ERROR Check Input",Input!C77*Input!E77),"") ->  | C163: =IF(AND(Input!B77="Additive",Input!C77<>"",Input!E77<>""),1-((1-Input!C77)+(1-Input!E77)),"") ->  | D163: =IF(AND(Input!B77="Additive",Input!C77<>"",Input!E77<>""),1-((1-Input!C77)+(1-Input!E77)),"") ->  | E163: =IF(AND(Input!B77="Dominant Effect",Input!C77<>"",Input!E77<>""),MIN(Input!C77,Input!E77),"") ->  | F163: =IF(AND(Input!B77="Dominant Common Residuals",Input!C77<>"",Input!E77<>""),MIN(Input!C77,Input!E77),"") ->  | G163: =IF(F163<>"",MIN(Input!C77,Input!E77,(Input!C77*Input!E77)^F163),"") -> 
A164: Bike, FI | B164: =IF(AND(Input!B78="Multiplicative",Input!C78<>"",Input!E78<>""),IF(AND(Input!C78<1,Input!E78<1),"ERROR Check Input",Input!C78*Input!E78),"") ->  | C164: =IF(AND(Input!B78="Additive",Input!C78<>"",Input!E78<>""),1-((1-Input!C78)+(1-Input!E78)),"") ->  | D164: =IF(AND(Input!B78="Additive",Input!C78<>"",Input!E78<>""),1-((1-Input!C78)+(1-Input!E78)),"") ->  | E164: =IF(AND(Input!B78="Dominant Effect",Input!C78<>"",Input!E78<>""),MIN(Input!C78,Input!E78),"") ->  | F164: =IF(AND(Input!B78="Dominant Common Residuals",Input!C78<>"",Input!E78<>""),MIN(Input!C78,Input!E78),"") ->  | G164: =IF(F164<>"",MIN(Input!C78,Input!E78,(Input!C78*Input!E78)^F164),"") -> 
A167: Alternative 3
A168: Crash Type, Severity | B168: Multiplicative | C168: Additive Calc | D168: Additive < 0 Round | E168: Dominant Effect | F168: Dominant Common Residuals Step 1 | G168: Dominant Common Residuals Result
A169: MV, ALL | B169: =IF(AND(Input!B83="Multiplicative",Input!C83<>"",Input!E83<>""),IF(AND(Input!C83<1,Input!E83<1),"ERROR Check Input",Input!C83*Input!E83),"") ->  | C169: =IF(AND(Input!B83="Additive",Input!C83<>"",Input!E83<>""),1-((1-Input!C83)+(1-Input!E83)),"") ->  | D169: =IF(C169="","",IF(C169<=0,0,C169)) ->  | E169: =IF(AND(Input!B83="Dominant Effect",Input!C83<>"",Input!E83<>""),MIN(Input!C83,Input!E83),"") ->  | F169: =IF(AND(Input!B83="Dominant Common Residuals",Input!C83<>"",Input!E83<>""),MIN(Input!C83,Input!E83),"") ->  | G169: =IF(F169<>"",MIN(Input!C83,Input!E83,(Input!C83*Input!E83)^F169),"") -> 
A170: MV, FI | B170: =IF(AND(Input!B84="Multiplicative",Input!C84<>"",Input!E84<>""),IF(AND(Input!C84<1,Input!E84<1),"ERROR Check Input",Input!C84*Input!E84),"") ->  | C170: =IF(AND(Input!B84="Additive",Input!C84<>"",Input!E84<>""),1-((1-Input!C84)+(1-Input!E84)),"") ->  | D170: =IF(AND(Input!B84="Additive",Input!C84<>"",Input!E84<>""),1-((1-Input!C84)+(1-Input!E84)),"") ->  | E170: =IF(AND(Input!B84="Dominant Effect",Input!C84<>"",Input!E84<>""),MIN(Input!C84,Input!E84),"") ->  | F170: =IF(AND(Input!B84="Dominant Common Residuals",Input!C84<>"",Input!E84<>""),MIN(Input!C84,Input!E84),"") ->  | G170: =IF(F170<>"",MIN(Input!C84,Input!E84,(Input!C84*Input!E84)^F170),"") -> 
A171: SV, ALL | B171: =IF(AND(Input!B85="Multiplicative",Input!C85<>"",Input!E85<>""),IF(AND(Input!C85<1,Input!E85<1),"ERROR Check Input",Input!C85*Input!E85),"") ->  | C171: =IF(AND(Input!B85="Additive",Input!C85<>"",Input!E85<>""),1-((1-Input!C85)+(1-Input!E85)),"") ->  | D171: =IF(AND(Input!B85="Additive",Input!C85<>"",Input!E85<>""),1-((1-Input!C85)+(1-Input!E85)),"") ->  | E171: =IF(AND(Input!B85="Dominant Effect",Input!C85<>"",Input!E85<>""),MIN(Input!C85,Input!E85),"") ->  | F171: =IF(AND(Input!B85="Dominant Common Residuals",Input!C85<>"",Input!E85<>""),MIN(Input!C85,Input!E85),"") ->  | G171: =IF(F171<>"",MIN(Input!C85,Input!E85,(Input!C85*Input!E85)^F171),"") -> 
A172: SV, FI | B172: =IF(AND(Input!B86="Multiplicative",Input!C86<>"",Input!E86<>""),IF(AND(Input!C86<1,Input!E86<1),"ERROR Check Input",Input!C86*Input!E86),"") ->  | C172: =IF(AND(Input!B86="Additive",Input!C86<>"",Input!E86<>""),1-((1-Input!C86)+(1-Input!E86)),"") ->  | D172: =IF(AND(Input!B86="Additive",Input!C86<>"",Input!E86<>""),1-((1-Input!C86)+(1-Input!E86)),"") ->  | E172: =IF(AND(Input!B86="Dominant Effect",Input!C86<>"",Input!E86<>""),MIN(Input!C86,Input!E86),"") ->  | F172: =IF(AND(Input!B86="Dominant Common Residuals",Input!C86<>"",Input!E86<>""),MIN(Input!C86,Input!E86),"") ->  | G172: =IF(F172<>"",MIN(Input!C86,Input!E86,(Input!C86*Input!E86)^F172),"") -> 
A173: Ped, ALL | B173: =IF(AND(Input!B87="Multiplicative",Input!C87<>"",Input!E87<>""),IF(AND(Input!C87<1,Input!E87<1),"ERROR Check Input",Input!C87*Input!E87),"") ->  | C173: =IF(AND(Input!B87="Additive",Input!C87<>"",Input!E87<>""),1-((1-Input!C87)+(1-Input!E87)),"") ->  | D173: =IF(AND(Input!B87="Additive",Input!C87<>"",Input!E87<>""),1-((1-Input!C87)+(1-Input!E87)),"") ->  | E173: =IF(AND(Input!B87="Dominant Effect",Input!C87<>"",Input!E87<>""),MIN(Input!C87,Input!E87),"") ->  | F173: =IF(AND(Input!B87="Dominant Common Residuals",Input!C87<>"",Input!E87<>""),MIN(Input!C87,Input!E87),"") ->  | G173: =IF(F173<>"",MIN(Input!C87,Input!E87,(Input!C87*Input!E87)^F173),"") -> 
A174: Ped, FI | B174: =IF(AND(Input!B88="Multiplicative",Input!C88<>"",Input!E88<>""),IF(AND(Input!C88<1,Input!E88<1),"ERROR Check Input",Input!C88*Input!E88),"") ->  | C174: =IF(AND(Input!B88="Additive",Input!C88<>"",Input!E88<>""),1-((1-Input!C88)+(1-Input!E88)),"") ->  | D174: =IF(AND(Input!B88="Additive",Input!C88<>"",Input!E88<>""),1-((1-Input!C88)+(1-Input!E88)),"") ->  | E174: =IF(AND(Input!B88="Dominant Effect",Input!C88<>"",Input!E88<>""),MIN(Input!C88,Input!E88),"") ->  | F174: =IF(AND(Input!B88="Dominant Common Residuals",Input!C88<>"",Input!E88<>""),MIN(Input!C88,Input!E88),"") ->  | G174: =IF(F174<>"",MIN(Input!C88,Input!E88,(Input!C88*Input!E88)^F174),"") -> 
A175: Bike, ALL | B175: =IF(AND(Input!B89="Multiplicative",Input!C89<>"",Input!E89<>""),IF(AND(Input!C89<1,Input!E89<1),"ERROR Check Input",Input!C89*Input!E89),"") ->  | C175: =IF(AND(Input!B89="Additive",Input!C89<>"",Input!E89<>""),1-((1-Input!C89)+(1-Input!E89)),"") ->  | D175: =IF(AND(Input!B89="Additive",Input!C89<>"",Input!E89<>""),1-((1-Input!C89)+(1-Input!E89)),"") ->  | E175: =IF(AND(Input!B89="Dominant Effect",Input!C89<>"",Input!E89<>""),MIN(Input!C89,Input!E89),"") ->  | F175: =IF(AND(Input!B89="Dominant Common Residuals",Input!C89<>"",Input!E89<>""),MIN(Input!C89,Input!E89),"") ->  | G175: =IF(F175<>"",MIN(Input!C89,Input!E89,(Input!C89*Input!E89)^F175),"") -> 
A176: Bike, FI | B176: =IF(AND(Input!B90="Multiplicative",Input!C90<>"",Input!E90<>""),IF(AND(Input!C90<1,Input!E90<1),"ERROR Check Input",Input!C90*Input!E90),"") ->  | C176: =IF(AND(Input!B90="Additive",Input!C90<>"",Input!E90<>""),1-((1-Input!C90)+(1-Input!E90)),"") ->  | D176: =IF(AND(Input!B90="Additive",Input!C90<>"",Input!E90<>""),1-((1-Input!C90)+(1-Input!E90)),"") ->  | E176: =IF(AND(Input!B90="Dominant Effect",Input!C90<>"",Input!E90<>""),MIN(Input!C90,Input!E90),"") ->  | F176: =IF(AND(Input!B90="Dominant Common Residuals",Input!C90<>"",Input!E90<>""),MIN(Input!C90,Input!E90),"") ->  | G176: =IF(F176<>"",MIN(Input!C90,Input!E90,(Input!C90*Input!E90)^F176),"") -> 
A179: Alternative 4
A180: Crash Type, Severity | B180: Multiplicative | C180: Additive Calc | D180: Additive < 0 Round | E180: Dominant Effect | F180: Dominant Common Residuals Step 1 | G180: Dominant Common Residuals Result
A181: MV, ALL | B181: =IF(AND(Input!B95="Multiplicative",Input!C95<>"",Input!E95<>""),IF(AND(Input!C95<1,Input!E95<1),"ERROR Check Input",Input!C95*Input!E95),"") ->  | C181: =IF(AND(Input!B95="Additive",Input!C95<>"",Input!E95<>""),1-((1-Input!C95)+(1-Input!E95)),"") ->  | D181: =IF(C181="","",IF(C181<=0,0,C181)) ->  | E181: =IF(AND(Input!B95="Dominant Effect",Input!C95<>"",Input!E95<>""),MIN(Input!C95,Input!E95),"") ->  | F181: =IF(AND(Input!B95="Dominant Common Residuals",Input!C95<>"",Input!E95<>""),MIN(Input!C95,Input!E95),"") ->  | G181: =IF(F181<>"",MIN(Input!C95,Input!E95,(Input!C95*Input!E95)^F181),"") -> 
A182: MV, FI | B182: =IF(AND(Input!B96="Multiplicative",Input!C96<>"",Input!E96<>""),IF(AND(Input!C96<1,Input!E96<1),"ERROR Check Input",Input!C96*Input!E96),"") ->  | C182: =IF(AND(Input!B96="Additive",Input!C96<>"",Input!E96<>""),1-((1-Input!C96)+(1-Input!E96)),"") ->  | D182: =IF(AND(Input!B96="Additive",Input!C96<>"",Input!E96<>""),1-((1-Input!C96)+(1-Input!E96)),"") ->  | E182: =IF(AND(Input!B96="Dominant Effect",Input!C96<>"",Input!E96<>""),MIN(Input!C96,Input!E96),"") ->  | F182: =IF(AND(Input!B96="Dominant Common Residuals",Input!C96<>"",Input!E96<>""),MIN(Input!C96,Input!E96),"") ->  | G182: =IF(F182<>"",MIN(Input!C96,Input!E96,(Input!C96*Input!E96)^F182),"") -> 
A183: SV, ALL | B183: =IF(AND(Input!B97="Multiplicative",Input!C97<>"",Input!E97<>""),IF(AND(Input!C97<1,Input!E97<1),"ERROR Check Input",Input!C97*Input!E97),"") ->  | C183: =IF(AND(Input!B97="Additive",Input!C97<>"",Input!E97<>""),1-((1-Input!C97)+(1-Input!E97)),"") ->  | D183: =IF(AND(Input!B97="Additive",Input!C97<>"",Input!E97<>""),1-((1-Input!C97)+(1-Input!E97)),"") ->  | E183: =IF(AND(Input!B97="Dominant Effect",Input!C97<>"",Input!E97<>""),MIN(Input!C97,Input!E97),"") ->  | F183: =IF(AND(Input!B97="Dominant Common Residuals",Input!C97<>"",Input!E97<>""),MIN(Input!C97,Input!E97),"") ->  | G183: =IF(F183<>"",MIN(Input!C97,Input!E97,(Input!C97*Input!E97)^F183),"") -> 
A184: SV, FI | B184: =IF(AND(Input!B98="Multiplicative",Input!C98<>"",Input!E98<>""),IF(AND(Input!C98<1,Input!E98<1),"ERROR Check Input",Input!C98*Input!E98),"") ->  | C184: =IF(AND(Input!B98="Additive",Input!C98<>"",Input!E98<>""),1-((1-Input!C98)+(1-Input!E98)),"") ->  | D184: =IF(AND(Input!B98="Additive",Input!C98<>"",Input!E98<>""),1-((1-Input!C98)+(1-Input!E98)),"") ->  | E184: =IF(AND(Input!B98="Dominant Effect",Input!C98<>"",Input!E98<>""),MIN(Input!C98,Input!E98),"") ->  | F184: =IF(AND(Input!B98="Dominant Common Residuals",Input!C98<>"",Input!E98<>""),MIN(Input!C98,Input!E98),"") ->  | G184: =IF(F184<>"",MIN(Input!C98,Input!E98,(Input!C98*Input!E98)^F184),"") -> 
A185: Ped, FALL | B185: =IF(AND(Input!B99="Multiplicative",Input!C99<>"",Input!E99<>""),IF(AND(Input!C99<1,Input!E99<1),"ERROR Check Input",Input!C99*Input!E99),"") ->  | C185: =IF(AND(Input!B99="Additive",Input!C99<>"",Input!E99<>""),1-((1-Input!C99)+(1-Input!E99)),"") ->  | D185: =IF(AND(Input!B99="Additive",Input!C99<>"",Input!E99<>""),1-((1-Input!C99)+(1-Input!E99)),"") ->  | E185: =IF(AND(Input!B99="Dominant Effect",Input!C99<>"",Input!E99<>""),MIN(Input!C99,Input!E99),"") ->  | F185: =IF(AND(Input!B99="Dominant Common Residuals",Input!C99<>"",Input!E99<>""),MIN(Input!C99,Input!E99),"") ->  | G185: =IF(F185<>"",MIN(Input!C99,Input!E99,(Input!C99*Input!E99)^F185),"") -> 
A186: Ped, ALL | B186: =IF(AND(Input!B100="Multiplicative",Input!C100<>"",Input!E100<>""),IF(AND(Input!C100<1,Input!E100<1),"ERROR Check Input",Input!C100*Input!E100),"") ->  | C186: =IF(AND(Input!B100="Additive",Input!C100<>"",Input!E100<>""),1-((1-Input!C100)+(1-Input!E100)),"") ->  | D186: =IF(AND(Input!B100="Additive",Input!C100<>"",Input!E100<>""),1-((1-Input!C100)+(1-Input!E100)),"") ->  | E186: =IF(AND(Input!B100="Dominant Effect",Input!C100<>"",Input!E100<>""),MIN(Input!C100,Input!E100),"") ->  | F186: =IF(AND(Input!B100="Dominant Common Residuals",Input!C100<>"",Input!E100<>""),MIN(Input!C100,Input!E100),"") ->  | G186: =IF(F186<>"",MIN(Input!C100,Input!E100,(Input!C100*Input!E100)^F186),"") -> 
A187: Bike, ALL | B187: =IF(AND(Input!B101="Multiplicative",Input!C101<>"",Input!E101<>""),IF(AND(Input!C101<1,Input!E101<1),"ERROR Check Input",Input!C101*Input!E101),"") ->  | C187: =IF(AND(Input!B101="Additive",Input!C101<>"",Input!E101<>""),1-((1-Input!C101)+(1-Input!E101)),"") ->  | D187: =IF(AND(Input!B101="Additive",Input!C101<>"",Input!E101<>""),1-((1-Input!C101)+(1-Input!E101)),"") ->  | E187: =IF(AND(Input!B101="Dominant Effect",Input!C101<>"",Input!E101<>""),MIN(Input!C101,Input!E101),"") ->  | F187: =IF(AND(Input!B101="Dominant Common Residuals",Input!C101<>"",Input!E101<>""),MIN(Input!C101,Input!E101),"") ->  | G187: =IF(F187<>"",MIN(Input!C101,Input!E101,(Input!C101*Input!E101)^F187),"") -> 
A188: Bike, FI | B188: =IF(AND(Input!B102="Multiplicative",Input!C102<>"",Input!E102<>""),IF(AND(Input!C102<1,Input!E102<1),"ERROR Check Input",Input!C102*Input!E102),"") ->  | C188: =IF(AND(Input!B102="Additive",Input!C102<>"",Input!E102<>""),1-((1-Input!C102)+(1-Input!E102)),"") ->  | D188: =IF(AND(Input!B102="Additive",Input!C102<>"",Input!E102<>""),1-((1-Input!C102)+(1-Input!E102)),"") ->  | E188: =IF(AND(Input!B102="Dominant Effect",Input!C102<>"",Input!E102<>""),MIN(Input!C102,Input!E102),"") ->  | F188: =IF(AND(Input!B102="Dominant Common Residuals",Input!C102<>"",Input!E102<>""),MIN(Input!C102,Input!E102),"") ->  | G188: =IF(F188<>"",MIN(Input!C102,Input!E102,(Input!C102*Input!E102)^F188),"") -> 
